Workbook

Sheet Main
B10: 2019-06-26
B12: Sheet No. | C12: Template Name | D12: Summary
B13: 1 | C13: Future Intra | D13: For Intraday trading in F&O segment
B14: 2 | C14: Cash Intra | D14: For Intraday trading in cash market segment
B15: 3 | C15: Mid-cap Intra | D15: For Intraday trading in Mid-cap stocks
B16: 4 | C16: Bulk Deals | D16: Reveals Bulk Deals carried on NSE & BSE
B17: 5 | C17: Call Tracker
K27: `

Sheet Future Intra
M5: Back to Main Page
A6: FOR INTRA DAY TRADING | L6: =Main!B10 -> 2019-06-26
A9: Sr.no | B9: Sector | C9: Scrip | D9: CLOSE RATE | E9: Pivot Point | F9: Supports | I9: Resistances
B10: Sector | D10: Point | E10: Point | F10: S1 | G10: S2 | H10: S3 | I10: R1 | J10: R2 | K10: R3 | L10: HIGH | M10: LOW | N10: OI | O10: % Change in OI
A11: 1 | B11: Index | C11: BANKNIFTY | D11: 30878.60 | E11: 30769.53 | F11: 30589.07 | G11: 30299.53 | H11: 30119.07 | I11: 31059.07 | J11: 31239.53 | K11: 31529.07 | L11: 30950 | M11: 30480 | N11: 2378760 | O11: 6.64%
A12: 2 | B12: Index | C12: NIFTY | D12: 11810.30 | E12: 11770.30 | F12: 11706.60 | G12: 11602.90 | H12: 11539.20 | I12: 11874.00 | J12: 11937.70 | K12: 12041.40 | L12: 11834 | M12: 11666.6 | N12: 22208025 | O12: 0.62%
A13: 3 | B13: Index | C13: NIFTYIT | D13: 16214.00 | E13: 16162.00 | F13: 16086.00 | G13: 15958.00 | H13: 15882.00 | I13: 16290.00 | J13: 16366.00 | K13: 16494.00 | L13: 16238 | M13: 16034 | N13: 12650 | O13: -1.17%
A14: 4 | B14: Cement | C14: ACC | D14: 1555.35 | E14: 1549.05 | F14: 1534.50 | G14: 1513.65 | H14: 1499.10 | I14: 1569.90 | J14: 1584.45 | K14: 1605.30 | L14: 1563.6 | M14: 1528.2 | N14: 3026000 | O14: 9.38%
A15: 5 | B15: Others | C15: ADANIENT | D15: 150.60 | E15: 149.13 | F15: 146.12 | G15: 141.63 | H15: 138.62 | I15: 153.62 | J15: 156.63 | K15: 161.12 | L15: 152.15 | M15: 144.65 | N15: 34208000 | O15: 5.65%
A16: 6 | B16: Others | C16: ADANIPORTS | D16: 407.15 | E16: 406.58 | F16: 404.67 | G16: 402.18 | H16: 400.27 | I16: 409.07 | J16: 410.98 | K16: 413.47 | L16: 408.5 | M16: 404.1 | N16: 22650000 | O16: 1.24%
A17: 7 | B17: Power | C17: ADANIPOWER | D17: 50.55 | E17: 50.07 | F17: 49.28 | G17: 48.02 | H17: 47.23 | I17: 51.33 | J17: 52.12 | K17: 53.38 | L17: 50.85 | M17: 48.8 | N17: 168700000 | O17: -2.42%
A18: 8 | B18: Pharma | C18: AJANTPHARM | D18: 974.65 | E18: 961.52 | F18: 945.53 | G18: 916.42 | H18: 900.43 | I18: 990.63 | J18: 1006.62 | K18: 1035.73 | L18: 977.5 | M18: 932.4 | N18: 153500 | O18: -45.86%
A19: 9 | B19: Banking | C19: ALBK | D19: 42.50 | E19: 41.93 | F19: 41.17 | G19: 39.83 | H19: 39.07 | I19: 43.27 | J19: 44.03 | K19: 45.37 | L19: 42.7 | M19: 40.6 | N19: 8515000 | O19: -28.34%
A20: 10 | B20: Automobile | C20: AMARAJABAT | D20: 613.80 | E20: 612.00 | F20: 597.75 | G20: 581.70 | H20: 567.45 | I20: 628.05 | J20: 642.30 | K20: 658.35 | L20: 626.25 | M20: 595.95 | N20: 1542100 | O20: 6.53%
A21: 11 | B21: Cement | C21: AMBUJACEM | D21: 215.70 | E21: 214.60 | F21: 212.80 | G21: 209.90 | H21: 208.10 | I21: 217.50 | J21: 219.30 | K21: 222.20 | L21: 216.4 | M21: 211.7 | N21: 17400000 | O21: 4.41%
A22: 12 | B22: Others | C22: APOLLOHOSP | D22: 1329.45 | E22: 1331.90 | F22: 1309.85 | G22: 1290.25 | H22: 1268.20 | I22: 1351.50 | J22: 1373.55 | K22: 1393.15 | L22: 1353.95 | M22: 1312.3 | N22: 1490000 | O22: 9.08%
A23: 13 | B23: Automobile | C23: APOLLOTYRE | D23: 200.75 | E23: 200.55 | F23: 196.80 | G23: 192.85 | H23: 189.10 | I23: 204.50 | J23: 208.25 | K23: 212.20 | L23: 204.3 | M23: 196.6 | N23: 13221000 | O23: -4.73%
A24: 14 | B24: Textile | C24: ARVIND | D24: 64.70 | E24: 63.83 | F24: 61.62 | G24: 58.53 | H24: 56.32 | I24: 66.92 | J24: 69.13 | K24: 72.22 | L24: 66.05 | M24: 60.75 | N24: 8992000 | O24: 4.49%
A25: 15 | B25: Automobile | C25: ASHOKLEY | D25: 85.80 | E25: 87.02 | F25: 83.88 | G25: 81.97 | H25: 78.83 | I25: 88.93 | J25: 92.07 | K25: 93.98 | L25: 90.15 | M25: 85.1 | N25: 71350000 | O25: 7.15%
A26: 16 | B26: FMCG | C26: ASIANPAINT | D26: 1366.10 | E26: 1367.73 | F26: 1361.42 | G26: 1356.73 | H26: 1350.42 | I26: 1372.42 | J26: 1378.73 | K26: 1383.42 | L26: 1374.05 | M26: 1363.05 | N26: 6107400 | O26: 2.88%
A27: 17 | B27: Pharma | C27: AUROPHARMA | D27: 599.70 | E27: 593.12 | F27: 583.58 | G27: 567.47 | H27: 557.93 | I27: 609.23 | J27: 618.77 | K27: 634.88 | L27: 602.65 | M27: 577 | N27: 16213000 | O27: 0.13%
A28: 18 | B28: Banking | C28: AXISBANK | D28: 781.80 | E28: 774.53 | F28: 765.42 | G28: 749.03 | H28: 739.92 | I28: 790.92 | J28: 800.03 | K28: 816.42 | L28: 783.65 | M28: 758.15 | N28: 42271200 | O28: -5.15%
A29: 19 | B29: Automobile | C29: BAJAJ-AUTO | D29: 2847.25 | E29: 2832.67 | F29: 2805.68 | G29: 2764.12 | H29: 2737.13 | I29: 2874.23 | J29: 2901.22 | K29: 2942.78 | L29: 2859.65 | M29: 2791.1 | N29: 2349000 | O29: -5.31%
A30: 20 | B30: Others | C30: BAJAJFINSV | D30: 8363.95 | E30: 8367.37 | F30: 8327.68 | G30: 8291.42 | H30: 8251.73 | I30: 8403.63 | J30: 8443.32 | K30: 8479.58 | L30: 8407.05 | M30: 8331.1 | N30: 757875 | O30: 1.08%
A31: 21 | B31: Finance | C31: BAJFINANCE | D31: 3583.70 | E31: 3569.00 | F31: 3549.20 | G31: 3514.70 | H31: 3494.90 | I31: 3603.50 | J31: 3623.30 | K31: 3657.80 | L31: 3588.8 | M31: 3534.5 | N31: 5845500 | O31: -0.33%
A32: 22 | B32: Others | C32: BALKRISIND | D32: 764.15 | E32: 757.38 | F32: 742.77 | G32: 721.38 | H32: 706.77 | I32: 778.77 | J32: 793.38 | K32: 814.77 | L32: 772 | M32: 736 | N32: 2060800 | O32: -14.84%
A33: 23 | B33: Banking | C33: BANKBARODA | D33: 119.85 | E33: 119.40 | F33: 118.20 | G33: 116.55 | H33: 115.35 | I33: 121.05 | J33: 122.25 | K33: 123.90 | L33: 120.6 | M33: 117.75 | N33: 72132500 | O33: -3.04%
A34: 24 | B34: Banking | C34: BANKINDIA | D34: 86.80 | E34: 86.60 | F34: 85.95 | G34: 85.10 | H34: 84.45 | I34: 87.45 | J34: 88.10 | K34: 88.95 | L34: 87.25 | M34: 85.75 | N34: 28854000 | O34: -8.63%
A35: 25 | B35: FMCG | C35: BATAINDIA | D35: 1414.40 | E35: 1412.98 | F35: 1404.07 | G35: 1393.73 | H35: 1384.82 | I35: 1423.32 | J35: 1432.23 | K35: 1442.57 | L35: 1421.9 | M35: 1402.65 | N35: 1752300 | O35: 7.24%
A36: 26 | B36: Capital_Goods | C36: BEL | D36: 114.15 | E36: 114.12 | F36: 112.78 | G36: 111.42 | H36: 110.08 | I36: 115.48 | J36: 116.82 | K36: 118.18 | L36: 115.45 | M36: 112.75 | N36: 26916000 | O36: 0.67%
A37: 27 | B37: Infrastructure | C37: BEML | D37: 857.80 | E37: 844.72 | F37: 827.78 | G37: 797.77 | H37: 780.83 | I37: 874.73 | J37: 891.67 | K37: 921.68 | L37: 861.65 | M37: 814.7 | N37: 739900 | O37: -16.90%
A38: 28 | B38: Others | C38: BERGEPAINT | D38: 317.75 | E38: 316.40 | F38: 313.90 | G38: 310.05 | H38: 307.55 | I38: 320.25 | J38: 322.75 | K38: 326.60 | L38: 318.9 | M38: 312.55 | N38: 3209800 | O38: 0.34%
A39: 29 | B39: Finance | C39: BHARATFIN | D39: 920.00 | E39: 920.02 | F39: 913.63 | G39: 907.27 | H39: 900.88 | I39: 926.38 | J39: 932.77 | K39: 939.13 | L39: 926.4 | M39: 913.65 | N39: 3954500 | O39: -3.54%
A40: 30 | B40: Automobile | C40: BHARATFORG | D40: 437.20 | E40: 435.80 | F40: 432.90 | G40: 428.60 | H40: 425.70 | I40: 440.10 | J40: 443.00 | K40: 447.30 | L40: 438.7 | M40: 431.5 | N40: 8044800 | O40: 0.48%
A41: 31 | B41: Telecom | C41: BHARTIARTL | D41: 349.15 | E41: 349.03 | F41: 345.17 | G41: 341.18 | H41: 337.32 | I41: 353.02 | J41: 356.88 | K41: 360.87 | L41: 352.9 | M41: 345.05 | N41: 35968632 | O41: -1.01%
A42: 32 | B42: Capital_Goods | C42: BHEL | D42: 73.90 | E42: 73.45 | F42: 72.80 | G42: 71.70 | H42: 71.05 | I42: 74.55 | J42: 75.20 | K42: 76.30 | L42: 74.1 | M42: 72.35 | N42: 51255000 | O42: 2.54%
A43: 33 | B43: Pharma | C43: BIOCON | D43: 246.85 | E43: 247.70 | F43: 244.90 | G43: 242.95 | H43: 240.15 | I43: 249.65 | J43: 252.45 | K43: 254.40 | L43: 250.5 | M43: 245.75 | N43: 14392800 | O43: -5.77%
A44: 34 | B44: Automobile | C44: BOSCHLTD | D44: 16480.65 | E44: 16461.97 | F44: 16373.93 | G44: 16267.22 | H44: 16179.18 | I44: 16568.68 | J44: 16656.72 | K44: 16763.43 | L44: 16550 | M44: 16355.25 | N44: 156420 | O44: -1.19%
A45: 35 | B45: Oil_Gas | C45: BPCL | D45: 392.75 | E45: 388.35 | F45: 382.85 | G45: 372.95 | H45: 367.45 | I45: 398.25 | J45: 403.75 | K45: 413.65 | L45: 393.85 | M45: 378.45 | N45: 11566800 | O45: -4.15%
A46: 36 | B46: FMCG | C46: BRITANNIA | D46: 2806.50 | E46: 2794.02 | F46: 2771.78 | G46: 2737.07 | H46: 2714.83 | I46: 2828.73 | J46: 2850.97 | K46: 2885.68 | L46: 2816.25 | M46: 2759.3 | N46: 2192000 | O46: -2.09%
A47: 37 | B47: Pharma | C47: CADILAHC | D47: 230.80 | E47: 229.15 | F47: 225.65 | G47: 220.50 | H47: 217.00 | I47: 234.30 | J47: 237.80 | K47: 242.95 | L47: 232.65 | M47: 224 | N47: 17203200 | O47: -0.79%
A48: 38 | B48: Banking | C48: CANBK | D48: 274.95 | E48: 274.42 | F48: 271.68 | G48: 268.42 | H48: 265.68 | I48: 277.68 | J48: 280.42 | K48: 283.68 | L48: 277.15 | M48: 271.15 | N48: 12006000 | O48: 2.99%
A49: 39 | B49: Others | C49: CANFINHOME | D49: 356.45 | E49: 354.17 | F49: 348.83 | G49: 341.22 | H49: 335.88 | I49: 361.78 | J49: 367.12 | K49: 374.73 | L49: 359.5 | M49: 346.55 | N49: 2224800 | O49: -4.04%
A50: 40 | B50: Oil_Gas | C50: CASTROLIND | D50: 138.10 | E50: 137.93 | F50: 137.02 | G50: 135.93 | H50: 135.02 | I50: 139.02 | J50: 139.93 | K50: 141.02 | L50: 138.85 | M50: 136.85 | N50: 8323200 | O50: -0.65%
A51: 41 | B51: Automobile | C51: CEATLTD | D51: 943.75 | E51: 929.90 | F51: 908.80 | G51: 873.85 | H51: 852.75 | I51: 964.85 | J51: 985.95 | K51: 1020.90 | L51: 951 | M51: 894.95 | N51: 549200 | O51: -23.21%
A52: 42 | B52: Textile | C52: CENTURYTEX | D52: 938.50 | E52: 935.02 | F52: 926.53 | G52: 914.57 | H52: 906.08 | I52: 946.98 | J52: 955.47 | K52: 967.43 | L52: 943.5 | M52: 923.05 | N52: 3769800 | O52: -1.49%
A53: 43 | B53: Power | C53: CESC | D53: 788.85 | E53: 778.82 | F53: 765.28 | G53: 741.72 | H53: 728.18 | I53: 802.38 | J53: 815.92 | K53: 839.48 | L53: 792.35 | M53: 755.25 | N53: 1500900 | O53: 33.88%
A54: 44 | B54: Power | C54: CGPOWER | D54: 29.00 | E54: 28.67 | F54: 27.93 | G54: 26.87 | H54: 26.13 | I54: 29.73 | J54: 30.47 | K54: 31.53 | L54: 29.4 | M54: 27.6 | N54: 6516000 | O54: -29.20%
A55: 45 | B55: Others | C55: CHENNPETRO | D55: 208.40 | E55: 208.62 | F55: 205.83 | G55: 203.27 | H55: 200.48 | I55: 211.18 | J55: 213.97 | K55: 216.53 | L55: 211.4 | M55: 206.05 | N55: 426600 | O55: -20.20%
A56: 46 | B56: Others | C56: CHOLAFIN | D56: 276.80 | E56: 275.92 | F56: 272.43 | G56: 268.07 | H56: 264.58 | I56: 280.28 | J56: 283.77 | K56: 288.13 | L56: 279.4 | M56: 271.55 | N56: 3765000 | O56: 8.11%
A57: 47 | B57: Pharma | C57: CIPLA | D57: 551.60 | E57: 551.02 | F57: 547.03 | G57: 542.47 | H57: 538.48 | I57: 555.58 | J57: 559.57 | K57: 564.13 | L57: 555 | M57: 546.45 | N57: 11627000 | O57: 0.41%
A58: 48 | B58: Others | C58: COALINDIA | D58: 258.50 | E58: 257.50 | F58: 255.95 | G58: 253.40 | H58: 251.85 | I58: 260.05 | J58: 261.60 | K58: 264.15 | L58: 259.05 | M58: 254.95 | N58: 28866200 | O58: 1.84%
A59: 49 | B59: FMCG | C59: COLPAL | D59: 1138.35 | E59: 1134.53 | F59: 1128.42 | G59: 1118.48 | H59: 1112.37 | I59: 1144.47 | J59: 1150.58 | K59: 1160.52 | L59: 1140.65 | M59: 1124.6 | N59: 2450000 | O59: 1.24%
A60: 50 | B60: Others | C60: CONCOR | D60: 555.15 | E60: 554.77 | F60: 551.23 | G60: 547.32 | H60: 543.78 | I60: 558.68 | J60: 562.22 | K60: 566.13 | L60: 558.3 | M60: 550.85 | N60: 2186637 | O60: 2.87%
A61: 51 | B61: Capital_Goods | C61: CUMMINSIND | D61: 756.20 | E61: 756.98 | F61: 748.22 | G61: 740.23 | H61: 731.47 | I61: 764.97 | J61: 773.73 | K61: 781.72 | L61: 765.75 | M61: 749 | N61: 1810900 | O61: -7.80%
A62: 52 | B62: FMCG | C62: DABUR | D62: 393.70 | E62: 392.12 | F62: 389.73 | G62: 385.77 | H62: 383.38 | I62: 396.08 | J62: 398.47 | K62: 402.43 | L62: 394.5 | M62: 388.15 | N62: 12016250 | O62: 0.82%
A63: 53 | B63: Banking | C63: DCBBANK | D63: 240.35 | E63: 237.50 | F63: 230.60 | G63: 220.85 | H63: 213.95 | I63: 247.25 | J63: 254.15 | K63: 263.90 | L63: 244.4 | M63: 227.75 | N63: 1660500 | O63: -15.75%
A64: 54 | B64: Finance | C64: DHFL | D64: 72.10 | E64: 73.45 | F64: 68.25 | G64: 64.40 | H64: 59.20 | I64: 77.30 | J64: 82.50 | K64: 86.35 | L64: 78.65 | M64: 69.6 | N64: 21078000 | O64: -0.46%
A65: 55 | B65: Media | C65: DISHTV | D65: 26.55 | E65: 26.27 | F65: 25.63 | G65: 24.72 | H65: 24.08 | I65: 27.18 | J65: 27.82 | K65: 28.73 | L65: 26.9 | M65: 25.35 | N65: 92036000 | O65: -0.34%
A66: 56 | B66: Pharma | C66: DIVISLAB | D66: 1601.15 | E66: 1590.72 | F66: 1574.83 | G66: 1548.52 | H66: 1532.63 | I66: 1617.03 | J66: 1632.92 | K66: 1659.23 | L66: 1606.6 | M66: 1564.4 | N66: 3116000 | O66: -2.16%
A67: 57 | B67: Realty | C67: DLF | D67: 176.65 | E67: 176.23 | F67: 174.77 | G67: 172.88 | H67: 171.42 | I67: 178.12 | J67: 179.58 | K67: 181.47 | L67: 177.7 | M67: 174.35 | N67: 51767800 | O67: 3.61%
A68: 58 | B68: Pharma | C68: DRREDDY | D68: 2541.40 | E68: 2529.85 | F68: 2501.50 | G68: 2461.60 | H68: 2433.25 | I68: 2569.75 | J68: 2598.10 | K68: 2638.00 | L68: 2558.2 | M68: 2489.95 | N68: 4147750 | O68: -3.03%
A69: 59 | B69: Automobile | C69: EICHERMOT | D69: 19160.45 | E69: 19073.62 | F69: 18893.73 | G69: 18627.02 | H69: 18447.13 | I69: 19340.33 | J69: 19520.22 | K69: 19786.93 | L69: 19253.5 | M69: 18806.9 | N69: 357725 | O69: -2.14%
A70: 60 | B70: Infrastructure | C70: ENGINERSIN | D70: 118.45 | E70: 117.87 | F70: 116.73 | G70: 115.02 | H70: 113.88 | I70: 119.58 | J70: 120.72 | K70: 122.43 | L70: 119 | M70: 116.15 | N70: 7445500 | O70: -0.60%
A71: 61 | B71: Finance | C71: EQUITAS | D71: 120.20 | E71: 122.12 | F71: 117.68 | G71: 115.17 | H71: 110.73 | I71: 124.63 | J71: 129.07 | K71: 131.58 | L71: 126.55 | M71: 119.6 | N71: 10824000 | O71: 7.81%
A72: 62 | B72: Automobile | C72: ESCORTS | D72: 545.70 | E72: 541.13 | F72: 529.67 | G72: 513.63 | H72: 502.17 | I72: 557.17 | J72: 568.63 | K72: 584.67 | L72: 552.6 | M72: 525.1 | N72: 6311800 | O72: -0.30%
A73: 63 | B73: Automobile | C73: EXIDEIND | D73: 203.70 | E73: 202.28 | F73: 200.42 | G73: 197.13 | H73: 195.27 | I73: 205.57 | J73: 207.43 | K73: 210.72 | L73: 204.15 | M73: 199 | N73: 8147200 | O73: -1.39%
A74: 64 | B74: Banking | C74: FEDERALBNK | D74: 104.05 | E74: 103.57 | F74: 102.73 | G74: 101.42 | H74: 100.58 | I74: 104.88 | J74: 105.72 | K74: 107.03 | L74: 104.4 | M74: 102.25 | N74: 54544000 | O74: 9.72%
A75: 65 | B75: Oil_Gas | C75: GAIL | D75: 310.00 | E75: 308.53 | F75: 306.17 | G75: 302.33 | H75: 299.97 | I75: 312.37 | J75: 314.73 | K75: 318.57 | L75: 310.9 | M75: 304.7 | N75: 23456265 | O75: 10.09%
A76: 66 | B76: Pharma | C76: GLENMARK | D76: 457.60 | E76: 458.98 | F76: 451.42 | G76: 445.23 | H76: 437.67 | I76: 465.17 | J76: 472.73 | K76: 478.92 | L76: 466.55 | M76: 452.8 | N76: 7566000 | O76: 10.45%
A77: 67 | B77: Infrastructure | C77: GMRINFRA | D77: 15.10 | E77: 15.18 | F77: 14.92 | G77: 14.73 | H77: 14.47 | I77: 15.37 | J77: 15.63 | K77: 15.82 | L77: 15.45 | M77: 15 | N77: 189405000 | O77: -0.59%
A78: 68 | B78: Others | C78: GODFRYPHLP | D78: 873.40 | E78: 867.70 | F78: 855.40 | G78: 837.40 | H78: 825.10 | I78: 885.70 | J78: 898.00 | K78: 916.00 | L78: 880 | M78: 849.7 | N78: 207900 | O78: -16.81%
A79: 69 | B79: FMCG | C79: GODREJCP | D79: 676.35 | E79: 674.45 | F79: 670.95 | G79: 665.55 | H79: 662.05 | I79: 679.85 | J79: 683.35 | K79: 688.75 | L79: 677.95 | M79: 669.05 | N79: 5230600 | O79: -0.70%
A80: 70 | B80: FMCG | C80: GODREJIND | D80: 484.65 | E80: 482.15 | F80: 478.10 | G80: 471.55 | H80: 467.50 | I80: 488.70 | J80: 492.75 | K80: 499.30 | L80: 486.2 | M80: 475.6 | N80: 805500 | O80: -17.13%
A81: 71 | B81: Cement | C81: GRASIM | D81: 905.05 | E81: 897.38 | F81: 885.77 | G81: 866.48 | H81: 854.87 | I81: 916.67 | J81: 928.28 | K81: 947.57 | L81: 909 | M81: 878.1 | N81: 12885000 | O81: 3.99%
A82: 72 | B82: Others | C82: GSFC | D82: 91.50 | E82: 91.18 | F82: 90.07 | G82: 88.63 | H82: 87.52 | I82: 92.62 | J82: 93.73 | K82: 95.17 | L82: 92.3 | M82: 89.75 | N82: 5682300 | O82: -18.42%
A83: 73 | B83: Others | C83: HAVELLS | D83: 784.30 | E83: 779.12 | F83: 772.33 | G83: 760.37 | H83: 753.58 | I83: 791.08 | J83: 797.87 | K83: 809.83 | L83: 785.9 | M83: 767.15 | N83: 5478000 | O83: -2.32%
A84: 74 | B84: Technology | C84: HCLTECH | D84: 1080.90 | E84: 1075.22 | F84: 1067.98 | G84: 1055.07 | H84: 1047.83 | I84: 1088.13 | J84: 1095.37 | K84: 1108.28 | L84: 1082.45 | M84: 1062.3 | N84: 10308200 | O84: 0.41%
A85: 75 | B85: Finance | C85: HDFC | D85: 2174.30 | E85: 2164.75 | F85: 2150.55 | G85: 2126.80 | H85: 2112.60 | I85: 2188.50 | J85: 2202.70 | K85: 2226.45 | L85: 2178.95 | M85: 2141 | N85: 26909000 | O85: -0.76%
A86: 76 | B86: Banking | C86: HDFCBANK | D86: 2432.05 | E86: 2426.75 | F86: 2407.75 | G86: 2383.45 | H86: 2364.45 | I86: 2451.05 | J86: 2470.05 | K86: 2494.35 | L86: 2445.75 | M86: 2402.45 | N86: 17683000 | O86: 0.89%
A87: 77 | B87: Automobile | C87: HEROMOTOCO | D87: 2591.65 | E87: 2584.43 | F87: 2559.22 | G87: 2526.78 | H87: 2501.57 | I87: 2616.87 | J87: 2642.08 | K87: 2674.52 | L87: 2609.65 | M87: 2552 | N87: 2774800 | O87: -6.95%
A88: 78 | B88: Technology | C88: HEXAWARE | D88: 396.60 | E88: 395.95 | F88: 389.65 | G88: 382.70 | H88: 376.40 | I88: 402.90 | J88: 409.20 | K88: 416.15 | L88: 402.25 | M88: 389 | N88: 2370000 | O88: 1.61%
A89: 79 | B89: Metals | C89: HINDALCO | D89: 202.85 | E89: 200.72 | F89: 197.13 | G89: 191.42 | H89: 187.83 | I89: 206.43 | J89: 210.02 | K89: 215.73 | L89: 204.3 | M89: 195 | N89: 38626000 | O89: 3.00%
A90: 80 | B90: Oil_Gas | C90: HINDPETRO | D90: 295.80 | E90: 294.00 | F90: 290.50 | G90: 285.20 | H90: 281.70 | I90: 299.30 | J90: 302.80 | K90: 308.10 | L90: 297.5 | M90: 288.7 | N90: 15525300 | O90: -4.29%
A91: 81 | B91: FMCG | C91: HINDUNILVR | D91: 1759.15 | E91: 1760.27 | F91: 1747.88 | G91: 1736.62 | H91: 1724.23 | I91: 1771.53 | J91: 1783.92 | K91: 1795.18 | L91: 1772.65 | M91: 1749 | N91: 11626800 | O91: 1.67%
A92: 82 | B92: Metals | C92: HINDZINC | D92: 230.85 | E92: 229.57 | F92: 227.83 | G92: 224.82 | H92: 223.08 | I92: 232.58 | J92: 234.32 | K92: 237.33 | L92: 231.3 | M92: 226.55 | N92: 9305600 | O92: 7.03%
A93: 83 | B93: Finance | C93: IBULHSGFIN | D93: 622.35 | E93: 620.83 | F93: 610.07 | G93: 597.78 | H93: 587.02 | I93: 633.12 | J93: 643.88 | K93: 656.17 | L93: 631.6 | M93: 608.55 | N93: 18456900 | O93: -1.43%
A94: 84 | B94: Banking | C94: ICICIBANK | D94: 433.95 | E94: 431.30 | F94: 427.50 | G94: 421.05 | H94: 417.25 | I94: 437.75 | J94: 441.55 | K94: 448.00 | L94: 435.1 | M94: 424.85 | N94: 98434875 | O94: 0.61%
A95: 85 | B95: Others | C95: ICICIPRULI | D95: 370.25 | E95: 371.93 | F95: 366.92 | G95: 363.58 | H95: 358.57 | I95: 375.27 | J95: 380.28 | K95: 383.62 | L95: 376.95 | M95: 368.6 | N95: 5409000 | O95: 0.75%
A96: 86 | B96: Banking | C96: IDBI | D96: 34.95 | E96: 35.22 | F96: 33.58 | G96: 32.22 | H96: 30.58 | I96: 36.58 | J96: 38.22 | K96: 39.58 | L96: 36.85 | M96: 33.85 | N96: 24014000 | O96: -4.07%
A97: 87 | B97: Telecom | C97: IDEA | D97: 12.15 | E97: 12.10 | F97: 11.90 | G97: 11.65 | H97: 11.45 | I97: 12.35 | J97: 12.55 | K97: 12.80 | L97: 12.3 | M97: 11.85 | N97: 417581236 | O97: 0.45%
A98: 88 | B98: Finance | C98: IDFC | D98: 35.45 | E98: 35.32 | F98: 34.73 | G98: 34.02 | H98: 33.43 | I98: 36.03 | J98: 36.62 | K98: 37.33 | L98: 35.9 | M98: 34.6 | N98: 43520400 | O98: -9.12%
A99: 89 | B99: Banking | C99: IDFCFIRSTB | D99: 42.50 | E99: 42.33 | F99: 41.97 | G99: 41.43 | H99: 41.07 | I99: 42.87 | J99: 43.23 | K99: 43.77 | L99: 42.7 | M99: 41.8 | N99: 131568000 | O99: -3.50%
A100: 90 | B100: Finance | C100: IFCI | D100: 9.40 | E100: 8.98 | F100: 8.47 | G100: 7.53 | H100: 7.02 | I100: 9.92 | J100: 10.43 | K100: 11.37 | L100: 9.5 | M100: 8.05 | N100: 19845000 | O100: -23.58%
A101: 91 | B101: Oil_Gas | C101: IGL | D101: 312.60 | E101: 312.78 | F101: 309.72 | G101: 306.83 | H101: 303.77 | I101: 315.67 | J101: 318.73 | K101: 321.62 | L101: 315.85 | M101: 309.9 | N101: 3987500 | O101: -1.09%
A102: 92 | B102: Cement | C102: INDIACEM | D102: 105.60 | E102: 102.53 | F102: 97.57 | G102: 89.53 | H102: 84.57 | I102: 110.57 | J102: 115.53 | K102: 123.57 | L102: 107.5 | M102: 94.5 | N102: 9994500 | O102: -5.69%
A103: 93 | B103: Banking | C103: INDIANB | D103: 263.00 | E103: 259.75 | F103: 255.90 | G103: 248.80 | H103: 244.95 | I103: 266.85 | J103: 270.70 | K103: 277.80 | L103: 263.6 | M103: 252.65 | N103: 1486000 | O103: -32.64%
A104: 94 | B104: Others | C104: INDIGO | D104: 1602.85 | E104: 1590.00 | F104: 1573.10 | G104: 1543.35 | H104: 1526.45 | I104: 1619.75 | J104: 1636.65 | K104: 1666.40 | L104: 1606.9 | M104: 1560.25 | N104: 2816400 | O104: -4.30%
A105: 95 | B105: Banking | C105: INDUSINDBK | D105: 1454.40 | E105: 1454.18 | F105: 1444.42 | G105: 1434.43 | H105: 1424.67 | I105: 1464.17 | J105: 1473.93 | K105: 1483.92 | L105: 1463.95 | M105: 1444.2 | N105: 11010200 | O105: 2.66%
A106: 96 | B106: Technology | C106: INFIBEAM | D106: 45.70 | E106: 45.27 | F106: 43.88 | G106: 42.07 | H106: 40.68 | I106: 47.08 | J106: 48.47 | K106: 50.28 | L106: 46.65 | M106: 43.45 | N106: 4568000 | O106: -29.38%
A107: 97 | B107: Telecom | C107: INFRATEL | D107: 270.40 | E107: 269.65 | F107: 267.25 | G107: 264.10 | H107: 261.70 | I107: 272.80 | J107: 275.20 | K107: 278.35 | L107: 272.05 | M107: 266.5 | N107: 7554000 | O107: -2.55%
A108: 98 | B108: Technology | C108: INFY | D108: 747.55 | E108: 745.33 | F108: 739.62 | G108: 731.68 | H108: 725.97 | I108: 753.27 | J108: 758.98 | K108: 766.92 | L108: 751.05 | M108: 737.4 | N108: 56098800 | O108: -2.63%
A109: 99 | B109: Oil_Gas | C109: IOC | D109: 154.85 | E109: 154.07 | F109: 152.88 | G109: 150.92 | H109: 149.73 | I109: 156.03 | J109: 157.22 | K109: 159.18 | L109: 155.25 | M109: 152.1 | N109: 42959000 | O109: 2.21%
A110: 100 | B110: Infrastructure | C110: IRB | D110: 97.55 | E110: 96.42 | F110: 93.68 | G110: 89.82 | H110: 87.08 | I110: 100.28 | J110: 103.02 | K110: 106.88 | L110: 99.15 | M110: 92.55 | N110: 4505600 | O110: -16.39%
A111: 101 | B111: FMCG | C111: ITC | D111: 278.60 | E111: 277.93 | F111: 275.47 | G111: 272.33 | H111: 269.87 | I111: 281.07 | J111: 283.53 | K111: 286.67 | L111: 280.4 | M111: 274.8 | N111: 96631200 | O111: -0.40%
A112: 102 | B112: Others | C112: JETAIRWAYS | D112: 70.25 | E112: 66.75 | F112: 58.50 | G112: 46.75 | H112: 38.50 | I112: 78.50 | J112: 86.75 | K112: 98.50 | L112: 75 | M112: 55 | N112: 2409000 | O112: -24.22%
A113: 103 | B113: Metals | C113: JINDALSTEL | D113: 143.70 | E113: 141.78 | F113: 138.92 | G113: 134.13 | H113: 131.27 | I113: 146.57 | J113: 149.43 | K113: 154.22 | L113: 144.65 | M113: 137 | N113: 30298750 | O113: 0.25%
A114: 104 | B114: Others | C114: JISLJALEQS | D114: 28.30 | E114: 28.37 | F114: 27.38 | G114: 26.47 | H114: 25.48 | I114: 29.28 | J114: 30.27 | K114: 31.18 | L114: 29.35 | M114: 27.45 | N114: 18549000 | O114: -14.59%
A115: 105 | B115: Metals | C115: JSWSTEEL | D115: 266.95 | E115: 262.55 | F115: 257.30 | G115: 247.65 | H115: 242.40 | I115: 272.20 | J115: 277.45 | K115: 287.10 | L115: 267.8 | M115: 252.9 | N115: 54038000 | O115: 1.67%
A116: 106 | B116: Others | C116: JUBLFOOD | D116: 1272.45 | E116: 1266.95 | F116: 1252.50 | G116: 1232.55 | H116: 1218.10 | I116: 1286.90 | J116: 1301.35 | K116: 1321.30 | L116: 1281.4 | M116: 1247 | N116: 2733500 | O116: -1.78%
A117: 107 | B117: Others | C117: JUSTDIAL | D117: 747.45 | E117: 743.78 | F117: 732.17 | G117: 716.88 | H117: 705.27 | I117: 759.07 | J117: 770.68 | K117: 785.97 | L117: 755.4 | M117: 728.5 | N117: 2665600 | O117: -6.07%
A118: 108 | B118: Others | C118: KAJARIACER | D118: 575.90 | E118: 572.38 | F118: 567.02 | G118: 558.13 | H118: 552.77 | I118: 581.27 | J118: 586.63 | K118: 595.52 | L118: 577.75 | M118: 563.5 | N118: 2086500 | O118: -4.24%
A119: 109 | B119: Banking | C119: KOTAKBANK | D119: 1486.50 | E119: 1482.35 | F119: 1471.70 | G119: 1456.90 | H119: 1446.25 | I119: 1497.15 | J119: 1507.80 | K119: 1522.60 | L119: 1493 | M119: 1467.55 | N119: 9925600 | O119: -3.43%
A120: 110 | B120: Technology | C120: BSOFT | D120: 89.70 | E120: 89.47 | F120: 88.38 | G120: 87.07 | H120: 85.98 | I120: 90.78 | J120: 91.87 | K120: 93.18 | L120: 90.55 | M120: 88.15 | N120: 2823300 | O120: 0.47%
A121: 111 | B121: Others | C121: KSCL | D121: 466.65 | E121: 465.33 | F121: 456.42 | G121: 446.18 | H121: 437.27 | I121: 475.57 | J121: 484.48 | K121: 494.72 | L121: 474.25 | M121: 455.1 | N121: 432000 | O121: -17.24%
A122: 112 | B122: Banking | C122: KTKBANK | D122: 104.75 | E122: 103.75 | F122: 102.25 | G122: 99.75 | H122: 98.25 | I122: 106.25 | J122: 107.75 | K122: 110.25 | L122: 105.25 | M122: 101.25 | N122: 5170000 | O122: -13.04%
A123: 113 | B123: Finance | C123: L&TFH | D123: 113.50 | E123: 113.43 | F123: 112.27 | G123: 111.03 | H123: 109.87 | I123: 114.67 | J123: 115.83 | K123: 117.07 | L123: 114.6 | M123: 112.2 | N123: 37341000 | O123: -2.32%
A124: 114 | B124: Finance | C124: LICHSGFIN | D124: 551.45 | E124: 550.47 | F124: 546.13 | G124: 540.82 | H124: 536.48 | I124: 555.78 | J124: 560.12 | K124: 565.43 | L124: 554.8 | M124: 545.15 | N124: 7915600 | O124: 2.96%
A125: 115 | B125: Capital_Goods | C125: LT | D125: 1537.80 | E125: 1537.53 | F125: 1523.07 | G125: 1508.33 | H125: 1493.87 | I125: 1552.27 | J125: 1566.73 | K125: 1581.47 | L125: 1552 | M125: 1522.8 | N125: 14288625 | O125: 7.19%
A126: 116 | B126: Pharma | C126: LUPIN | D126: 753.70 | E126: 747.32 | F126: 738.03 | G126: 722.37 | H126: 713.08 | I126: 762.98 | J126: 772.27 | K126: 787.93 | L126: 756.6 | M126: 731.65 | N126: 9781100 | O126: -3.51%
A127: 117 | B127: Automobile | C127: M&M | D127: 641.65 | E127: 640.12 | F127: 636.23 | G127: 630.82 | H127: 626.93 | I127: 645.53 | J127: 649.42 | K127: 654.83 | L127: 644 | M127: 634.7 | N127: 21245000 | O127: -0.76%
A128: 118 | B128: Finance | C128: M&MFIN | D128: 395.00 | E128: 393.25 | F128: 390.20 | G128: 385.40 | H128: 382.35 | I128: 398.05 | J128: 401.10 | K128: 405.90 | L128: 396.3 | M128: 388.45 | N128: 10920000 | O128: -2.78%
A129: 119 | B129: Others | C129: MANAPPURAM | D129: 141.25 | E129: 138.43 | F129: 134.92 | G129: 128.58 | H129: 125.07 | I129: 144.77 | J129: 148.28 | K129: 154.62 | L129: 141.95 | M129: 132.1 | N129: 14418000 | O129: -5.73%
A130: 120 | B130: FMCG | C130: MARICO | D130: 372.20 | E130: 371.55 | F130: 369.20 | G130: 366.20 | H130: 363.85 | I130: 374.55 | J130: 376.90 | K130: 379.90 | L130: 373.9 | M130: 368.55 | N130: 7511400 | O130: 1.16%
A131: 121 | B131: Automobile | C131: MARUTI | D131: 6517.60 | E131: 6500.35 | F131: 6452.70 | G131: 6387.80 | H131: 6340.15 | I131: 6565.25 | J131: 6612.90 | K131: 6677.80 | L131: 6548 | M131: 6435.45 | N131: 2973975 | O131: -2.68%
A132: 122 | B132: FMCG | C132: MCDOWELL-N | D132: 559.95 | E132: 558.57 | F132: 554.53 | G132: 549.12 | H132: 545.08 | I132: 563.98 | J132: 568.02 | K132: 573.43 | L132: 562.6 | M132: 553.15 | N132: 11230000 | O132: -1.20%
A133: 123 | B133: Others | C133: MCX | D133: 803.20 | E133: 799.33 | F133: 792.87 | G133: 782.53 | H133: 776.07 | I133: 809.67 | J133: 816.13 | K133: 826.47 | L133: 805.8 | M133: 789 | N133: 1617700 | O133: -1.99%
A134: 124 | B134: Finance | C134: MFSL | D134: 425.95 | E134: 424.30 | F134: 418.60 | G134: 411.25 | H134: 405.55 | I134: 431.65 | J134: 437.35 | K134: 444.70 | L134: 430 | M134: 416.95 | N134: 1748400 | O134: -0.27%
A135: 125 | B135: Others | C135: MGL | D135: 824.15 | E135: 821.70 | F135: 816.95 | G135: 809.75 | H135: 805.00 | I135: 828.90 | J135: 833.65 | K135: 840.85 | L135: 826.45 | M135: 814.5 | N135: 912600 | O135: -3.86%
A136: 126 | B136: Technology | C136: MINDTREE | D136: 930.05 | E136: 933.73 | F136: 918.02 | G136: 905.98 | H136: 890.27 | I136: 945.77 | J136: 961.48 | K136: 973.52 | L136: 949.45 | M136: 921.7 | N136: 1687800 | O136: 1.01%
A137: 127 | B137: Automobile | C137: MOTHERSUMI | D137: 119.85 | E137: 118.77 | F137: 116.93 | G137: 114.02 | H137: 112.18 | I137: 121.68 | J137: 123.52 | K137: 126.43 | L137: 120.6 | M137: 115.85 | N137: 27107400 | O137: 1.73%
A138: 128 | B138: Automobile | C138: MRF | D138: 55699.70 | E138: 55584.47 | F138: 54698.93 | G138: 53698.17 | H138: 52812.63 | I138: 56585.23 | J138: 57470.77 | K138: 58471.53 | L138: 56470 | M138: 54583.7 | N138: 31770 | O138: 6.04%
A139: 129 | B139: Others | C139: MRPL | D139: 61.90 | E139: 61.42 | F139: 59.88 | G139: 57.87 | H139: 56.33 | I139: 63.43 | J139: 64.97 | K139: 66.98 | L139: 62.95 | M139: 59.4 | N139: 1477000 | O139: -20.08%
A140: 130 | B140: Finance | C140: MUTHOOTFIN | D140: 640.85 | E140: 633.70 | F140: 623.50 | G140: 606.15 | H140: 595.95 | I140: 651.05 | J140: 661.25 | K140: 678.60 | L140: 643.9 | M140: 616.35 | N140: 3231000 | O140: 2.47%
A141: 131 | B141: Others | C141: NATIONALUM | D141: 49.15 | E141: 49.00 | F141: 48.60 | G141: 48.05 | H141: 47.65 | I141: 49.55 | J141: 49.95 | K141: 50.50 | L141: 49.4 | M141: 48.45 | N141: 42238000 | O141: 0.07%
A142: 132 | B142: Others | C142: NBCC | D142: 61.15 | E142: 61.12 | F142: 60.28 | G142: 59.42 | H142: 58.58 | I142: 61.98 | J142: 62.82 | K142: 63.68 | L142: 61.95 | M142: 60.25 | N142: 29118500 | O142: 1.98%
A143: 133 | B143: Infrastructure | C143: NCC | D143: 99.80 | E143: 99.83 | F143: 99.02 | G143: 98.23 | H143: 97.42 | I143: 100.62 | J143: 101.43 | K143: 102.22 | L143: 100.65 | M143: 99.05 | N143: 36408000 | O143: -0.37%
A144: 134 | B144: Others | C144: NESTLEIND | D144: 11736.45 | E144: 11696.20 | F144: 11642.40 | G144: 11548.35 | H144: 11494.55 | I144: 11790.25 | J144: 11844.05 | K144: 11938.10 | L144: 11750 | M144: 11602.15 | N144: 324400 | O144: -0.46%
A145: 135 | B145: Power | C145: NHPC | D145: 24.65 | E145: 24.47 | F145: 23.93 | G145: 23.22 | H145: 22.68 | I145: 25.18 | J145: 25.72 | K145: 26.43 | L145: 25 | M145: 23.75 | N145: 5886000 | O145: -24.31%
A146: 136 | B146: Technology | C146: NIITTECH | D146: 1335.45 | E146: 1328.97 | F146: 1320.33 | G146: 1305.22 | H146: 1296.58 | I146: 1344.08 | J146: 1352.72 | K146: 1367.83 | L146: 1337.6 | M146: 1313.85 | N146: 1369500 | O146: -4.95%
A147: 137 | B147: Metals | C147: NMDC | D147: 111.15 | E147: 110.52 | F147: 109.63 | G147: 108.12 | H147: 107.23 | I147: 112.03 | J147: 112.92 | K147: 114.43 | L147: 111.4 | M147: 109 | N147: 26100000 | O147: 0.35%
A148: 138 | B148: Power | C148: NTPC | D148: 138.85 | E148: 138.07 | F148: 136.18 | G148: 133.52 | H148: 131.63 | I148: 140.73 | J148: 142.62 | K148: 145.28 | L148: 139.95 | M148: 135.4 | N148: 66782400 | O148: 15.88%
A149: 139 | B149: Technology | C149: OFSS | D149: 3211.90 | E149: 3175.62 | F149: 3131.28 | G149: 3050.67 | H149: 3006.33 | I149: 3256.23 | J149: 3300.57 | K149: 3381.18 | L149: 3219.95 | M149: 3095 | N149: 281400 | O149: 2.01%
A150: 140 | B150: Oil_Gas | C150: OIL | D150: 176.55 | E150: 176.32 | F150: 175.28 | G150: 174.02 | H150: 172.98 | I150: 177.58 | J150: 178.62 | K150: 179.88 | L150: 177.35 | M150: 175.05 | N150: 6804798 | O150: 5.04%
A151: 141 | B151: Oil_Gas | C151: ONGC | D151: 166.35 | E151: 166.67 | F151: 164.98 | G151: 163.62 | H151: 161.93 | I151: 168.03 | J151: 169.72 | K151: 171.08 | L151: 168.35 | M151: 165.3 | N151: 60468750 | O151: 3.64%
A152: 142 | B152: Banking | C152: ORIENTBANK | D152: 94.00 | E152: 93.08 | F152: 91.47 | G152: 88.93 | H152: 87.32 | I152: 95.62 | J152: 97.23 | K152: 99.77 | L152: 94.7 | M152: 90.55 | N152: 4312000 | O152: -28.79%
A153: 143 | B153: Textile | C153: PAGEIND | D153: 20715.00 | E153: 20643.57 | F153: 20511.68 | G153: 20308.37 | H153: 20176.48 | I153: 20846.88 | J153: 20978.77 | K153: 21182.08 | L153: 20775.45 | M153: 20440.25 | N153: 167175 | O153: -5.36%
A154: 144 | B154: Others | C154: PCJEWELLER | D154: 47.45 | E154: 48.20 | F154: 45.80 | G154: 44.15 | H154: 41.75 | I154: 49.85 | J154: 52.25 | K154: 53.90 | L154: 50.6 | M154: 46.55 | N154: 8801000 | O154: -10.63%
A155: 145 | B155: Pharma | C155: PEL | D155: 1902.30 | E155: 1911.62 | F155: 1849.68 | G155: 1797.07 | H155: 1735.13 | I155: 1964.23 | J155: 2026.17 | K155: 2078.78 | L155: 1973.55 | M155: 1859 | N155: 3208750 | O155: -7.16%
A156: 146 | B156: Oil_Gas | C156: PETRONET | D156: 242.05 | E156: 241.47 | F156: 239.63 | G156: 237.22 | H156: 235.38 | I156: 243.88 | J156: 245.72 | K156: 248.13 | L156: 243.3 | M156: 239.05 | N156: 11652000 | O156: -0.38%
A157: 147 | B157: Finance | C157: PFC | D157: 134.60 | E157: 133.75 | F157: 132.10 | G157: 129.60 | H157: 127.95 | I157: 136.25 | J157: 137.90 | K157: 140.40 | L157: 135.4 | M157: 131.25 | N157: 37435600 | O157: 6.92%
A158: 148 | B158: FMCG | C158: PIDILITIND | D158: 1236.40 | E158: 1233.67 | F158: 1225.28 | G158: 1214.17 | H158: 1205.78 | I158: 1244.78 | J158: 1253.17 | K158: 1264.28 | L158: 1242.05 | M158: 1222.55 | N158: 2521000 | O158: 1.80%
A159: 149 | B159: Banking | C159: PNB | D159: 77.25 | E159: 77.13 | F159: 76.57 | G159: 75.88 | H159: 75.32 | I159: 77.82 | J159: 78.38 | K159: 79.07 | L159: 77.7 | M159: 76.45 | N159: 117922000 | O159: -0.03%
A160: 150 | B160: Power | C160: POWERGRID | D160: 202.00 | E160: 201.33 | F160: 200.22 | G160: 198.43 | H160: 197.32 | I160: 203.12 | J160: 204.23 | K160: 206.02 | L160: 202.45 | M160: 199.55 | N160: 30096000 | O160: -0.16%
A161: 151 | B161: Others | C161: PVR | D161: 1626.95 | E161: 1615.18 | F161: 1597.87 | G161: 1568.78 | H161: 1551.47 | I161: 1644.27 | J161: 1661.58 | K161: 1690.67 | L161: 1632.5 | M161: 1586.1 | N161: 813600 | O161: -3.78%
A162: 152 | B162: Cement | C162: RAMCOCEM | D162: 801.45 | E162: 798.83 | F162: 792.17 | G162: 782.88 | H162: 776.22 | I162: 808.12 | J162: 814.78 | K162: 824.07 | L162: 805.5 | M162: 789.55 | N162: 997600 | O162: 5.95%
A163: 153 | B163: Others | C163: RAYMOND | D163: 749.55 | E163: 744.43 | F163: 735.12 | G163: 720.68 | H163: 711.37 | I163: 758.87 | J163: 768.18 | K163: 782.62 | L163: 753.75 | M163: 730 | N163: 2751200 | O163: 0.12%
A164: 154 | B164: Banking | C164: RBLBANK | D164: 623.70 | E164: 622.68 | F164: 619.02 | G164: 614.33 | H164: 610.67 | I164: 627.37 | J164: 631.03 | K164: 635.72 | L164: 626.35 | M164: 618 | N164: 6007200 | O164: -8.60%
A165: 155 | B165: Power | C165: RECLTD | D165: 161.00 | E165: 159.52 | F165: 156.73 | G165: 152.47 | H165: 149.68 | I165: 163.78 | J165: 166.57 | K165: 170.83 | L165: 162.3 | M165: 155.25 | N165: 31710000 | O165: 11.80%
A166: 156 | B166: Finance | C166: RELCAPITAL | D166: 63.40 | E166: 64.50 | F166: 61.25 | G166: 59.10 | H166: 55.85 | I166: 66.65 | J166: 69.90 | K166: 72.05 | L166: 67.75 | M166: 62.35 | N166: 12468000 | O166: -7.21%
A167: 157 | B167: Oil_Gas | C167: RELIANCE | D167: 1296.20 | E167: 1284.05 | F167: 1269.40 | G167: 1242.60 | H167: 1227.95 | I167: 1310.85 | J167: 1325.50 | K167: 1352.30 | L167: 1298.7 | M167: 1257.25 | N167: 45583500 | O167: -1.61%
A168: 158 | B168: Power | C168: RELINFRA | D168: 51.75 | E168: 52.92 | F168: 49.23 | G168: 46.72 | H168: 43.03 | I168: 55.43 | J168: 59.12 | K168: 61.63 | L168: 56.6 | M168: 50.4 | N168: 12086100 | O168: -7.46%
A169: 159 | B169: Others | C169: REPCOHOME | D169: 367.25 | E169: 366.67 | F169: 361.83 | G169: 356.42 | H169: 351.58 | I169: 372.08 | J169: 376.92 | K169: 382.33 | L169: 371.5 | M169: 361.25 | N169: 171600 | O169: -27.44%
A170: 160 | B170: Power | C170: RPOWER | D170: 4.05 | E170: 4.22 | F170: 3.78 | G170: 3.52 | H170: 3.08 | I170: 4.48 | J170: 4.92 | K170: 5.18 | L170: 4.65 | M170: 3.95 | N170: 46768000 | O170: -9.48%
A171: 161 | B171: Metals | C171: SAIL | D171: 50.50 | E171: 49.82 | F171: 48.93 | G171: 47.37 | H171: 46.48 | I171: 51.38 | J171: 52.27 | K171: 53.83 | L171: 50.7 | M171: 48.25 | N171: 109176000 | O171: -2.01%
A172: 162 | B172: Banking | C172: SBIN | D172: 356.05 | E172: 354.53 | F172: 352.57 | G172: 349.08 | H172: 347.12 | I172: 358.02 | J172: 359.98 | K172: 363.47 | L172: 356.5 | M172: 351.05 | N172: 79485000 | O172: 1.15%
A173: 163 | B173: Cement | C173: SHREECEM | D173: 21528.00 | E173: 21400.90 | F173: 21132.25 | G173: 20736.50 | H173: 20467.85 | I173: 21796.65 | J173: 22065.30 | K173: 22461.05 | L173: 21669.55 | M173: 21005.15 | N173: 127100 | O173: 1.72%
A174: 164 | B174: Capital_Goods | C174: SIEMENS | D174: 1253.95 | E174: 1250.95 | F174: 1243.15 | G174: 1232.35 | H174: 1224.55 | I174: 1261.75 | J174: 1269.55 | K174: 1280.35 | L174: 1258.75 | M174: 1240.15 | N174: 1278750 | O174: 4.82%
A175: 165 | B175: Banking | C175: SOUTHBANK | D175: 13.50 | E175: 13.37 | F175: 13.18 | G175: 12.87 | H175: 12.68 | I175: 13.68 | J175: 13.87 | K175: 14.18 | L175: 13.55 | M175: 13.05 | N175: 42917595 | O175: -22.46%
A176: 166 | B176: Textile | C176: SRF | D176: 2970.60 | E176: 2965.38 | F176: 2933.82 | G176: 2897.03 | H176: 2865.47 | I176: 3002.17 | J176: 3033.73 | K176: 3070.52 | L176: 2996.95 | M176: 2928.6 | N176: 938750 | O176: -0.03%
A177: 167 | B177: Finance | C177: SRTRANSFIN | D177: 1118.70 | E177: 1111.72 | F177: 1103.43 | G177: 1088.17 | H177: 1079.88 | I177: 1126.98 | J177: 1135.27 | K177: 1150.53 | L177: 1120 | M177: 1096.45 | N177: 4740600 | O177: -5.38%
A178: 168 | B178: Pharma | C178: STAR | D178: 410.90 | E178: 407.90 | F178: 399.85 | G178: 388.80 | H178: 380.75 | I178: 418.95 | J178: 427.00 | K178: 438.05 | L178: 415.95 | M178: 396.85 | N178: 2486400 | O178: -0.80%
A179: 169 | B179: Pharma | C179: SUNPHARMA | D179: 386.75 | E179: 384.32 | F179: 380.38 | G179: 374.02 | H179: 370.08 | I179: 390.68 | J179: 394.62 | K179: 400.98 | L179: 388.25 | M179: 377.95 | N179: 54519300 | O179: 0.86%
A180: 170 | B180: Media | C180: SUNTV | D180: 521.50 | E180: 518.77 | F180: 514.23 | G180: 506.97 | H180: 502.43 | I180: 526.03 | J180: 530.57 | K180: 537.83 | L180: 523.3 | M180: 511.5 | N180: 6194000 | O180: -1.32%
A181: 171 | B181: Power | C181: SUZLON | D181: 5.20 | E181: 5.00 | F181: 4.70 | G181: 4.20 | H181: 3.90 | I181: 5.50 | J181: 5.80 | K181: 6.30 | L181: 5.3 | M181: 4.5 | N181: 132544000 | O181: -13.41%
A182: 172 | B182: Banking | C182: SYNDIBANK | D182: 38.65 | E182: 37.77 | F182: 36.63 | G182: 34.62 | H182: 33.48 | I182: 39.78 | J182: 40.92 | K182: 42.93 | L182: 38.9 | M182: 35.75 | N182: 11145000 | O182: -27.79%
A183: 173 | B183: Fertilisers | C183: TATACHEM | D183: 616.40 | E183: 611.95 | F183: 604.05 | G183: 591.70 | H183: 583.80 | I183: 624.30 | J183: 632.20 | K183: 644.55 | L183: 619.85 | M183: 599.6 | N183: 3363300 | O183: 6.00%
A184: 174 | B184: Telecom | C184: TATACOMM | D184: 488.10 | E184: 481.68 | F184: 471.52 | G184: 454.93 | H184: 444.77 | I184: 498.27 | J184: 508.43 | K184: 525.02 | L184: 491.85 | M184: 465.1 | N184: 1041000 | O184: -4.76%
A185: 175 | B185: Technology | C185: TATAELXSI | D185: 859.45 | E185: 859.12 | F185: 850.53 | G185: 841.62 | H185: 833.03 | I185: 868.03 | J185: 876.62 | K185: 885.53 | L185: 867.7 | M185: 850.2 | N185: 1765200 | O185: -0.74%
A186: 176 | B186: FMCG | C186: TATAGLOBAL | D186: 260.05 | E186: 259.42 | F186: 257.83 | G186: 255.62 | H186: 254.03 | I186: 261.63 | J186: 263.22 | K186: 265.43 | L186: 261 | M186: 257.2 | N186: 11232000 | O186: -0.61%
A187: 177 | B187: Automobile | C187: TATAMOTORS | D187: 160.40 | E187: 159.32 | F187: 157.68 | G187: 154.97 | H187: 153.33 | I187: 162.03 | J187: 163.67 | K187: 166.38 | L187: 160.95 | M187: 156.6 | N187: 70185000 | O187: 2.32%
A188: 178 | B188: Automobile | C188: TATAMTRDVR | D188: 78.10 | E188: 77.63 | F188: 76.92 | G188: 75.73 | H188: 75.02 | I188: 78.82 | J188: 79.53 | K188: 80.72 | L188: 78.35 | M188: 76.45 | N188: 29896800 | O188: -0.44%
A189: 179 | B189: Power | C189: TATAPOWER | D189: 66.70 | E189: 66.42 | F189: 65.23 | G189: 63.77 | H189: 62.58 | I189: 67.88 | J189: 69.07 | K189: 70.53 | L189: 67.6 | M189: 64.95 | N189: 59355000 | O189: 2.69%
A190: 180 | B190: Metals | C190: TATASTEEL | D190: 498.80 | E190: 491.28 | F190: 481.07 | G190: 463.33 | H190: 453.12 | I190: 509.02 | J190: 519.23 | K190: 536.97 | L190: 501.5 | M190: 473.55 | N190: 34062344 | O190: 3.84%
A191: 181 | B191: Technology | C191: TCS | D191: 2271.65 | E191: 2267.88 | F191: 2256.92 | G191: 2242.18 | H191: 2231.22 | I191: 2282.62 | J191: 2293.58 | K191: 2308.32 | L191: 2278.85 | M191: 2253.15 | N191: 14796750 | O191: -2.15%
A192: 182 | B192: Technology | C192: TECHM | D192: 726.45 | E192: 726.02 | F192: 722.43 | G192: 718.42 | H192: 714.83 | I192: 730.03 | J192: 733.62 | K192: 737.63 | L192: 729.6 | M192: 722 | N192: 13069200 | O192: 3.41%
A193: 183 | B193: FMCG | C193: TITAN | D193: 1316.10 | E193: 1310.50 | F193: 1302.60 | G193: 1289.10 | H193: 1281.20 | I193: 1324.00 | J193: 1331.90 | K193: 1345.40 | L193: 1318.4 | M193: 1297 | N193: 9036000 | O193: 0.58%
A194: 184 | B194: Pharma | C194: TORNTPHARM | D194: 1541.60 | E194: 1530.18 | F194: 1513.37 | G194: 1485.13 | H194: 1468.32 | I194: 1558.42 | J194: 1575.23 | K194: 1603.47 | L194: 1547 | M194: 1501.95 | N194: 631000 | O194: -1.87%
A195: 185 | B195: Power | C195: TORNTPOWER | D195: 270.35 | E195: 262.08 | F195: 252.17 | G195: 233.98 | H195: 224.07 | I195: 280.27 | J195: 290.18 | K195: 308.37 | L195: 272 | M195: 243.9 | N195: 4104000 | O195: 48.37%
A196: 186 | B196: Media | C196: TV18BRDCST | D196: 24.00 | E196: 23.82 | F196: 23.28 | G196: 22.57 | H196: 22.03 | I196: 24.53 | J196: 25.07 | K196: 25.78 | L196: 24.35 | M196: 23.1 | N196: 22386000 | O196: -9.27%
A197: 187 | B197: Automobile | C197: TVSMOTOR | D197: 437.35 | E197: 437.32 | F197: 432.03 | G197: 426.72 | H197: 421.43 | I197: 442.63 | J197: 447.92 | K197: 453.23 | L197: 442.6 | M197: 432 | N197: 7845400 | O197: 0.30%
A198: 188 | B198: FMCG | C198: UBL | D198: 1341.30 | E198: 1345.98 | F198: 1332.32 | G198: 1323.33 | H198: 1309.67 | I198: 1354.97 | J198: 1368.63 | K198: 1377.62 | L198: 1359.65 | M198: 1337 | N198: 1330000 | O198: 3.04%
A199: 189 | B199: Finance | C199: UJJIVAN | D199: 287.60 | E199: 286.23 | F199: 276.67 | G199: 265.73 | H199: 256.17 | I199: 297.17 | J199: 306.73 | K199: 317.67 | L199: 295.8 | M199: 275.3 | N199: 6529600 | O199: -6.95%
A200: 190 | B200: Cement | C200: ULTRACEMCO | D200: 4606.75 | E200: 4596.55 | F200: 4556.40 | G200: 4506.05 | H200: 4465.90 | I200: 4646.90 | J200: 4687.05 | K200: 4737.40 | L200: 4636.7 | M200: 4546.2 | N200: 2331600 | O200: 1.92%
A201: 191 | B201: Banking | C201: UNIONBANK | D201: 75.55 | E201: 75.57 | F201: 74.88 | G201: 74.22 | H201: 73.53 | I201: 76.23 | J201: 76.92 | K201: 77.58 | L201: 76.25 | M201: 74.9 | N201: 37226000 | O201: -3.94%
A202: 192 | B202: Fertilisers | C202: UPL | D202: 932.20 | E202: 927.48 | F202: 916.52 | G202: 900.83 | H202: 889.87 | I202: 943.17 | J202: 954.13 | K202: 969.82 | L202: 938.45 | M202: 911.8 | N202: 11041200 | O202: -3.02%
A203: 193 | B203: Metals | C203: VEDL | D203: 170.85 | E203: 169.97 | F203: 168.03 | G203: 165.22 | H203: 163.28 | I203: 172.78 | J203: 174.72 | K203: 177.53 | L203: 171.9 | M203: 167.15 | N203: 53620100 | O203: 1.76%
A204: 194 | B204: Others | C204: VGUARD | D204: 238.05 | E204: 236.60 | F204: 233.20 | G204: 228.35 | H204: 224.95 | I204: 241.45 | J204: 244.85 | K204: 249.70 | L204: 240 | M204: 231.75 | N204: 1131000 | O204: -21.29%
A205: 195 | B205: Capital_Goods | C205: VOLTAS | D205: 650.30 | E205: 644.43 | F205: 635.87 | G205: 621.43 | H205: 612.87 | I205: 658.87 | J205: 667.43 | K205: 681.87 | L205: 653 | M205: 630 | N205: 5215000 | O205: 14.26%
A206: 196 | B206: Technology | C206: WIPRO | D206: 286.05 | E206: 284.85 | F206: 282.85 | G206: 279.65 | H206: 277.65 | I206: 288.05 | J206: 290.05 | K206: 293.25 | L206: 286.85 | M206: 281.65 | N206: 35734400 | O206: -5.37%
... 18 more rows

Sheet Cash Intra
M5: Back to Main Page
A6: FOR INTRA DAY TRADING | K6: =Main!B10 -> 2019-06-26
A8: Sr.no | B8: Scrip | C8: CLOSE RATE | D8: Pivot Point | E8: Supports | H8: Resistances
C9: Point | E9: S1 | F9: S2 | G9: S3 | H9: R1 | I9: R2 | J9: R3 | K9: HIGH | L9: LOW | M9: Total Trade Quanity in Lakhs
A10: 1 | B10: Nifty 50 | C10: 11796.45 | D10: 11753.95 | E10: 11693.50 | F10: 11590.55 | G10: 11530.10 | H10: 11856.90 | I10: 11917.35 | J10: 12020.30 | K10: 11814.4 | L10: 11651
A11: 2 | B11: Nifty Bank | C11: 30847.05 | D11: 30737.23 | E11: 30561.22 | F11: 30275.38 | G11: 30099.37 | H11: 31023.07 | I11: 31199.08 | J11: 31484.92 | K11: 30913.25 | L11: 30451.4
A12: 3 | B12: Nifty CPSE | C12: 2353.05 | D12: 2343.88 | E12: 2329.27 | F12: 2305.48 | G12: 2290.87 | H12: 2367.67 | I12: 2382.28 | J12: 2406.07 | K12: 2358.5 | L12: 2320.1
A13: 4 | B13: Nifty Infra | C13: 3332.55 | D13: 3326.90 | E13: 3314.45 | F13: 3296.35 | G13: 3283.90 | H13: 3345.00 | I13: 3357.45 | J13: 3375.55 | K13: 3339.35 | L13: 3308.8
A14: 5 | B14: Nifty IT | C14: 16214.45 | D14: 16172.67 | E14: 16092.38 | F14: 15970.32 | G14: 15890.03 | H14: 16294.73 | I14: 16375.02 | J14: 16497.08 | K14: 16252.95 | L14: 16050.6
A15: 6 | B15: Nifty PSE | C15: 3628.65 | D15: 3612.42 | E15: 3589.43 | F15: 3550.22 | G15: 3527.23 | H15: 3651.63 | I15: 3674.62 | J15: 3713.83 | K15: 3635.4 | L15: 3573.2
A16: 7 | B16: Nifty Midcap 50 | C16: 4839.15 | D16: 4823.37 | E16: 4804.03 | F16: 4768.92 | G16: 4749.58 | H16: 4858.48 | I16: 4877.82 | J16: 4912.93 | K16: 4842.7 | L16: 4788.25
A17: 8 | B17: ABB | C17: 1559.05 | D17: 1555.98 | E17: 1543.97 | F17: 1528.88 | G17: 1516.87 | H17: 1571.07 | I17: 1583.08 | J17: 1598.17 | K17: 1568 | L17: 1540.9 | M17: 0.27457
A18: 9 | B18: ACC | C18: 1554.55 | D18: 1547.60 | E18: 1533.30 | F18: 1512.05 | G18: 1497.75 | H18: 1568.85 | I18: 1583.15 | J18: 1604.40 | K18: 1561.9 | L18: 1526.35 | M18: 4.75097
A19: 10 | B19: AUBANK | C19: 698.75 | D19: 696.55 | E19: 688.20 | F19: 677.65 | G19: 669.30 | H19: 707.10 | I19: 715.45 | J19: 726.00 | K19: 704.9 | L19: 686 | M19: 6.5842
A20: 11 | B20: ADANIPORTS | C20: 405.65 | D20: 405.17 | E20: 403.13 | F20: 400.62 | G20: 398.58 | H20: 407.68 | I20: 409.72 | J20: 412.23 | K20: 407.2 | L20: 402.65 | M20: 20.99347
A21: 12 | B21: ADANIPOWER | C21: 50.55 | D21: 50.12 | E21: 49.33 | F21: 48.12 | G21: 47.33 | H21: 51.33 | I21: 52.12 | J21: 53.33 | K21: 50.9 | L21: 48.9 | M21: 147.32369
A22: 13 | B22: ABCAPITAL | C22: 92.05 | D22: 92.07 | E22: 91.33 | F22: 90.62 | G22: 89.88 | H22: 92.78 | I22: 93.52 | J22: 94.23 | K22: 92.8 | L22: 91.35 | M22: 5.00352
A23: 14 | B23: ABFRL | C23: 212.65 | D23: 209.37 | E23: 203.13 | F23: 193.62 | G23: 187.38 | H23: 218.88 | I23: 225.12 | J23: 234.63 | K23: 215.6 | L23: 199.85 | M23: 7.76725
A24: 15 | B24: AJANTPHARM | C24: 974.35 | D24: 962.82 | E24: 947.93 | F24: 921.52 | G24: 906.63 | H24: 989.23 | I24: 1004.12 | J24: 1030.53 | K24: 977.7 | L24: 936.4 | M24: 3.50276
A25: 16 | B25: ALKEM | C25: 1697.4 | D25: 1706.18 | E25: 1677.22 | F25: 1657.03 | G25: 1628.07 | H25: 1726.37 | I25: 1755.33 | J25: 1775.52 | K25: 1735.15 | L25: 1686 | M25: 0.28254
A26: 17 | B26: AMARAJABAT | C26: 614.75 | D26: 611.25 | E26: 598.50 | F26: 582.25 | G26: 569.50 | H26: 627.50 | I26: 640.25 | J26: 656.50 | K26: 624 | L26: 595 | M26: 8.73777
A27: 18 | B27: AMBUJACEM | C27: 215.15 | D27: 214.15 | E27: 212.30 | F27: 209.45 | G27: 207.60 | H27: 217.00 | I27: 218.85 | J27: 221.70 | K27: 216 | L27: 211.3 | M27: 22.74581
A28: 19 | B28: APOLLOHOSP | C28: 1324.85 | D28: 1328.75 | E28: 1306.05 | F28: 1287.25 | G28: 1264.55 | H28: 1347.55 | I28: 1370.25 | J28: 1389.05 | K28: 1351.45 | L28: 1309.95 | M28: 11.56668
A29: 20 | B29: APOLLOTYRE | C29: 200.4 | D29: 201.00 | E29: 196.50 | F29: 192.60 | G29: 188.10 | H29: 204.90 | I29: 209.40 | J29: 213.30 | K29: 205.5 | L29: 197.1 | M29: 59.81431
A30: 21 | B30: ASHOKLEY | C30: 85.7 | D30: 86.90 | E30: 83.90 | F30: 82.10 | G30: 79.10 | H30: 88.70 | I30: 91.70 | J30: 93.50 | K30: 89.9 | L30: 85.1 | M30: 208.36957
A31: 22 | B31: ASIANPAINT | C31: 1363.1 | D31: 1365.30 | E31: 1358.15 | F31: 1353.20 | G31: 1346.05 | H31: 1370.25 | I31: 1377.40 | J31: 1382.35 | K31: 1372.45 | L31: 1360.35 | M31: 13.88994
A32: 23 | B32: AUROPHARMA | C32: 599.7 | D32: 592.35 | E32: 583.35 | F32: 567.00 | G32: 558.00 | H32: 608.70 | I32: 617.70 | J32: 634.05 | K32: 601.35 | L32: 576 | M32: 33.27392
A33: 24 | B33: DMART | C33: 1330.65 | D33: 1325.02 | E33: 1312.63 | F33: 1294.62 | G33: 1282.23 | H33: 1343.03 | I33: 1355.42 | J33: 1373.43 | K33: 1337.4 | L33: 1307 | M33: 1.37823
A34: 25 | B34: AXISBANK | C34: 781.65 | D34: 773.73 | E34: 764.47 | F34: 747.28 | G34: 738.02 | H34: 790.92 | I34: 800.18 | J34: 817.37 | K34: 783 | L34: 756.55 | M34: 100.44436
A35: 26 | B35: BAJAJ-AUTO | C35: 2843.7 | D35: 2827.88 | E35: 2801.82 | F35: 2759.93 | G35: 2733.87 | H35: 2869.77 | I35: 2895.83 | J35: 2937.72 | K35: 2853.95 | L35: 2786 | M35: 4.24591
A36: 27 | B36: BAJFINANCE | C36: 3579.85 | D36: 3565.40 | E36: 3544.80 | F36: 3509.75 | G36: 3489.15 | H36: 3600.45 | I36: 3621.05 | J36: 3656.10 | K36: 3586 | L36: 3530.35 | M36: 8.27869
A37: 28 | B37: BAJAJFINSV | C37: 8346.15 | D37: 8357.60 | E37: 8315.55 | F37: 8284.95 | G37: 8242.90 | H37: 8388.20 | I37: 8430.25 | J37: 8460.85 | K37: 8399.65 | L37: 8327 | M37: 1.08873
A38: 29 | B38: BAJAJHLDNG | C38: 3636.95 | D38: 3618.65 | E38: 3588.30 | F38: 3539.65 | G38: 3509.30 | H38: 3667.30 | I38: 3697.65 | J38: 3746.30 | K38: 3649 | L38: 3570 | M38: 0.18228
A39: 30 | B39: BALKRISIND | C39: 762.65 | D39: 755.88 | E39: 741.77 | F39: 720.88 | G39: 706.77 | H39: 776.77 | I39: 790.88 | J39: 811.77 | K39: 770 | L39: 735 | M39: 11.81375
A40: 31 | B40: BANDHANBNK | C40: 527.7 | D40: 529.72 | E40: 523.98 | F40: 520.27 | G40: 514.53 | H40: 533.43 | I40: 539.17 | J40: 542.88 | K40: 535.45 | L40: 526 | M40: 2.03489
A41: 32 | B41: BANKBARODA | C41: 120 | D41: 119.37 | E41: 118.33 | F41: 116.67 | G41: 115.63 | H41: 121.03 | I41: 122.07 | J41: 123.73 | K41: 120.4 | L41: 117.7 | M41: 141.07941
A42: 33 | B42: BANKINDIA | C42: 86.55 | D42: 86.45 | E42: 85.85 | F42: 85.15 | G42: 84.55 | H42: 87.15 | I42: 87.75 | J42: 88.45 | K42: 87.05 | L42: 85.75 | M42: 36.9725
A43: 34 | B43: BATAINDIA | C43: 1413.5 | D43: 1412.68 | E43: 1400.52 | F43: 1387.53 | G43: 1375.37 | H43: 1425.67 | I43: 1437.83 | J43: 1450.82 | K43: 1424.85 | L43: 1399.7 | M43: 5.72227
A44: 35 | B44: BERGEPAINT | C44: 317.85 | D44: 316.30 | E44: 313.70 | F44: 309.55 | G44: 306.95 | H44: 320.45 | I44: 323.05 | J44: 327.20 | K44: 318.9 | L44: 312.15 | M44: 3.16027
A45: 36 | B45: BEL | C45: 113.9 | D45: 113.95 | E45: 112.60 | F45: 111.30 | G45: 109.95 | H45: 115.25 | I45: 116.60 | J45: 117.90 | K45: 115.3 | L45: 112.65 | M45: 110.01089
A46: 37 | B46: BHARATFORG | C46: 435.85 | D46: 434.38 | E46: 431.62 | F46: 427.38 | G46: 424.62 | H46: 438.62 | I46: 441.38 | J46: 445.62 | K46: 437.15 | L46: 430.15 | M46: 13.58199
A47: 38 | B47: BHEL | C47: 73.9 | D47: 73.48 | E47: 72.72 | F47: 71.53 | G47: 70.77 | H47: 74.67 | I47: 75.43 | J47: 76.62 | K47: 74.25 | L47: 72.3 | M47: 83.06005
A48: 39 | B48: BPCL | C48: 393.1 | D48: 388.90 | E48: 383.20 | F48: 373.30 | G48: 367.60 | H48: 398.80 | I48: 404.50 | J48: 414.40 | K48: 394.6 | L48: 379 | M48: 62.04969
A49: 40 | B49: BHARTIARTL | C49: 348.6 | D49: 348.38 | E49: 344.77 | F49: 340.93 | G49: 337.32 | H49: 352.22 | I49: 355.83 | J49: 359.67 | K49: 352 | L49: 344.55 | M49: 27.96405
A50: 41 | B50: INFRATEL | C50: 269.8 | D50: 269.45 | E50: 266.35 | F50: 262.90 | G50: 259.80 | H50: 272.90 | I50: 276.00 | J50: 279.45 | K50: 272.55 | L50: 266 | M50: 20.09198
A51: 42 | B51: BIOCON | C51: 246.3 | D51: 247.17 | E51: 244.33 | F51: 242.37 | G51: 239.53 | H51: 249.13 | I51: 251.97 | J51: 253.93 | K51: 250 | L51: 245.2 | M51: 17.5451
A52: 43 | B52: BBTC | C52: 955.1 | D52: 959.70 | E52: 945.40 | F52: 935.70 | G52: 921.40 | H52: 969.40 | I52: 983.70 | J52: 993.40 | K52: 974 | L52: 950 | M52: 0.39595
A53: 44 | B53: BOSCHLTD | C53: 16469.3 | D53: 16424.07 | E53: 16346.43 | F53: 16223.57 | G53: 16145.93 | H53: 16546.93 | I53: 16624.57 | J53: 16747.43 | K53: 16501.7 | L53: 16301.2 | M53: 0.04962
A54: 45 | B54: BRITANNIA | C54: 2807.7 | D54: 2793.22 | E54: 2768.08 | F54: 2728.47 | G54: 2703.33 | H54: 2832.83 | I54: 2857.97 | J54: 2897.58 | K54: 2818.35 | L54: 2753.6 | M54: 3.04799
A55: 46 | B55: CADILAHC | C55: 230.4 | D55: 228.78 | E55: 224.77 | F55: 219.13 | G55: 215.12 | H55: 234.42 | I55: 238.43 | J55: 244.07 | K55: 232.8 | L55: 223.15 | M55: 23.27066
A56: 47 | B56: CANBK | C56: 274.55 | D56: 273.98 | E56: 271.57 | F56: 268.58 | G56: 266.17 | H56: 276.97 | I56: 279.38 | J56: 282.37 | K56: 276.4 | L56: 271 | M56: 31.48894
A57: 48 | B57: CASTROLIND | C57: 137.55 | D57: 137.38 | E57: 136.37 | F57: 135.18 | G57: 134.17 | H57: 138.57 | I57: 139.58 | J57: 140.77 | K57: 138.4 | L57: 136.2 | M57: 7.88134
A58: 49 | B58: CHOLAFIN | C58: 277.95 | D58: 276.88 | E58: 273.12 | F58: 268.28 | G58: 264.52 | H58: 281.72 | I58: 285.48 | J58: 290.32 | K58: 280.65 | L58: 272.05 | M58: 5.0279
A59: 50 | B59: CIPLA | C59: 550.05 | D59: 550.52 | E59: 546.08 | F59: 542.12 | G59: 537.68 | H59: 554.48 | I59: 558.92 | J59: 562.88 | K59: 554.95 | L59: 546.55 | M59: 8.05704
A60: 51 | B60: COALINDIA | C60: 258.35 | D60: 257.30 | E60: 255.60 | F60: 252.85 | G60: 251.15 | H60: 260.05 | I60: 261.75 | J60: 264.50 | K60: 259 | L60: 254.55 | M60: 25.90646
A61: 52 | B61: COLPAL | C61: 1137.75 | D61: 1133.93 | E61: 1127.87 | F61: 1117.98 | G61: 1111.92 | H61: 1143.82 | I61: 1149.88 | J61: 1159.77 | K61: 1140 | L61: 1124.05 | M61: 2.62664
A62: 53 | B62: CONCOR | C62: 554.25 | D62: 554.35 | E62: 549.90 | F62: 545.55 | G62: 541.10 | H62: 558.70 | I62: 563.15 | J62: 567.50 | K62: 558.8 | L62: 550 | M62: 4.62745
A63: 54 | B63: COROMANDEL | C63: 416.5 | D63: 412.40 | E63: 406.90 | F63: 397.30 | G63: 391.80 | H63: 422.00 | I63: 427.50 | J63: 437.10 | K63: 417.9 | L63: 402.8 | M63: 1.78222
A64: 55 | B64: CROMPTON | C64: 230.7 | D64: 231.48 | E64: 228.32 | F64: 225.93 | G64: 222.77 | H64: 233.87 | I64: 237.03 | J64: 239.42 | K64: 234.65 | L64: 229.1 | M64: 13.96286
A65: 56 | B65: CUMMINSIND | C65: 757.45 | D65: 760.43 | E65: 748.87 | F65: 740.28 | G65: 728.72 | H65: 769.02 | I65: 780.58 | J65: 789.17 | K65: 772 | L65: 751.85 | M65: 5.44083
A66: 57 | B66: DLF | C66: 176.25 | D66: 175.88 | E66: 174.42 | F66: 172.58 | G66: 171.12 | H66: 177.72 | I66: 179.18 | J66: 181.02 | K66: 177.35 | L66: 174.05 | M66: 47.69918
A67: 58 | B67: DABUR | C67: 394.3 | D67: 392.63 | E67: 389.87 | F67: 385.43 | G67: 382.67 | H67: 397.07 | I67: 399.83 | J67: 404.27 | K67: 395.4 | L67: 388.2 | M67: 12.84969
A68: 59 | B68: DHFL | C68: 75.45 | D68: 76.82 | E68: 73.03 | F68: 70.62 | G68: 66.83 | H68: 79.23 | I68: 83.02 | J68: 85.43 | K68: 80.6 | L68: 74.4 | M68: 283.24966
A69: 60 | B69: DBL | C69: 399.9 | D69: 400.63 | E69: 396.37 | F69: 392.83 | G69: 388.57 | H69: 404.17 | I69: 408.43 | J69: 411.97 | K69: 404.9 | L69: 397.1 | M69: 1.51939
A70: 61 | B70: DISHTV | C70: 26.45 | D70: 26.22 | E70: 25.53 | F70: 24.62 | G70: 23.93 | H70: 27.13 | I70: 27.82 | J70: 28.73 | K70: 26.9 | L70: 25.3 | M70: 276.5422
A71: 62 | B71: DIVISLAB | C71: 1602.4 | D71: 1592.13 | E71: 1575.27 | F71: 1548.13 | G71: 1531.27 | H71: 1619.27 | I71: 1636.13 | J71: 1663.27 | K71: 1609 | L71: 1565 | M71: 4.57699
A72: 63 | B72: DRREDDY | C72: 2536.05 | D72: 2525.52 | E72: 2498.58 | F72: 2461.12 | G72: 2434.18 | H72: 2562.98 | I72: 2589.92 | J72: 2627.38 | K72: 2552.45 | L72: 2488.05 | M72: 4.37218
A73: 64 | B73: EDELWEISS | C73: 167.35 | D73: 168.82 | E73: 165.13 | F73: 162.92 | G73: 159.23 | H73: 171.03 | I73: 174.72 | J73: 176.93 | K73: 172.5 | L73: 166.6 | M73: 6.58406
A74: 65 | B74: EICHERMOT | C74: 19116.85 | D74: 19065.60 | E74: 18882.30 | F74: 18647.75 | G74: 18464.45 | H74: 19300.15 | I74: 19483.45 | J74: 19718.00 | K74: 19248.9 | L74: 18831.05 | M74: 1.29656
A75: 66 | B75: ENDURANCE | C75: 1130.6 | D75: 1124.20 | E75: 1107.40 | F75: 1084.20 | G75: 1067.40 | H75: 1147.40 | I75: 1164.20 | J75: 1187.40 | K75: 1141 | L75: 1101 | M75: 0.44616
A76: 67 | B76: ENGINERSIN | C76: 118.2 | D76: 117.60 | E76: 116.55 | F76: 114.90 | G76: 113.85 | H76: 119.25 | I76: 120.30 | J76: 121.95 | K76: 118.65 | L76: 115.95 | M76: 5.31205
A77: 68 | B77: ESCORTS | C77: 544.4 | D77: 540.15 | E77: 528.45 | F77: 512.50 | G77: 500.80 | H77: 556.10 | I77: 567.80 | J77: 583.75 | K77: 551.85 | L77: 524.2 | M77: 23.30881
A78: 69 | B78: EXIDEIND | C78: 203.85 | D78: 202.48 | E78: 200.57 | F78: 197.28 | G78: 195.37 | H78: 205.77 | I78: 207.68 | J78: 210.97 | K78: 204.4 | L78: 199.2 | M78: 9.73828
A79: 70 | B79: FEDERALBNK | C79: 103.95 | D79: 103.50 | E79: 102.50 | F79: 101.05 | G79: 100.05 | H79: 104.95 | I79: 105.95 | J79: 107.40 | K79: 104.5 | L79: 102.05 | M79: 59.81041
A80: 71 | B80: FCONSUMER | C80: 39.15 | D80: 38.93 | E80: 38.22 | F80: 37.28 | G80: 36.57 | H80: 39.87 | I80: 40.58 | J80: 41.52 | K80: 39.65 | L80: 38 | M80: 12.50191
A81: 72 | B81: FRETAIL | C81: 477.65 | D81: 474.13 | E81: 467.32 | F81: 456.98 | G81: 450.17 | H81: 484.47 | I81: 491.28 | J81: 501.62 | K81: 480.95 | L81: 463.8 | M81: 2.44616
A82: 73 | B82: GAIL | C82: 309.7 | D82: 308.17 | E82: 305.78 | F82: 301.87 | G82: 299.48 | H82: 312.08 | I82: 314.47 | J82: 318.38 | K82: 310.55 | L82: 304.25 | M82: 38.71816
A83: 74 | B83: GMRINFRA | C83: 15.1 | D83: 15.18 | E83: 14.92 | F83: 14.73 | G83: 14.47 | H83: 15.37 | I83: 15.63 | J83: 15.82 | K83: 15.45 | L83: 15 | M83: 148.71099
A84: 75 | B84: GICRE | C84: 206.9 | D84: 207.60 | E84: 203.40 | F84: 199.90 | G84: 195.70 | H84: 211.10 | I84: 215.30 | J84: 218.80 | K84: 211.8 | L84: 204.1 | M84: 6.06703
A85: 76 | B85: GSKCONS | C85: 7458.85 | D85: 7482.70 | E85: 7420.40 | F85: 7381.95 | G85: 7319.65 | H85: 7521.15 | I85: 7583.45 | J85: 7621.90 | K85: 7545 | L85: 7444.25 | M85: 0.18022
A86: 77 | B86: GLENMARK | C86: 455.55 | D86: 458.68 | E86: 448.47 | F86: 441.38 | G86: 431.17 | H86: 465.77 | I86: 475.98 | J86: 483.07 | K86: 468.9 | L86: 451.6 | M86: 54.83276
A87: 78 | B87: GODREJAGRO | C87: 504.5 | D87: 503.73 | E87: 501.07 | F87: 497.63 | G87: 494.97 | H87: 507.17 | I87: 509.83 | J87: 513.27 | K87: 506.4 | L87: 500.3 | M87: 0.52898
A88: 79 | B88: GODREJCP | C88: 675.65 | D88: 674.60 | E88: 670.75 | F88: 665.85 | G88: 662.00 | H88: 679.50 | I88: 683.35 | J88: 688.25 | K88: 678.45 | L88: 669.7 | M88: 9.26776
A89: 80 | B89: GODREJIND | C89: 484.85 | D89: 482.47 | E89: 477.43 | F89: 470.02 | G89: 464.98 | H89: 489.88 | I89: 494.92 | J89: 502.33 | K89: 487.5 | L89: 475.05 | M89: 3.29417
A90: 81 | B90: GRAPHITE | C90: 336.85 | D90: 338.48 | E90: 333.47 | F90: 330.08 | G90: 325.07 | H90: 341.87 | I90: 346.88 | J90: 350.27 | K90: 343.5 | L90: 335.1 | M90: 12.70473
A91: 82 | B91: GRASIM | C91: 902.15 | D91: 895.22 | E91: 883.98 | F91: 865.82 | G91: 854.58 | H91: 913.38 | I91: 924.62 | J91: 942.78 | K91: 906.45 | L91: 877.05 | M91: 10.2023
A92: 83 | B92: GRUH | C92: 275 | D92: 275.58 | E92: 272.67 | F92: 270.33 | G92: 267.42 | H92: 277.92 | I92: 280.83 | J92: 283.17 | K92: 278.5 | L92: 273.25 | M92: 8.63717
A93: 84 | B93: GSPL | C93: 188 | D93: 185.92 | E93: 183.08 | F93: 178.17 | G93: 175.33 | H93: 190.83 | I93: 193.67 | J93: 198.58 | K93: 188.75 | L93: 181 | M93: 1.11294
A94: 85 | B94: HEG | C94: 1413.6 | D94: 1409.90 | E94: 1375.80 | F94: 1338.00 | G94: 1303.90 | H94: 1447.70 | I94: 1481.80 | J94: 1519.60 | K94: 1444 | L94: 1372.1 | M94: 3.99377
A95: 86 | B95: HCLTECH | C95: 1079 | D95: 1073.42 | E95: 1065.73 | F95: 1052.47 | G95: 1044.78 | H95: 1086.68 | I95: 1094.37 | J95: 1107.63 | K95: 1081.1 | L95: 1060.15 | M95: 11.01967
A96: 87 | B96: HDFCAMC | C96: 1952.55 | D96: 1946.52 | E96: 1921.03 | F96: 1889.52 | G96: 1864.03 | H96: 1978.03 | I96: 2003.52 | J96: 2035.03 | K96: 1972 | L96: 1915 | M96: 4.13009
A97: 88 | B97: HDFCBANK | C97: 2428.7 | D97: 2424.40 | E97: 2407.30 | F97: 2385.90 | G97: 2368.80 | H97: 2445.80 | I97: 2462.90 | J97: 2484.30 | K97: 2441.5 | L97: 2403 | M97: 22.2495
A98: 89 | B98: HDFCLIFE | C98: 437.5 | D98: 438.57 | E98: 434.93 | F98: 432.37 | G98: 428.73 | H98: 441.13 | I98: 444.77 | J98: 447.33 | K98: 442.2 | L98: 436 | M98: 10.34858
A99: 90 | B99: HAVELLS | C99: 783.95 | D99: 778.98 | E99: 771.72 | F99: 759.48 | G99: 752.22 | H99: 791.22 | I99: 798.48 | J99: 810.72 | K99: 786.25 | L99: 766.75 | M99: 8.4757
A100: 91 | B100: HEROMOTOCO | C100: 2584.65 | D100: 2579.38 | E100: 2555.27 | F100: 2525.88 | G100: 2501.77 | H100: 2608.77 | I100: 2632.88 | J100: 2662.27 | K100: 2603.5 | L100: 2550 | M100: 4.12936
A101: 92 | B101: HEXAWARE | C101: 395.5 | D101: 396.13 | E101: 389.47 | F101: 383.43 | G101: 376.77 | H101: 402.17 | I101: 408.83 | J101: 414.87 | K101: 402.8 | L101: 390.1 | M101: 11.22339
A102: 93 | B102: HINDALCO | C102: 202.5 | D102: 200.30 | E102: 196.70 | F102: 190.90 | G102: 187.30 | H102: 206.10 | I102: 209.70 | J102: 215.50 | K102: 203.9 | L102: 194.5 | M102: 84.18631
A103: 94 | B103: HINDPETRO | C103: 295.5 | D103: 293.67 | E103: 289.98 | F103: 284.47 | G103: 280.78 | H103: 299.18 | I103: 302.87 | J103: 308.38 | K103: 297.35 | L103: 288.15 | M103: 53.6513
A104: 95 | B104: HINDUNILVR | C104: 1756.45 | D104: 1757.05 | E104: 1744.40 | F104: 1732.35 | G104: 1719.70 | H104: 1769.10 | I104: 1781.75 | J104: 1793.80 | K104: 1769.7 | L104: 1745 | M104: 9.41132
A105: 96 | B105: HINDZINC | C105: 230.6 | D105: 229.18 | E105: 227.27 | F105: 223.93 | G105: 222.02 | H105: 232.52 | I105: 234.43 | J105: 237.77 | K105: 231.1 | L105: 225.85 | M105: 7.8984
A106: 97 | B106: HUDCO | C106: 39.45 | D106: 39.10 | E106: 38.55 | F106: 37.65 | G106: 37.10 | H106: 40.00 | I106: 40.55 | J106: 41.45 | K106: 39.65 | L106: 38.2 | M106: 5.53808
A107: 98 | B107: HDFC | C107: 2172.8 | D107: 2162.57 | E107: 2148.33 | F107: 2123.87 | G107: 2109.63 | H107: 2187.03 | I107: 2201.27 | J107: 2225.73 | K107: 2176.8 | L107: 2138.1 | M107: 18.89368
A108: 99 | B108: ICICIBANK | C108: 433.65 | D108: 431.02 | E108: 427.23 | F108: 420.82 | G108: 417.03 | H108: 437.43 | I108: 441.22 | J108: 447.63 | K108: 434.8 | L108: 424.6 | M108: 129.64387
A109: 100 | B109: ICICIGI | C109: 1102 | D109: 1122.70 | E109: 1060.40 | F109: 1018.80 | G109: 956.50 | H109: 1164.30 | I109: 1226.60 | J109: 1268.20 | K109: 1185 | L109: 1081.1 | M109: 190.66644
A110: 101 | B110: ICICIPRULI | C110: 372.1 | D110: 373.82 | E110: 368.43 | F110: 364.77 | G110: 359.38 | H110: 377.48 | I110: 382.87 | J110: 386.53 | K110: 379.2 | L110: 370.15 | M110: 7.80514
A111: 102 | B111: IDBI | C111: 35.15 | D111: 35.28 | E111: 33.87 | F111: 32.58 | G111: 31.17 | H111: 36.57 | I111: 37.98 | J111: 39.27 | K111: 36.7 | L111: 34 | M111: 126.5325
A112: 103 | B112: IDFCFIRSTB | C112: 42.45 | D112: 42.32 | E112: 42.03 | F112: 41.62 | G112: 41.33 | H112: 42.73 | I112: 43.02 | J112: 43.43 | K112: 42.6 | L112: 41.9 | M112: 52.9771
A113: 104 | B113: ITC | C113: 278.5 | D113: 277.58 | E113: 275.17 | F113: 271.83 | G113: 269.42 | H113: 280.92 | I113: 283.33 | J113: 286.67 | K113: 280 | L113: 274.25 | M113: 123.79897
A114: 105 | B114: IBULHSGFIN | C114: 621.55 | D114: 619.82 | E114: 609.73 | F114: 597.92 | G114: 587.83 | H114: 631.63 | I114: 641.72 | J114: 653.53 | K114: 629.9 | L114: 608 | M114: 120.18606
A115: 106 | B115: IBVENTURES | C115: 267 | D115: 269.20 | E115: 263.00 | F115: 259.00 | G115: 252.80 | H115: 273.20 | I115: 279.40 | J115: 283.40 | K115: 275.4 | L115: 265.2 | M115: 8.18675
A116: 107 | B116: INDIANB | C116: 262.7 | D116: 259.63 | E116: 255.77 | F116: 248.83 | G116: 244.97 | H116: 266.57 | I116: 270.43 | J116: 277.37 | K116: 263.5 | L116: 252.7 | M116: 18.23806
A117: 108 | B117: INDHOTEL | C117: 158.8 | D117: 156.95 | E117: 154.40 | F117: 150.00 | G117: 147.45 | H117: 161.35 | I117: 163.90 | J117: 168.30 | K117: 159.5 | L117: 152.55 | M117: 13.357
A118: 109 | B118: IOC | C118: 154.6 | D118: 153.78 | E118: 152.57 | F118: 150.53 | G118: 149.32 | H118: 155.82 | I118: 157.03 | J118: 159.07 | K118: 155 | L118: 151.75 | M118: 57.68459
A119: 110 | B119: IGL | C119: 312.45 | D119: 312.43 | E119: 309.12 | F119: 305.78 | G119: 302.47 | H119: 315.77 | I119: 319.08 | J119: 322.42 | K119: 315.75 | L119: 309.1 | M119: 16.47114
A120: 111 | B120: INDUSINDBK | C120: 1449.65 | D120: 1450.57 | E120: 1440.63 | F120: 1431.62 | G120: 1421.68 | H120: 1459.58 | I120: 1469.52 | J120: 1478.53 | K120: 1460.5 | L120: 1441.55 | M120: 24.45906
A121: 112 | B121: NAUKRI | C121: 2219.25 | D121: 2209.08 | E121: 2164.22 | F121: 2109.18 | G121: 2064.32 | H121: 2264.12 | I121: 2308.98 | J121: 2364.02 | K121: 2253.95 | L121: 2154.05 | M121: 1.83421
A122: 113 | B122: INFY | C122: 748.1 | D122: 745.43 | E122: 739.97 | F122: 731.83 | G122: 726.37 | H122: 753.57 | I122: 759.03 | J122: 767.17 | K122: 750.9 | L122: 737.3 | M122: 36.77911
A123: 114 | B123: INDIGO | C123: 1603.45 | D123: 1589.27 | E123: 1569.53 | F123: 1535.62 | G123: 1515.88 | H123: 1623.18 | I123: 1642.92 | J123: 1676.83 | K123: 1609 | L123: 1555.35 | M123: 12.09094
A124: 115 | B124: JSWENERGY | C124: 67.05 | D124: 67.03 | E124: 66.57 | F124: 66.08 | G124: 65.62 | H124: 67.52 | I124: 67.98 | J124: 68.47 | K124: 67.5 | L124: 66.55 | M124: 2.84155
A125: 116 | B125: JSWSTEEL | C125: 267.05 | D125: 262.67 | E125: 257.03 | F125: 247.02 | G125: 241.38 | H125: 272.68 | I125: 278.32 | J125: 288.33 | K125: 268.3 | L125: 252.65 | M125: 96.16552
A126: 117 | B126: JINDALSTEL | C126: 143.15 | D126: 141.35 | E126: 138.50 | F126: 133.85 | G126: 131.00 | H126: 146.00 | I126: 148.85 | J126: 153.50 | K126: 144.2 | L126: 136.7 | M126: 143.77565
A127: 118 | B127: JUBLFOOD | C127: 1273.4 | D127: 1267.65 | E127: 1255.75 | F127: 1238.10 | G127: 1226.20 | H127: 1285.30 | I127: 1297.20 | J127: 1314.85 | K127: 1279.55 | L127: 1250 | M127: 6.69864
A128: 119 | B128: JUBILANT | C128: 480.7 | D128: 480.53 | E128: 473.32 | F128: 465.93 | G128: 458.72 | H128: 487.92 | I128: 495.13 | J128: 502.52 | K128: 487.75 | L128: 473.15 | M128: 2.05384
A129: 120 | B129: KOTAKBANK | C129: 1483.9 | D129: 1480.72 | E129: 1470.18 | F129: 1456.47 | G129: 1445.93 | H129: 1494.43 | I129: 1504.97 | J129: 1518.68 | K129: 1491.25 | L129: 1467 | M129: 20.5249
A130: 121 | B130: L&TFH | C130: 113.15 | D130: 113.17 | E130: 111.88 | F130: 110.62 | G130: 109.33 | H130: 114.43 | I130: 115.72 | J130: 116.98 | K130: 114.45 | L130: 111.9 | M130: 48.88397
A131: 122 | B131: LTTS | C131: 1716 | D131: 1715.03 | E131: 1704.97 | F131: 1693.93 | G131: 1683.87 | H131: 1726.07 | I131: 1736.13 | J131: 1747.17 | K131: 1725.1 | L131: 1704 | M131: 1.11909
A132: 123 | B132: LICHSGFIN | C132: 550.15 | D132: 550.53 | E132: 545.67 | F132: 541.18 | G132: 536.32 | H132: 555.02 | I132: 559.88 | J132: 564.37 | K132: 555.4 | L132: 546.05 | M132: 18.61393
A133: 124 | B133: LTI | C133: 1722.65 | D133: 1719.82 | E133: 1704.88 | F133: 1687.12 | G133: 1672.18 | H133: 1737.58 | I133: 1752.52 | J133: 1770.28 | K133: 1734.75 | L133: 1702.05 | M133: 1.19544
A134: 125 | B134: LT | C134: 1535 | D134: 1536.03 | E134: 1520.07 | F134: 1505.13 | G134: 1489.17 | H134: 1550.97 | I134: 1566.93 | J134: 1581.87 | K134: 1552 | L134: 1521.1 | M134: 23.84122
A135: 126 | B135: LUPIN | C135: 754.45 | D135: 747.67 | E135: 737.33 | F135: 720.22 | G135: 709.88 | H135: 764.78 | I135: 775.12 | J135: 792.23 | K135: 758 | L135: 730.55 | M135: 23.89911
A136: 127 | B136: MRF | C136: 55552.9 | D136: 55463.50 | E136: 54588.35 | F136: 53623.80 | G136: 52748.65 | H136: 56428.05 | I136: 57303.20 | J136: 58267.75 | K136: 56338.65 | L136: 54498.95 | M136: 0.13088
A137: 128 | B137: MGL | C137: 823.2 | D137: 822.35 | E137: 815.75 | F137: 808.30 | G137: 801.70 | H137: 829.80 | I137: 836.40 | J137: 843.85 | K137: 828.95 | L137: 814.9 | M137: 4.24213
A138: 129 | B138: M&MFIN | C138: 394.6 | D138: 392.52 | E138: 389.18 | F138: 383.77 | G138: 380.43 | H138: 397.93 | I138: 401.27 | J138: 406.68 | K138: 395.85 | L138: 387.1 | M138: 9.12897
A139: 130 | B139: M&M | C139: 641.65 | D139: 640.43 | E139: 636.22 | F139: 630.78 | G139: 626.57 | H139: 645.87 | I139: 650.08 | J139: 655.52 | K139: 644.65 | L139: 635 | M139: 33.52119
A140: 131 | B140: MANAPPURAM | C140: 141.25 | D140: 138.50 | E140: 134.75 | F140: 128.25 | G140: 124.50 | H140: 145.00 | I140: 148.75 | J140: 155.25 | K140: 142.25 | L140: 132 | M140: 119.4067
A141: 132 | B141: MRPL | C141: 61.6 | D141: 61.15 | E141: 59.70 | F141: 57.80 | G141: 56.35 | H141: 63.05 | I141: 64.50 | J141: 66.40 | K141: 62.6 | L141: 59.25 | M141: 8.38163
A142: 133 | B142: MARICO | C142: 371.35 | D142: 371.60 | E142: 368.75 | F142: 366.15 | G142: 363.30 | H142: 374.20 | I142: 377.05 | J142: 379.65 | K142: 374.45 | L142: 369 | M142: 10.51008
A143: 134 | B143: MARUTI | C143: 6522.5 | D143: 6496.62 | E143: 6453.23 | F143: 6383.97 | G143: 6340.58 | H143: 6565.88 | I143: 6609.27 | J143: 6678.53 | K143: 6540 | L143: 6427.35 | M143: 5.80392
A144: 135 | B144: MFSL | C144: 425.2 | D144: 423.55 | E144: 417.60 | F144: 410.00 | G144: 404.05 | H144: 431.15 | I144: 437.10 | J144: 444.70 | K144: 429.5 | L144: 415.95 | M144: 1.48497
A145: 136 | B145: MINDTREE | C145: 952.45 | D145: 952.75 | E145: 942.70 | F145: 932.95 | G145: 922.90 | H145: 962.50 | I145: 972.55 | J145: 982.30 | K145: 962.8 | L145: 943 | M145: 7.66496
A146: 137 | B146: MOTHERSUMI | C146: 119.45 | D146: 118.48 | E146: 116.67 | F146: 113.88 | G146: 112.07 | H146: 121.27 | I146: 123.08 | J146: 125.87 | K146: 120.3 | L146: 115.7 | M146: 141.74668
A147: 138 | B147: MPHASIS | C147: 968.5 | D147: 963.63 | E147: 956.42 | F147: 944.33 | G147: 937.12 | H147: 975.72 | I147: 982.93 | J147: 995.02 | K147: 970.85 | L147: 951.55 | M147: 0.47133
A148: 139 | B148: MUTHOOTFIN | C148: 639.45 | D148: 632.22 | E148: 623.28 | F148: 607.12 | G148: 598.18 | H148: 648.38 | I148: 657.32 | J148: 673.48 | K148: 641.15 | L148: 616.05 | M148: 20.72164
A149: 140 | B149: NATCOPHARM | C149: 534.6 | D149: 537.68 | E149: 529.57 | F149: 524.53 | G149: 516.42 | H149: 542.72 | I149: 550.83 | J149: 555.87 | K149: 545.8 | L149: 532.65 | M149: 0.91042
A150: 141 | B150: NBCC | C150: 61.15 | D150: 61.27 | E150: 60.38 | F150: 59.62 | G150: 58.73 | H150: 62.03 | I150: 62.92 | J150: 63.68 | K150: 62.15 | L150: 60.5 | M150: 83.95243
A151: 142 | B151: NHPC | C151: 24.7 | D151: 24.75 | E151: 24.40 | F151: 24.10 | G151: 23.75 | H151: 25.05 | I151: 25.40 | J151: 25.70 | K151: 25.1 | L151: 24.45 | M151: 53.16108
A152: 143 | B152: NMDC | C152: 110.95 | D152: 110.40 | E152: 109.40 | F152: 107.85 | G152: 106.85 | H152: 111.95 | I152: 112.95 | J152: 114.50 | K152: 111.4 | L152: 108.85 | M152: 20.54509
A153: 144 | B153: NTPC | C153: 138.45 | D153: 137.77 | E153: 135.83 | F153: 133.22 | G153: 131.28 | H153: 140.38 | I153: 142.32 | J153: 144.93 | K153: 139.7 | L153: 135.15 | M153: 187.61799
A154: 145 | B154: NATIONALUM | C154: 49.05 | D154: 48.92 | E154: 48.53 | F154: 48.02 | G154: 47.63 | H154: 49.43 | I154: 49.82 | J154: 50.33 | K154: 49.3 | L154: 48.4 | M154: 59.32624
A155: 146 | B155: OBEROIRLTY | C155: 565.7 | D155: 559.35 | E155: 549.70 | F155: 533.70 | G155: 524.05 | H155: 575.35 | I155: 585.00 | J155: 601.00 | K155: 569 | L155: 543.35 | M155: 5.16005
A156: 147 | B156: ONGC | C156: 166.2 | D156: 166.72 | E156: 164.98 | F156: 163.77 | G156: 162.03 | H156: 167.93 | I156: 169.67 | J156: 170.88 | K156: 168.45 | L156: 165.5 | M156: 66.97367
A157: 148 | B157: OIL | C157: 176.85 | D157: 176.48 | E157: 175.62 | F157: 174.38 | G157: 173.52 | H157: 177.72 | I157: 178.58 | J157: 179.82 | K157: 177.35 | L157: 175.25 | M157: 3.86668
A158: 149 | B158: OFSS | C158: 3209.05 | D158: 3149.13 | E158: 3080.37 | F158: 2951.68 | G158: 2882.92 | H158: 3277.82 | I158: 3346.58 | J158: 3475.27 | K158: 3217.9 | L158: 3020.45 | M158: 0.38999
A159: 150 | B159: PIIND | C159: 1175.45 | D159: 1170.33 | E159: 1160.77 | F159: 1146.08 | G159: 1136.52 | H159: 1185.02 | I159: 1194.58 | J159: 1209.27 | K159: 1179.9 | L159: 1155.65 | M159: 0.47267
A160: 151 | B160: PNBHOUSING | C160: 771.65 | D160: 773.48 | E160: 763.17 | F160: 754.68 | G160: 744.37 | H160: 781.97 | I160: 792.28 | J160: 800.77 | K160: 783.8 | L160: 765 | M160: 1.70187
A161: 152 | B161: PAGEIND | C161: 20713.5 | D161: 20691.17 | E161: 20587.33 | F161: 20461.17 | G161: 20357.33 | H161: 20817.33 | I161: 20921.17 | J161: 21047.33 | K161: 20795 | L161: 20565 | M161: 0.19392
A162: 153 | B162: PETRONET | C162: 242.1 | D162: 241.63 | E162: 239.77 | F162: 237.43 | G162: 235.57 | H162: 243.97 | I162: 245.83 | J162: 248.17 | K162: 243.5 | L162: 239.3 | M162: 17.96881
A163: 154 | B163: PFIZER | C163: 3250.25 | D163: 3250.77 | E163: 3230.58 | F163: 3210.92 | G163: 3190.73 | H163: 3270.43 | I163: 3290.62 | J163: 3310.28 | K163: 3270.95 | L163: 3231.1 | M163: 0.09768
A164: 155 | B164: PIDILITIND | C164: 1233.55 | D164: 1231.87 | E164: 1222.68 | F164: 1211.82 | G164: 1202.63 | H164: 1242.73 | I164: 1251.92 | J164: 1262.78 | K164: 1241.05 | L164: 1221 | M164: 3.65236
A165: 156 | B165: PEL | C165: 1901.15 | D165: 1912.15 | E165: 1850.00 | F165: 1798.85 | G165: 1736.70 | H165: 1963.30 | I165: 2025.45 | J165: 2076.60 | K165: 1974.3 | L165: 1861 | M165: 28.61279
A166: 157 | B166: PFC | C166: 134.3 | D166: 133.52 | E166: 131.83 | F166: 129.37 | G166: 127.68 | H166: 135.98 | I166: 137.67 | J166: 140.13 | K166: 135.2 | L166: 131.05 | M166: 69.65215
A167: 158 | B167: POWERGRID | C167: 201.6 | D167: 200.97 | E167: 199.63 | F167: 197.67 | G167: 196.33 | H167: 202.93 | I167: 204.27 | J167: 206.23 | K167: 202.3 | L167: 199 | M167: 58.36106
A168: 159 | B168: PRESTIGE | C168: 265.85 | D168: 267.25 | E168: 261.00 | F168: 256.15 | G168: 249.90 | H168: 272.10 | I168: 278.35 | J168: 283.20 | K168: 273.5 | L168: 262.4 | M168: 11.96163
A169: 160 | B169: PGHH | C169: 10754.5 | D169: 10754.55 | E169: 10709.20 | F169: 10663.90 | G169: 10618.55 | H169: 10799.85 | I169: 10845.20 | J169: 10890.50 | K169: 10799.9 | L169: 10709.25 | M169: 0.01034
A170: 161 | B170: PNB | C170: 77.1 | D170: 76.98 | E170: 76.42 | F170: 75.73 | G170: 75.17 | H170: 77.67 | I170: 78.23 | J170: 78.92 | K170: 77.55 | L170: 76.3 | M170: 162.76002
A171: 162 | B171: QUESS | C171: 560.45 | D171: 569.07 | E171: 544.73 | F171: 529.02 | G171: 504.68 | H171: 584.78 | I171: 609.12 | J171: 624.83 | K171: 593.4 | L171: 553.35 | M171: 1.16419
A172: 163 | B172: RBLBANK | C172: 622.8 | D172: 621.85 | E172: 618.95 | F172: 615.10 | G172: 612.20 | H172: 625.70 | I172: 628.60 | J172: 632.45 | K172: 624.75 | L172: 618 | M172: 9.34129
A173: 164 | B173: RECLTD | C173: 160.9 | D173: 159.55 | E173: 156.70 | F173: 152.50 | G173: 149.65 | H173: 163.75 | I173: 166.60 | J173: 170.80 | K173: 162.4 | L173: 155.35 | M173: 120.70135
A174: 165 | B174: RAJESHEXPO | C174: 710.4 | D174: 717.53 | E174: 700.07 | F174: 689.73 | G174: 672.27 | H174: 727.87 | I174: 745.33 | J174: 755.67 | K174: 735 | L174: 707.2 | M174: 3.54865
A175: 166 | B175: RELCAPITAL | C175: 64.45 | D175: 65.80 | E175: 61.90 | F175: 59.35 | G175: 55.45 | H175: 68.35 | I175: 72.25 | J175: 74.80 | K175: 69.7 | L175: 63.25 | M175: 295.87447
A176: 167 | B176: RELIANCE | C176: 1295.85 | D176: 1282.70 | E176: 1267.40 | F176: 1238.95 | G176: 1223.65 | H176: 1311.15 | I176: 1326.45 | J176: 1354.90 | K176: 1298 | L176: 1254.25 | M176: 68.42363
A177: 168 | B177: RELINFRA | C177: 51.95 | D177: 53.10 | E177: 49.25 | F177: 46.55 | G177: 42.70 | H177: 55.80 | I177: 59.65 | J177: 62.35 | K177: 56.95 | L177: 50.4 | M177: 276.3616
A178: 169 | B178: RPOWER | C178: 4 | D178: 4.22 | E178: 3.73 | F178: 3.47 | G178: 2.98 | H178: 4.48 | I178: 4.97 | J178: 5.23 | K178: 4.7 | L178: 3.95 | M178: 1194.33248
A179: 170 | B179: SBILIFE | C179: 674.35 | D179: 676.27 | E179: 667.58 | F179: 660.82 | G179: 652.13 | H179: 683.03 | I179: 691.72 | J179: 698.48 | K179: 684.95 | L179: 669.5 | M179: 35.13192
A180: 171 | B180: SRF | C180: 2964.15 | D180: 2959.65 | E180: 2924.50 | F180: 2884.85 | G180: 2849.70 | H180: 2999.30 | I180: 3034.45 | J180: 3074.10 | K180: 2994.8 | L180: 2920 | M180: 4.0577
A181: 172 | B181: SHREECEM | C181: 21589.25 | D181: 21428.10 | E181: 21141.20 | F181: 20693.15 | G181: 20406.25 | H181: 21876.15 | I181: 22163.05 | J181: 22611.10 | K181: 21715 | L181: 20980.05 | M181: 0.21206
A182: 173 | B182: SRTRANSFIN | C182: 1118.95 | D182: 1114.07 | E182: 1106.18 | F182: 1093.42 | G182: 1085.53 | H182: 1126.83 | I182: 1134.72 | J182: 1147.48 | K182: 1121.95 | L182: 1101.3 | M182: 24.57561
A183: 174 | B183: SIEMENS | C183: 1251.35 | D183: 1247.92 | E183: 1238.93 | F183: 1226.52 | G183: 1217.53 | H183: 1260.33 | I183: 1269.32 | J183: 1281.73 | K183: 1256.9 | L183: 1235.5 | M183: 3.03437
A184: 175 | B184: SBIN | C184: 356.55 | D184: 354.93 | E184: 352.87 | F184: 349.18 | G184: 347.12 | H184: 358.62 | I184: 360.68 | J184: 364.37 | K184: 357 | L184: 351.25 | M184: 159.22634
A185: 176 | B185: SAIL | C185: 50.35 | D185: 49.82 | E185: 49.03 | F185: 47.72 | G185: 46.93 | H185: 51.13 | I185: 51.92 | J185: 53.23 | K185: 50.6 | L185: 48.5 | M185: 200.07773
A186: 177 | B186: STRTECH | C186: 176.95 | D186: 175.57 | E186: 173.43 | F186: 169.92 | G186: 167.78 | H186: 179.08 | I186: 181.22 | J186: 184.73 | K186: 177.7 | L186: 172.05 | M186: 7.61193
A187: 178 | B187: SPARC | C187: 119.35 | D187: 118.98 | E187: 117.97 | F187: 116.58 | G187: 115.57 | H187: 120.37 | I187: 121.38 | J187: 122.77 | K187: 120 | L187: 117.6 | M187: 2.19368
A188: 179 | B188: SUNPHARMA | C188: 385.75 | D188: 383.60 | E188: 379.70 | F188: 373.65 | G188: 369.75 | H188: 389.65 | I188: 393.55 | J188: 399.60 | K188: 387.5 | L188: 377.55 | M188: 44.80306
A189: 180 | B189: SUNTV | C189: 520.05 | D189: 517.53 | E189: 513.27 | F189: 506.48 | G189: 502.22 | H189: 524.32 | I189: 528.58 | J189: 535.37 | K189: 521.8 | L189: 510.75 | M189: 15.6194
A190: 181 | B190: SYNGENE | C190: 325.55 | D190: 325.53 | E190: 319.22 | F190: 312.88 | G190: 306.57 | H190: 331.87 | I190: 338.18 | J190: 344.52 | K190: 331.85 | L190: 319.2 | M190: 6.3373
A191: 182 | B191: TVSMOTOR | C191: 437.65 | D191: 439.07 | E191: 431.13 | F191: 424.62 | G191: 416.68 | H191: 445.58 | I191: 453.52 | J191: 460.03 | K191: 447 | L191: 432.55 | M191: 21.27986
A192: 183 | B192: TATACHEM | C192: 615.8 | D192: 612.98 | E192: 604.22 | F192: 592.63 | G192: 583.87 | H192: 624.57 | I192: 633.33 | J192: 644.92 | K192: 621.75 | L192: 601.4 | M192: 9.48616
A193: 184 | B193: TCS | C193: 2267.8 | D193: 2264.25 | E193: 2254.05 | F193: 2240.30 | G193: 2230.10 | H193: 2278.00 | I193: 2288.20 | J193: 2301.95 | K193: 2274.45 | L193: 2250.5 | M193: 13.86077
A194: 185 | B194: TATAGLOBAL | C194: 259.15 | D194: 258.90 | E194: 257.10 | F194: 255.05 | G194: 253.25 | H194: 260.95 | I194: 262.75 | J194: 264.80 | K194: 260.7 | L194: 256.85 | M194: 16.99986
A195: 186 | B195: TATAMTRDVR | C195: 77.95 | D195: 77.53 | E195: 76.77 | F195: 75.58 | G195: 74.82 | H195: 78.72 | I195: 79.48 | J195: 80.67 | K195: 78.3 | L195: 76.35 | M195: 39.58246
A196: 187 | B196: TATAMOTORS | C196: 160.45 | D196: 159.43 | E196: 157.87 | F196: 155.28 | G196: 153.72 | H196: 162.02 | I196: 163.58 | J196: 166.17 | K196: 161 | L196: 156.85 | M196: 133.68928
A197: 188 | B197: TATAPOWER | C197: 66.3 | D197: 66.20 | E197: 64.85 | F197: 63.40 | G197: 62.05 | H197: 67.65 | I197: 69.00 | J197: 70.45 | K197: 67.55 | L197: 64.75 | M197: 81.64192
A198: 189 | B198: TATASTEEL | C198: 498 | D198: 490.58 | E198: 481.37 | F198: 464.73 | G198: 455.52 | H198: 507.22 | I198: 516.43 | J198: 533.07 | K198: 499.8 | L198: 473.95 | M198: 136.49119
A199: 190 | B199: TECHM | C199: 724.35 | D199: 724.17 | E199: 720.18 | F199: 716.02 | G199: 712.03 | H199: 728.33 | I199: 732.32 | J199: 736.48 | K199: 728.15 | L199: 720 | M199: 14.51025
A200: 191 | B200: NIACL | C200: 148.45 | D200: 148.47 | E200: 147.13 | F200: 145.82 | G200: 144.48 | H200: 149.78 | I200: 151.12 | J200: 152.43 | K200: 149.8 | L200: 147.15 | M200: 0.37333
A201: 192 | B201: RAMCOCEM | C201: 800.15 | D201: 798.17 | E201: 791.98 | F201: 783.82 | G201: 777.63 | H201: 806.33 | I201: 812.52 | J201: 820.68 | K201: 804.35 | L201: 790 | M201: 2.21986
A202: 193 | B202: TITAN | C202: 1318.15 | D202: 1311.68 | E202: 1302.52 | F202: 1286.88 | G202: 1277.72 | H202: 1327.32 | I202: 1336.48 | J202: 1352.12 | K202: 1320.85 | L202: 1296.05 | M202: 19.5564
A203: 194 | B203: TORNTPHARM | C203: 1546.35 | D203: 1533.28 | E203: 1513.57 | F203: 1480.78 | G203: 1461.07 | H203: 1566.07 | I203: 1585.78 | J203: 1618.57 | K203: 1553 | L203: 1500.5 | M203: 2.89131
A204: 195 | B204: TORNTPOWER | C204: 271.7 | D204: 263.30 | E204: 252.40 | F204: 233.10 | G204: 222.20 | H204: 282.60 | I204: 293.50 | J204: 312.80 | K204: 274.2 | L204: 244 | M204: 77.30501
A205: 196 | B205: UPL | C205: 934.95 | D205: 928.40 | E205: 917.00 | F205: 899.05 | G205: 887.65 | H205: 946.35 | I205: 957.75 | J205: 975.70 | K205: 939.8 | L205: 910.45 | M205: 51.40843
... 30 more rows

Sheet MidCap Intra
L5: Back To Main Page
A6: FOR INTRA DAY TRADING | K6: =Main!B10 -> 2019-06-26
A9: Sr.no | B9: Scrip | C9: CLOSE RATE | D9: Pivot Point | E9: Supports | H9: Resistances
C10: Point | E10: S1 | F10: S2 | G10: S3 | H10: R1 | I10: R2 | J10: R3 | K10: HIGH | L10: LOW | M10: Total Trade Quanity in Lakhs
A11: 1 | B11: 3MINDIA | C11: 23183.9 | D11: 23259.53 | E11: 22624.37 | F11: 22064.83 | G11: 21429.67 | H11: 23819.07 | I11: 24454.23 | J11: 25013.77 | K11: 23894.7 | L11: 22700 | M11: 0.01707
A12: 2 | B12: ABB | C12: 1559.05 | D12: 1555.98 | E12: 1543.97 | F12: 1528.88 | G12: 1516.87 | H12: 1571.07 | I12: 1583.08 | J12: 1598.17 | K12: 1568 | L12: 1540.9 | M12: 0.27457
A13: 3 | B13: ACC | C13: 1554.55 | D13: 1547.60 | E13: 1533.30 | F13: 1512.05 | G13: 1497.75 | H13: 1568.85 | I13: 1583.15 | J13: 1604.40 | K13: 1561.9 | L13: 1526.35 | M13: 4.75097
A14: 4 | B14: AIAENG | C14: 1747.1 | D14: 1750.05 | E14: 1733.10 | F14: 1719.10 | G14: 1702.15 | H14: 1764.05 | I14: 1781.00 | J14: 1795.00 | K14: 1767 | L14: 1736.05 | M14: 0.30608
A15: 5 | B15: APLAPOLLO | C15: 1539.65 | D15: 1532.52 | E15: 1520.13 | F15: 1500.62 | G15: 1488.23 | H15: 1552.03 | I15: 1564.42 | J15: 1583.93 | K15: 1544.9 | L15: 1513 | M15: 0.10827
A16: 6 | B16: AUBANK | C16: 698.75 | D16: 696.55 | E16: 688.20 | F16: 677.65 | G16: 669.30 | H16: 707.10 | I16: 715.45 | J16: 726.00 | K16: 704.9 | L16: 686 | M16: 6.5842
A17: 7 | B17: AAVAS | C17: 1491.75 | D17: 1494.92 | E17: 1469.83 | F17: 1447.92 | G17: 1422.83 | H17: 1516.83 | I17: 1541.92 | J17: 1563.83 | K17: 1520 | L17: 1473 | M17: 1.27781
A18: 8 | B18: ADANIGREEN | C18: 41.35 | D18: 41.35 | E18: 40.75 | F18: 40.15 | G18: 39.55 | H18: 41.95 | I18: 42.55 | J18: 43.15 | K18: 41.95 | L18: 40.75 | M18: 4.20526
A19: 9 | B19: ADANIPORTS | C19: 405.65 | D19: 405.17 | E19: 403.13 | F19: 400.62 | G19: 398.58 | H19: 407.68 | I19: 409.72 | J19: 412.23 | K19: 407.2 | L19: 402.65 | M19: 20.99347
A20: 10 | B20: ADANIPOWER | C20: 50.55 | D20: 50.12 | E20: 49.33 | F20: 48.12 | G20: 47.33 | H20: 51.33 | I20: 52.12 | J20: 53.33 | K20: 50.9 | L20: 48.9 | M20: 147.32369
A21: 11 | B21: ADANITRANS | C21: 222 | D21: 222.63 | E21: 217.32 | F21: 212.63 | G21: 207.32 | H21: 227.32 | I21: 232.63 | J21: 237.32 | K21: 227.95 | L21: 217.95 | M21: 1.17206
A22: 12 | B22: ABCAPITAL | C22: 92.05 | D22: 92.07 | E22: 91.33 | F22: 90.62 | G22: 89.88 | H22: 92.78 | I22: 93.52 | J22: 94.23 | K22: 92.8 | L22: 91.35 | M22: 5.00352
A23: 13 | B23: ABFRL | C23: 212.65 | D23: 209.37 | E23: 203.13 | F23: 193.62 | G23: 187.38 | H23: 218.88 | I23: 225.12 | J23: 234.63 | K23: 215.6 | L23: 199.85 | M23: 7.76725
A24: 14 | B24: ADVENZYMES | C24: 166.95 | D24: 167.25 | E24: 165.15 | F24: 163.35 | G24: 161.25 | H24: 169.05 | I24: 171.15 | J24: 172.95 | K24: 169.35 | L24: 165.45 | M24: 0.73993
A25: 15 | B25: AEGISCHEM | C25: 202.6 | D25: 202.30 | E25: 199.15 | F25: 195.70 | G25: 192.55 | H25: 205.75 | I25: 208.90 | J25: 212.35 | K25: 205.45 | L25: 198.85 | M25: 0.5444
A26: 16 | B26: AJANTPHARM | C26: 974.35 | D26: 962.82 | E26: 947.93 | F26: 921.52 | G26: 906.63 | H26: 989.23 | I26: 1004.12 | J26: 1030.53 | K26: 977.7 | L26: 936.4 | M26: 3.50276
A27: 17 | B27: AKZOINDIA | C27: 1749.3 | D27: 1735.00 | E27: 1716.00 | F27: 1682.70 | G27: 1663.70 | H27: 1768.30 | I27: 1787.30 | J27: 1820.60 | K27: 1754 | L27: 1701.7 | M27: 0.08183
A28: 18 | B28: APLLTD | C28: 501.2 | D28: 504.28 | E28: 490.57 | F28: 479.93 | G28: 466.22 | H28: 514.92 | I28: 528.63 | J28: 539.27 | K28: 518 | L28: 493.65 | M28: 0.55429
A29: 19 | B29: ALKEM | C29: 1697.4 | D29: 1706.18 | E29: 1677.22 | F29: 1657.03 | G29: 1628.07 | H29: 1726.37 | I29: 1755.33 | J29: 1775.52 | K29: 1735.15 | L29: 1686 | M29: 0.28254
A30: 20 | B30: ALBK | C30: 42.45 | D30: 41.97 | E30: 41.08 | F30: 39.72 | G30: 38.83 | H30: 43.33 | I30: 44.22 | J30: 45.58 | K30: 42.85 | L30: 40.6 | M30: 42.02469
A31: 21 | B31: ALLCARGO | C31: 101.7 | D31: 101.72 | E31: 100.43 | F31: 99.17 | G31: 97.88 | H31: 102.98 | I31: 104.27 | J31: 105.53 | K31: 103 | L31: 100.45 | M31: 0.49192
A32: 22 | B32: AMARAJABAT | C32: 614.75 | D32: 611.25 | E32: 598.50 | F32: 582.25 | G32: 569.50 | H32: 627.50 | I32: 640.25 | J32: 656.50 | K32: 624 | L32: 595 | M32: 8.73777
A33: 23 | B33: AMBUJACEM | C33: 215.15 | D33: 214.15 | E33: 212.30 | F33: 209.45 | G33: 207.60 | H33: 217.00 | I33: 218.85 | J33: 221.70 | K33: 216 | L33: 211.3 | M33: 22.74581
A34: 24 | B34: ANDHRABANK | C34: 22.9 | D34: 22.93 | E34: 22.77 | F34: 22.63 | G34: 22.47 | H34: 23.07 | I34: 23.23 | J34: 23.37 | K34: 23.1 | L34: 22.8 | M34: 7.55877
A35: 25 | B35: APOLLOHOSP | C35: 1324.85 | D35: 1328.75 | E35: 1306.05 | F35: 1287.25 | G35: 1264.55 | H35: 1347.55 | I35: 1370.25 | J35: 1389.05 | K35: 1351.45 | L35: 1309.95 | M35: 11.56668
A36: 26 | B36: APOLLOTYRE | C36: 200.4 | D36: 201.00 | E36: 196.50 | F36: 192.60 | G36: 188.10 | H36: 204.90 | I36: 209.40 | J36: 213.30 | K36: 205.5 | L36: 197.1 | M36: 59.81431
A37: 27 | B37: ASHOKLEY | C37: 85.7 | D37: 86.90 | E37: 83.90 | F37: 82.10 | G37: 79.10 | H37: 88.70 | I37: 91.70 | J37: 93.50 | K37: 89.9 | L37: 85.1 | M37: 208.36957
A38: 28 | B38: ASHOKA | C38: 133.7 | D38: 133.47 | E38: 131.73 | F38: 129.77 | G38: 128.03 | H38: 135.43 | I38: 137.17 | J38: 139.13 | K38: 135.2 | L38: 131.5 | M38: 0.7869
A39: 29 | B39: ASIANPAINT | C39: 1363.1 | D39: 1365.30 | E39: 1358.15 | F39: 1353.20 | G39: 1346.05 | H39: 1370.25 | I39: 1377.40 | J39: 1382.35 | K39: 1372.45 | L39: 1360.35 | M39: 13.88994
A40: 30 | B40: ASTERDM | C40: 135.75 | D40: 135.75 | E40: 132.50 | F40: 129.25 | G40: 126.00 | H40: 139.00 | I40: 142.25 | J40: 145.50 | K40: 139 | L40: 132.5 | M40: 0.25258
A41: 31 | B41: ASTRAZEN | C41: 1942.9 | D41: 1941.92 | E41: 1928.98 | F41: 1915.07 | G41: 1902.13 | H41: 1955.83 | I41: 1968.77 | J41: 1982.68 | K41: 1954.85 | L41: 1928 | M41: 0.03143
A42: 32 | B42: ASTRAL | C42: 1335 | D42: 1326.67 | E42: 1313.33 | F42: 1291.67 | G42: 1278.33 | H42: 1348.33 | I42: 1361.67 | J42: 1383.33 | K42: 1340 | L42: 1305 | M42: 0.22136
A43: 33 | B43: ATUL | C43: 3968.85 | D43: 3978.82 | E43: 3941.03 | F43: 3913.22 | G43: 3875.43 | H43: 4006.63 | I43: 4044.42 | J43: 4072.23 | K43: 4016.6 | L43: 3951 | M43: 0.05281
A44: 34 | B44: AUROPHARMA | C44: 599.7 | D44: 592.35 | E44: 583.35 | F44: 567.00 | G44: 558.00 | H44: 608.70 | I44: 617.70 | J44: 634.05 | K44: 601.35 | L44: 576 | M44: 33.27392
A45: 35 | B45: AVANTIFEED | C45: 351.15 | D45: 353.55 | E45: 347.60 | F45: 344.05 | G45: 338.10 | H45: 357.10 | I45: 363.05 | J45: 366.60 | K45: 359.5 | L45: 350 | M45: 1.32241
A46: 36 | B46: DMART | C46: 1330.65 | D46: 1325.02 | E46: 1312.63 | F46: 1294.62 | G46: 1282.23 | H46: 1343.03 | I46: 1355.42 | J46: 1373.43 | K46: 1337.4 | L46: 1307 | M46: 1.37823
A47: 37 | B47: AXISBANK | C47: 781.65 | D47: 773.73 | E47: 764.47 | F47: 747.28 | G47: 738.02 | H47: 790.92 | I47: 800.18 | J47: 817.37 | K47: 783 | L47: 756.55 | M47: 100.44436
A48: 38 | B48: BASF | C48: 1317.65 | D48: 1324.88 | E48: 1303.77 | F48: 1289.88 | G48: 1268.77 | H48: 1338.77 | I48: 1359.88 | J48: 1373.77 | K48: 1346 | L48: 1311 | M48: 0.04831
A49: 39 | B49: BEML | C49: 856.35 | D49: 843.47 | E49: 827.93 | F49: 799.52 | G49: 783.98 | H49: 871.88 | I49: 887.42 | J49: 915.83 | K49: 859 | L49: 815.05 | M49: 30.55646
A50: 40 | B50: BSE | C50: 619.9 | D50: 618.22 | E50: 613.78 | F50: 607.67 | G50: 603.23 | H50: 624.33 | I50: 628.77 | J50: 634.88 | K50: 622.65 | L50: 612.1 | M50: 1.33953
A51: 41 | B51: BAJAJ-AUTO | C51: 2843.7 | D51: 2827.88 | E51: 2801.82 | F51: 2759.93 | G51: 2733.87 | H51: 2869.77 | I51: 2895.83 | J51: 2937.72 | K51: 2853.95 | L51: 2786 | M51: 4.24591
A52: 42 | B52: BAJAJCON | C52: 332.85 | D52: 331.33 | E52: 325.67 | F52: 318.48 | G52: 312.82 | H52: 338.52 | I52: 344.18 | J52: 351.37 | K52: 337 | L52: 324.15 | M52: 0.4654
A53: 43 | B53: BAJAJELEC | C53: 512.55 | D53: 510.97 | E53: 503.18 | F53: 493.82 | G53: 486.03 | H53: 520.33 | I53: 528.12 | J53: 537.48 | K53: 518.75 | L53: 501.6 | M53: 1.66224
A54: 44 | B54: BAJFINANCE | C54: 3579.85 | D54: 3565.40 | E54: 3544.80 | F54: 3509.75 | G54: 3489.15 | H54: 3600.45 | I54: 3621.05 | J54: 3656.10 | K54: 3586 | L54: 3530.35 | M54: 8.27869
A55: 45 | B55: BAJAJFINSV | C55: 8346.15 | D55: 8357.60 | E55: 8315.55 | F55: 8284.95 | G55: 8242.90 | H55: 8388.20 | I55: 8430.25 | J55: 8460.85 | K55: 8399.65 | L55: 8327 | M55: 1.08873
A56: 46 | B56: BAJAJHLDNG | C56: 3636.95 | D56: 3618.65 | E56: 3588.30 | F56: 3539.65 | G56: 3509.30 | H56: 3667.30 | I56: 3697.65 | J56: 3746.30 | K56: 3649 | L56: 3570 | M56: 0.18228
A57: 47 | B57: BALKRISIND | C57: 762.65 | D57: 755.88 | E57: 741.77 | F57: 720.88 | G57: 706.77 | H57: 776.77 | I57: 790.88 | J57: 811.77 | K57: 770 | L57: 735 | M57: 11.81375
A58: 48 | B58: BALMLAWRIE | C58: 180.85 | D58: 180.90 | E58: 180.00 | F58: 179.15 | G58: 178.25 | H58: 181.75 | I58: 182.65 | J58: 183.50 | K58: 181.8 | L58: 180.05 | M58: 0.27314
A59: 49 | B59: BALRAMCHIN | C59: 133.45 | D59: 134.35 | E59: 132.10 | F59: 130.75 | G59: 128.50 | H59: 135.70 | I59: 137.95 | J59: 139.30 | K59: 136.6 | L59: 133 | M59: 6.75587
A60: 50 | B60: BANDHANBNK | C60: 527.7 | D60: 529.72 | E60: 523.98 | F60: 520.27 | G60: 514.53 | H60: 533.43 | I60: 539.17 | J60: 542.88 | K60: 535.45 | L60: 526 | M60: 2.03489
A61: 51 | B61: BANKBARODA | C61: 120 | D61: 119.37 | E61: 118.33 | F61: 116.67 | G61: 115.63 | H61: 121.03 | I61: 122.07 | J61: 123.73 | K61: 120.4 | L61: 117.7 | M61: 141.07941
A62: 52 | B62: BANKINDIA | C62: 86.55 | D62: 86.45 | E62: 85.85 | F62: 85.15 | G62: 84.55 | H62: 87.15 | I62: 87.75 | J62: 88.45 | K62: 87.05 | L62: 85.75 | M62: 36.9725
A63: 53 | B63: MAHABANK | C63: 15.3 | D63: 15.12 | E63: 14.88 | F63: 14.47 | G63: 14.23 | H63: 15.53 | I63: 15.77 | J63: 16.18 | K63: 15.35 | L63: 14.7 | M63: 4.00765
A64: 54 | B64: BATAINDIA | C64: 1413.5 | D64: 1412.68 | E64: 1400.52 | F64: 1387.53 | G64: 1375.37 | H64: 1425.67 | I64: 1437.83 | J64: 1450.82 | K64: 1424.85 | L64: 1399.7 | M64: 5.72227
A65: 55 | B65: BERGEPAINT | C65: 317.85 | D65: 316.30 | E65: 313.70 | F65: 309.55 | G65: 306.95 | H65: 320.45 | I65: 323.05 | J65: 327.20 | K65: 318.9 | L65: 312.15 | M65: 3.16027
A66: 56 | B66: BDL | C66: 307.85 | D66: 306.28 | E66: 294.57 | F66: 281.28 | G66: 269.57 | H66: 319.57 | I66: 331.28 | J66: 344.57 | K66: 318 | L66: 293 | M66: 0.59295
A67: 57 | B67: BEL | C67: 113.9 | D67: 113.95 | E67: 112.60 | F67: 111.30 | G67: 109.95 | H67: 115.25 | I67: 116.60 | J67: 117.90 | K67: 115.3 | L67: 112.65 | M67: 110.01089
A68: 58 | B68: BHARATFORG | C68: 435.85 | D68: 434.38 | E68: 431.62 | F68: 427.38 | G68: 424.62 | H68: 438.62 | I68: 441.38 | J68: 445.62 | K68: 437.15 | L68: 430.15 | M68: 13.58199
A69: 59 | B69: BHEL | C69: 73.9 | D69: 73.48 | E69: 72.72 | F69: 71.53 | G69: 70.77 | H69: 74.67 | I69: 75.43 | J69: 76.62 | K69: 74.25 | L69: 72.3 | M69: 83.06005
A70: 60 | B70: BPCL | C70: 393.1 | D70: 388.90 | E70: 383.20 | F70: 373.30 | G70: 367.60 | H70: 398.80 | I70: 404.50 | J70: 414.40 | K70: 394.6 | L70: 379 | M70: 62.04969
A71: 61 | B71: BHARTIARTL | C71: 348.6 | D71: 348.38 | E71: 344.77 | F71: 340.93 | G71: 337.32 | H71: 352.22 | I71: 355.83 | J71: 359.67 | K71: 352 | L71: 344.55 | M71: 27.96405
A72: 62 | B72: INFRATEL | C72: 269.8 | D72: 269.45 | E72: 266.35 | F72: 262.90 | G72: 259.80 | H72: 272.90 | I72: 276.00 | J72: 279.45 | K72: 272.55 | L72: 266 | M72: 20.09198
A73: 63 | B73: BIOCON | C73: 246.3 | D73: 247.17 | E73: 244.33 | F73: 242.37 | G73: 239.53 | H73: 249.13 | I73: 251.97 | J73: 253.93 | K73: 250 | L73: 245.2 | M73: 17.5451
A74: 64 | B74: BIRLACORPN | C74: 575.3 | D74: 575.83 | E74: 568.97 | F74: 562.63 | G74: 555.77 | H74: 582.17 | I74: 589.03 | J74: 595.37 | K74: 582.7 | L74: 569.5 | M74: 0.44689
A75: 65 | B75: BLISSGVS | C75: 156.7 | D75: 156.53 | E75: 153.52 | F75: 150.33 | G75: 147.32 | H75: 159.72 | I75: 162.73 | J75: 165.92 | K75: 159.55 | L75: 153.35 | M75: 5.25284
A76: 66 | B76: BLUEDART | C76: 2683.75 | D76: 2685.67 | E76: 2653.63 | F76: 2623.52 | G76: 2591.48 | H76: 2715.78 | I76: 2747.82 | J76: 2777.93 | K76: 2717.7 | L76: 2655.55 | M76: 0.01123
A77: 67 | B77: BLUESTARCO | C77: 747.35 | D77: 748.47 | E77: 738.93 | F77: 730.52 | G77: 720.98 | H77: 756.88 | I77: 766.42 | J77: 774.83 | K77: 758 | L77: 740.05 | M77: 0.40654
A78: 68 | B78: BBTC | C78: 955.1 | D78: 959.70 | E78: 945.40 | F78: 935.70 | G78: 921.40 | H78: 969.40 | I78: 983.70 | J78: 993.40 | K78: 974 | L78: 950 | M78: 0.39595
A79: 69 | B79: BOMDYEING | C79: 100.9 | D79: 101.13 | E79: 99.87 | F79: 98.83 | G79: 97.57 | H79: 102.17 | I79: 103.43 | J79: 104.47 | K79: 102.4 | L79: 100.1 | M79: 7.12694
A80: 70 | B80: BOSCHLTD | C80: 16469.3 | D80: 16424.07 | E80: 16346.43 | F80: 16223.57 | G80: 16145.93 | H80: 16546.93 | I80: 16624.57 | J80: 16747.43 | K80: 16501.7 | L80: 16301.2 | M80: 0.04962
A81: 71 | B81: BRIGADE | C81: 246.25 | D81: 247.07 | E81: 240.68 | F81: 235.12 | G81: 228.73 | H81: 252.63 | I81: 259.02 | J81: 264.58 | K81: 253.45 | L81: 241.5 | M81: 0.48702
A82: 72 | B82: BRITANNIA | C82: 2807.7 | D82: 2793.22 | E82: 2768.08 | F82: 2728.47 | G82: 2703.33 | H82: 2832.83 | I82: 2857.97 | J82: 2897.58 | K82: 2818.35 | L82: 2753.6 | M82: 3.04799
A83: 73 | B83: CARERATING | C83: 921.75 | D83: 919.08 | E83: 912.72 | F83: 903.68 | G83: 897.32 | H83: 928.12 | I83: 934.48 | J83: 943.52 | K83: 925.45 | L83: 910.05 | M83: 0.05565
A84: 74 | B84: CCL | C84: 251.3 | D84: 253.25 | E84: 248.50 | F84: 245.70 | G84: 240.95 | H84: 256.05 | I84: 260.80 | J84: 263.60 | K84: 258 | L84: 250.45 | M84: 0.09659
A85: 75 | B85: CESC | C85: 787.9 | D85: 777.17 | E85: 763.73 | F85: 739.57 | G85: 726.13 | H85: 801.33 | I85: 814.77 | J85: 838.93 | K85: 790.6 | L85: 753 | M85: 9.34058
A86: 77 | B86: CGPOWER | C86: 28.95 | D86: 28.78 | E86: 28.12 | F86: 27.28 | G86: 26.62 | H86: 29.62 | I86: 30.28 | J86: 31.12 | K86: 29.45 | L86: 27.95 | M86: 53.80259
A87: 78 | B87: CRISIL | C87: 1422.1 | D87: 1407.97 | E87: 1385.93 | F87: 1349.77 | G87: 1327.73 | H87: 1444.13 | I87: 1466.17 | J87: 1502.33 | K87: 1430 | L87: 1371.8 | M87: 0.17072
A88: 79 | B88: CADILAHC | C88: 230.4 | D88: 228.78 | E88: 224.77 | F88: 219.13 | G88: 215.12 | H88: 234.42 | I88: 238.43 | J88: 244.07 | K88: 232.8 | L88: 223.15 | M88: 23.27066
A89: 80 | B89: CANFINHOME | C89: 356.05 | D89: 353.65 | E89: 347.90 | F89: 339.75 | G89: 334.00 | H89: 361.80 | I89: 367.55 | J89: 375.70 | K89: 359.4 | L89: 345.5 | M89: 8.40845
A90: 81 | B90: CANBK | C90: 274.55 | D90: 273.98 | E90: 271.57 | F90: 268.58 | G90: 266.17 | H90: 276.97 | I90: 279.38 | J90: 282.37 | K90: 276.4 | L90: 271 | M90: 31.48894
A91: 82 | B91: CAPLIPOINT | C91: 410.45 | D91: 412.15 | E91: 394.30 | F91: 378.15 | G91: 360.30 | H91: 428.30 | I91: 446.15 | J91: 462.30 | K91: 430 | L91: 396 | M91: 0.25634
A92: 83 | B92: CARBORUNIV | C92: 361.35 | D92: 355.98 | E92: 347.52 | F92: 333.68 | G92: 325.22 | H92: 369.82 | I92: 378.28 | J92: 392.12 | K92: 364.45 | L92: 342.15 | M92: 0.44373
A93: 84 | B93: CASTROLIND | C93: 137.55 | D93: 137.38 | E93: 136.37 | F93: 135.18 | G93: 134.17 | H93: 138.57 | I93: 139.58 | J93: 140.77 | K93: 138.4 | L93: 136.2 | M93: 7.88134
A94: 85 | B94: CEATLTD | C94: 941.45 | D94: 927.05 | E94: 906.25 | F94: 871.05 | G94: 850.25 | H94: 962.25 | I94: 983.05 | J94: 1018.25 | K94: 947.85 | L94: 891.85 | M94: 12.64377
A95: 86 | B95: CENTRALBK | C95: 20.4 | D95: 20.57 | E95: 20.13 | F95: 19.87 | G95: 19.43 | H95: 20.83 | I95: 21.27 | J95: 21.53 | K95: 21 | L95: 20.3 | M95: 8.22891
A96: 87 | B96: CDSL | C96: 219.55 | D96: 219.52 | E96: 217.03 | F96: 214.52 | G96: 212.03 | H96: 222.03 | I96: 224.52 | J96: 227.03 | K96: 222 | L96: 217 | M96: 0.79765
A97: 88 | B97: CENTURYPLY | C97: 156.5 | D97: 156.45 | E97: 155.15 | F97: 153.80 | G97: 152.50 | H97: 157.80 | I97: 159.10 | J97: 160.45 | K97: 157.75 | L97: 155.1 | M97: 0.48586
A98: 89 | B98: CERA | C98: 2968.1 | D98: 2972.80 | E98: 2945.70 | F98: 2923.30 | G98: 2896.20 | H98: 2995.20 | I98: 3022.30 | J98: 3044.70 | K98: 2999.9 | L98: 2950.4 | M98: 0.048
A99: 90 | B99: CHAMBLFERT | C99: 171.65 | D99: 171.92 | E99: 170.13 | F99: 168.62 | G99: 166.83 | H99: 173.43 | I99: 175.22 | J99: 176.73 | K99: 173.7 | L99: 170.4 | M99: 0.97453
A100: 91 | B100: CHENNPETRO | C100: 208.55 | D100: 208.43 | E100: 205.17 | F100: 201.78 | G100: 198.52 | H100: 211.82 | I100: 215.08 | J100: 218.47 | K100: 211.7 | L100: 205.05 | M100: 2.96556
A101: 92 | B101: CHOLAHLDNG | C101: 478.95 | D101: 474.77 | E101: 467.53 | F101: 456.12 | G101: 448.88 | H101: 486.18 | I101: 493.42 | J101: 504.83 | K101: 482 | L101: 463.35 | M101: 0.10372
A102: 93 | B102: CHOLAFIN | C102: 277.95 | D102: 276.88 | E102: 273.12 | F102: 268.28 | G102: 264.52 | H102: 281.72 | I102: 285.48 | J102: 290.32 | K102: 280.65 | L102: 272.05 | M102: 5.0279
A103: 94 | B103: CIPLA | C103: 550.05 | D103: 550.52 | E103: 546.08 | F103: 542.12 | G103: 537.68 | H103: 554.48 | I103: 558.92 | J103: 562.88 | K103: 554.95 | L103: 546.55 | M103: 8.05704
A104: 95 | B104: CUB | C104: 214.25 | D104: 213.40 | E104: 211.60 | F104: 208.95 | G104: 207.15 | H104: 216.05 | I104: 217.85 | J104: 220.50 | K104: 215.2 | L104: 210.75 | M104: 5.30463
A105: 96 | B105: COALINDIA | C105: 258.35 | D105: 257.30 | E105: 255.60 | F105: 252.85 | G105: 251.15 | H105: 260.05 | I105: 261.75 | J105: 264.50 | K105: 259 | L105: 254.55 | M105: 25.90646
A106: 97 | B106: COCHINSHIP | C106: 374.85 | D106: 375.58 | E106: 373.27 | F106: 371.68 | G106: 369.37 | H106: 377.17 | I106: 379.48 | J106: 381.07 | K106: 377.9 | L106: 374 | M106: 0.31059
A107: 98 | B107: COFFEEDAY | C107: 215.2 | D107: 215.87 | E107: 213.73 | F107: 212.27 | G107: 210.13 | H107: 217.33 | I107: 219.47 | J107: 220.93 | K107: 218 | L107: 214.4 | M107: 0.32636
A108: 99 | B108: COLPAL | C108: 1137.75 | D108: 1133.93 | E108: 1127.87 | F108: 1117.98 | G108: 1111.92 | H108: 1143.82 | I108: 1149.88 | J108: 1159.77 | K108: 1140 | L108: 1124.05 | M108: 2.62664
A109: 100 | B109: CONCOR | C109: 554.25 | D109: 554.35 | E109: 549.90 | F109: 545.55 | G109: 541.10 | H109: 558.70 | I109: 563.15 | J109: 567.50 | K109: 558.8 | L109: 550 | M109: 4.62745
A110: 101 | B110: COROMANDEL | C110: 416.5 | D110: 412.40 | E110: 406.90 | F110: 397.30 | G110: 391.80 | H110: 422.00 | I110: 427.50 | J110: 437.10 | K110: 417.9 | L110: 402.8 | M110: 1.78222
A111: 102 | B111: CORPBANK | C111: 22.7 | D111: 22.80 | E111: 22.45 | F111: 22.20 | G111: 21.85 | H111: 23.05 | I111: 23.40 | J111: 23.65 | K111: 23.15 | L111: 22.55 | M111: 1.44825
A112: 103 | B112: COX&KINGS | C112: 50.35 | D112: 49.15 | E112: 45.20 | F112: 40.05 | G112: 36.10 | H112: 54.30 | I112: 58.25 | J112: 63.40 | K112: 53.1 | L112: 44 | M112: 60.50448
A113: 104 | B113: CREDITACC | C113: 520.05 | D113: 522.75 | E113: 513.50 | F113: 506.95 | G113: 497.70 | H113: 529.30 | I113: 538.55 | J113: 545.10 | K113: 532 | L113: 516.2 | M113: 0.27216
A114: 105 | B114: CROMPTON | C114: 230.7 | D114: 231.48 | E114: 228.32 | F114: 225.93 | G114: 222.77 | H114: 233.87 | I114: 237.03 | J114: 239.42 | K114: 234.65 | L114: 229.1 | M114: 13.96286
A115: 106 | B115: CUMMINSIND | C115: 757.45 | D115: 760.43 | E115: 748.87 | F115: 740.28 | G115: 728.72 | H115: 769.02 | I115: 780.58 | J115: 789.17 | K115: 772 | L115: 751.85 | M115: 5.44083
A116: 107 | B116: CYIENT | C116: 549.7 | D116: 551.90 | E116: 544.30 | F116: 538.90 | G116: 531.30 | H116: 557.30 | I116: 564.90 | J116: 570.30 | K116: 559.5 | L116: 546.5 | M116: 0.38425
A117: 108 | B117: DBCORP | C117: 195.15 | D117: 193.88 | E117: 191.27 | F117: 187.38 | G117: 184.77 | H117: 197.77 | I117: 200.38 | J117: 204.27 | K117: 196.5 | L117: 190 | M117: 2.68941
A118: 109 | B118: DCBBANK | C118: 240.35 | D118: 237.80 | E118: 230.95 | F118: 221.55 | G118: 214.70 | H118: 247.20 | I118: 254.05 | J118: 263.45 | K118: 244.65 | L118: 228.4 | M118: 28.27138
A119: 110 | B119: DCMSHRIRAM | C119: 523.75 | D119: 521.58 | E119: 513.27 | F119: 502.78 | G119: 494.47 | H119: 532.07 | I119: 540.38 | J119: 550.87 | K119: 529.9 | L119: 511.1 | M119: 1.01269
A120: 111 | B120: DLF | C120: 176.25 | D120: 175.88 | E120: 174.42 | F120: 172.58 | G120: 171.12 | H120: 177.72 | I120: 179.18 | J120: 181.02 | K120: 177.35 | L120: 174.05 | M120: 47.69918
A121: 112 | B121: DABUR | C121: 394.3 | D121: 392.63 | E121: 389.87 | F121: 385.43 | G121: 382.67 | H121: 397.07 | I121: 399.83 | J121: 404.27 | K121: 395.4 | L121: 388.2 | M121: 12.84969
A122: 113 | B122: DEEPAKFERT | C122: 124.65 | D122: 124.90 | E122: 123.25 | F122: 121.85 | G122: 120.20 | H122: 126.30 | I122: 127.95 | J122: 129.35 | K122: 126.55 | L122: 123.5 | M122: 0.73908
A123: 114 | B123: DEEPAKNTR | C123: 282.2 | D123: 282.35 | E123: 280.25 | F123: 278.30 | G123: 276.20 | H123: 284.30 | I123: 286.40 | J123: 288.35 | K123: 284.45 | L123: 280.4 | M123: 0.76461
A124: 115 | B124: DELTACORP | C124: 173.35 | D124: 173.68 | E124: 171.67 | F124: 169.98 | G124: 167.97 | H124: 175.37 | I124: 177.38 | J124: 179.07 | K124: 175.7 | L124: 172 | M124: 3.62223
A125: 116 | B125: DHFL | C125: 75.45 | D125: 76.82 | E125: 73.03 | F125: 70.62 | G125: 66.83 | H125: 79.23 | I125: 83.02 | J125: 85.43 | K125: 80.6 | L125: 74.4 | M125: 283.24966
A126: 117 | B126: DBL | C126: 399.9 | D126: 400.63 | E126: 396.37 | F126: 392.83 | G126: 388.57 | H126: 404.17 | I126: 408.43 | J126: 411.97 | K126: 404.9 | L126: 397.1 | M126: 1.51939
A127: 118 | B127: DISHTV | C127: 26.45 | D127: 26.22 | E127: 25.53 | F127: 24.62 | G127: 23.93 | H127: 27.13 | I127: 27.82 | J127: 28.73 | K127: 26.9 | L127: 25.3 | M127: 276.5422
A128: 119 | B128: DCAL | C128: 217.25 | D128: 217.93 | E128: 215.82 | F128: 214.38 | G128: 212.27 | H128: 219.37 | I128: 221.48 | J128: 222.92 | K128: 220.05 | L128: 216.5 | M128: 0.45505
A129: 120 | B129: DIVISLAB | C129: 1602.4 | D129: 1592.13 | E129: 1575.27 | F129: 1548.13 | G129: 1531.27 | H129: 1619.27 | I129: 1636.13 | J129: 1663.27 | K129: 1609 | L129: 1565 | M129: 4.57699
A130: 121 | B130: DIXON | C130: 2243.5 | D130: 2236.75 | E130: 2199.60 | F130: 2155.70 | G130: 2118.55 | H130: 2280.65 | I130: 2317.80 | J130: 2361.70 | K130: 2273.9 | L130: 2192.85 | M130: 0.28419
A131: 122 | B131: LALPATHLAB | C131: 1159.6 | D131: 1161.62 | E131: 1147.98 | F131: 1136.37 | G131: 1122.73 | H131: 1173.23 | I131: 1186.87 | J131: 1198.48 | K131: 1175.25 | L131: 1150 | M131: 0.51426
A132: 123 | B132: DRREDDY | C132: 2536.05 | D132: 2525.52 | E132: 2498.58 | F132: 2461.12 | G132: 2434.18 | H132: 2562.98 | I132: 2589.92 | J132: 2627.38 | K132: 2552.45 | L132: 2488.05 | M132: 4.37218
A133: 124 | B133: EIDPARRY | C133: 167.2 | D133: 166.58 | E133: 164.62 | F133: 162.03 | G133: 160.07 | H133: 169.17 | I133: 171.13 | J133: 173.72 | K133: 168.55 | L133: 164 | M133: 0.68514
A134: 125 | B134: EIHOTEL | C134: 173.75 | D134: 173.05 | E134: 170.70 | F134: 167.65 | G134: 165.30 | H134: 176.10 | I134: 178.45 | J134: 181.50 | K134: 175.4 | L134: 170 | M134: 1.29747
A135: 126 | B135: EDELWEISS | C135: 167.35 | D135: 168.82 | E135: 165.13 | F135: 162.92 | G135: 159.23 | H135: 171.03 | I135: 174.72 | J135: 176.93 | K135: 172.5 | L135: 166.6 | M135: 6.58406
A136: 127 | B136: EICHERMOT | C136: 19116.85 | D136: 19065.60 | E136: 18882.30 | F136: 18647.75 | G136: 18464.45 | H136: 19300.15 | I136: 19483.45 | J136: 19718.00 | K136: 19248.9 | L136: 18831.05 | M136: 1.29656
A137: 128 | B137: ELGIEQUIP | C137: 259.85 | D137: 260.10 | E137: 258.25 | F137: 256.65 | G137: 254.80 | H137: 261.70 | I137: 263.55 | J137: 265.15 | K137: 261.95 | L137: 258.5 | M137: 0.051
A138: 129 | B138: EMAMILTD | C138: 290.35 | D138: 287.45 | E138: 273.90 | F138: 257.45 | G138: 243.90 | H138: 303.90 | I138: 317.45 | J138: 333.90 | K138: 301 | L138: 271 | M138: 129.68646
A139: 130 | B139: ENDURANCE | C139: 1130.6 | D139: 1124.20 | E139: 1107.40 | F139: 1084.20 | G139: 1067.40 | H139: 1147.40 | I139: 1164.20 | J139: 1187.40 | K139: 1141 | L139: 1101 | M139: 0.44616
A140: 131 | B140: ENGINERSIN | C140: 118.2 | D140: 117.60 | E140: 116.55 | F140: 114.90 | G140: 113.85 | H140: 119.25 | I140: 120.30 | J140: 121.95 | K140: 118.65 | L140: 115.95 | M140: 5.31205
A141: 132 | B141: EQUITAS | C141: 119.95 | D141: 121.92 | E141: 117.28 | F141: 114.62 | G141: 109.98 | H141: 124.58 | I141: 129.22 | J141: 131.88 | K141: 126.55 | L141: 119.25 | M141: 61.04917
A142: 133 | B142: ERIS | C142: 509 | D142: 515.17 | E142: 496.33 | F142: 483.67 | G142: 464.83 | H142: 527.83 | I142: 546.67 | J142: 559.33 | K142: 534 | L142: 502.5 | M142: 1.27328
A143: 134 | B143: ESCORTS | C143: 544.4 | D143: 540.15 | E143: 528.45 | F143: 512.50 | G143: 500.80 | H143: 556.10 | I143: 567.80 | J143: 583.75 | K143: 551.85 | L143: 524.2 | M143: 23.30881
A144: 135 | B144: ESSELPACK | C144: 129.4 | D144: 129.53 | E144: 128.97 | F144: 128.53 | G144: 127.97 | H144: 129.97 | I144: 130.53 | J144: 130.97 | K144: 130.1 | L144: 129.1 | M144: 0.92135
A145: 136 | B145: EXIDEIND | C145: 203.85 | D145: 202.48 | E145: 200.57 | F145: 197.28 | G145: 195.37 | H145: 205.77 | I145: 207.68 | J145: 210.97 | K145: 204.4 | L145: 199.2 | M145: 9.73828
A146: 137 | B146: FDC | C146: 176.55 | D146: 175.77 | E146: 174.73 | F146: 172.92 | G146: 171.88 | H146: 177.58 | I146: 178.62 | J146: 180.43 | K146: 176.8 | L146: 173.95 | M146: 0.16451
A147: 138 | B147: FEDERALBNK | C147: 103.95 | D147: 103.50 | E147: 102.50 | F147: 101.05 | G147: 100.05 | H147: 104.95 | I147: 105.95 | J147: 107.40 | K147: 104.5 | L147: 102.05 | M147: 59.81041
A148: 139 | B148: FINEORG | C148: 1359.7 | D148: 1364.93 | E148: 1319.87 | F148: 1280.03 | G148: 1234.97 | H148: 1404.77 | I148: 1449.83 | J148: 1489.67 | K148: 1410 | L148: 1325.1 | M148: 0.20835
A149: 140 | B149: FINCABLES | C149: 452.05 | D149: 450.72 | E149: 436.43 | F149: 420.82 | G149: 406.53 | H149: 466.33 | I149: 480.62 | J149: 496.23 | K149: 465 | L149: 435.1 | M149: 0.46201
A150: 141 | B150: FINPIPE | C150: 510.2 | D150: 507.25 | E150: 502.95 | F150: 495.70 | G150: 491.40 | H150: 514.50 | I150: 518.80 | J150: 526.05 | K150: 511.55 | L150: 500 | M150: 0.19228
A151: 142 | B151: FSL | C151: 49.5 | D151: 49.40 | E151: 48.90 | F151: 48.30 | G151: 47.80 | H151: 50.00 | I151: 50.50 | J151: 51.10 | K151: 49.9 | L151: 48.8 | M151: 9.86437
A152: 143 | B152: FORTIS | C152: 129 | D152: 128.83 | E152: 128.27 | F152: 127.53 | G152: 126.97 | H152: 129.57 | I152: 130.13 | J152: 130.87 | K152: 129.4 | L152: 128.1 | M152: 9.68578
A153: 144 | B153: FCONSUMER | C153: 39.15 | D153: 38.93 | E153: 38.22 | F153: 37.28 | G153: 36.57 | H153: 39.87 | I153: 40.58 | J153: 41.52 | K153: 39.65 | L153: 38 | M153: 12.50191
A154: 145 | B154: FLFL | C154: 452.95 | D154: 457.73 | E154: 446.67 | F154: 440.38 | G154: 429.32 | H154: 464.02 | I154: 475.08 | J154: 481.37 | K154: 468.8 | L154: 451.45 | M154: 1.28659
A155: 146 | B155: FRETAIL | C155: 477.65 | D155: 474.13 | E155: 467.32 | F155: 456.98 | G155: 450.17 | H155: 484.47 | I155: 491.28 | J155: 501.62 | K155: 480.95 | L155: 463.8 | M155: 2.44616
A156: 147 | B156: GAIL | C156: 309.7 | D156: 308.17 | E156: 305.78 | F156: 301.87 | G156: 299.48 | H156: 312.08 | I156: 314.47 | J156: 318.38 | K156: 310.55 | L156: 304.25 | M156: 38.71816
A157: 148 | B157: GEPIL | C157: 850.2 | D157: 840.25 | E157: 827.50 | F157: 804.80 | G157: 792.05 | H157: 862.95 | I157: 875.70 | J157: 898.40 | K157: 853 | L157: 817.55 | M157: 0.07638
A158: 149 | B158: GET&D | C158: 231.15 | D158: 232.05 | E158: 229.70 | F158: 228.25 | G158: 225.90 | H158: 233.50 | I158: 235.85 | J158: 237.30 | K158: 234.4 | L158: 230.6 | M158: 0.13752
A159: 150 | B159: GHCL | C159: 244.4 | D159: 244.78 | E159: 242.57 | F159: 240.73 | G159: 238.52 | H159: 246.62 | I159: 248.83 | J159: 250.67 | K159: 247 | L159: 242.95 | M159: 0.39243
A160: 151 | B160: GMRINFRA | C160: 15.1 | D160: 15.18 | E160: 14.92 | F160: 14.73 | G160: 14.47 | H160: 15.37 | I160: 15.63 | J160: 15.82 | K160: 15.45 | L160: 15 | M160: 148.71099
A161: 152 | B161: GALAXYSURF | C161: 1209.3 | D161: 1202.77 | E161: 1189.53 | F161: 1169.77 | G161: 1156.53 | H161: 1222.53 | I161: 1235.77 | J161: 1255.53 | K161: 1216 | L161: 1183 | M161: 0.07105
A162: 153 | B162: GDL | C162: 129.1 | D162: 129.40 | E162: 127.80 | F162: 126.50 | G162: 124.90 | H162: 130.70 | I162: 132.30 | J162: 133.60 | K162: 131 | L162: 128.1 | M162: 0.61104
A163: 154 | B163: GAYAPROJ | C163: 156.65 | D163: 157.02 | E163: 154.63 | F163: 152.62 | G163: 150.23 | H163: 159.03 | I163: 161.42 | J163: 163.43 | K163: 159.4 | L163: 155 | M163: 0.27107
A164: 155 | B164: GICRE | C164: 206.9 | D164: 207.60 | E164: 203.40 | F164: 199.90 | G164: 195.70 | H164: 211.10 | I164: 215.30 | J164: 218.80 | K164: 211.8 | L164: 204.1 | M164: 6.06703
A165: 156 | B165: GILLETTE | C165: 7375.05 | D165: 7384.20 | E165: 7324.35 | F165: 7273.65 | G165: 7213.80 | H165: 7434.90 | I165: 7494.75 | J165: 7545.45 | K165: 7444.05 | L165: 7333.5 | M165: 0.01022
A166: 157 | B166: GSKCONS | C166: 7458.85 | D166: 7482.70 | E166: 7420.40 | F166: 7381.95 | G166: 7319.65 | H166: 7521.15 | I166: 7583.45 | J166: 7621.90 | K166: 7545 | L166: 7444.25 | M166: 0.18022
A167: 158 | B167: GLAXO | C167: 1227.2 | D167: 1228.62 | E167: 1223.68 | F167: 1220.17 | G167: 1215.23 | H167: 1232.13 | I167: 1237.07 | J167: 1240.58 | K167: 1233.55 | L167: 1225.1 | M167: 0.38779
A168: 159 | B168: GLENMARK | C168: 455.55 | D168: 458.68 | E168: 448.47 | F168: 441.38 | G168: 431.17 | H168: 465.77 | I168: 475.98 | J168: 483.07 | K168: 468.9 | L168: 451.6 | M168: 54.83276
A169: 160 | B169: GODFRYPHLP | C169: 873.5 | D169: 867.83 | E169: 857.67 | F169: 841.83 | G169: 831.67 | H169: 883.67 | I169: 893.83 | J169: 909.67 | K169: 878 | L169: 852 | M169: 1.01133
A170: 161 | B170: GODREJAGRO | C170: 504.5 | D170: 503.73 | E170: 501.07 | F170: 497.63 | G170: 494.97 | H170: 507.17 | I170: 509.83 | J170: 513.27 | K170: 506.4 | L170: 500.3 | M170: 0.52898
A171: 162 | B171: GODREJCP | C171: 675.65 | D171: 674.60 | E171: 670.75 | F171: 665.85 | G171: 662.00 | H171: 679.50 | I171: 683.35 | J171: 688.25 | K171: 678.45 | L171: 669.7 | M171: 9.26776
A172: 163 | B172: GODREJIND | C172: 484.85 | D172: 482.47 | E172: 477.43 | F172: 470.02 | G172: 464.98 | H172: 489.88 | I172: 494.92 | J172: 502.33 | K172: 487.5 | L172: 475.05 | M172: 3.29417
A173: 164 | B173: GODREJPROP | C173: 982.2 | D173: 980.85 | E173: 957.35 | F173: 932.50 | G173: 909.00 | H173: 1005.70 | I173: 1029.20 | J173: 1054.05 | K173: 1004.35 | L173: 956 | M173: 4.09062
A174: 165 | B174: GRANULES | C174: 97.65 | D174: 96.68 | E174: 94.97 | F174: 92.28 | G174: 90.57 | H174: 99.37 | I174: 101.08 | J174: 103.77 | K174: 98.4 | L174: 94 | M174: 3.18838
A175: 166 | B175: GRAPHITE | C175: 336.85 | D175: 338.48 | E175: 333.47 | F175: 330.08 | G175: 325.07 | H175: 341.87 | I175: 346.88 | J175: 350.27 | K175: 343.5 | L175: 335.1 | M175: 12.70473
A176: 167 | B176: GRASIM | C176: 902.15 | D176: 895.22 | E176: 883.98 | F176: 865.82 | G176: 854.58 | H176: 913.38 | I176: 924.62 | J176: 942.78 | K176: 906.45 | L176: 877.05 | M176: 10.2023
A177: 168 | B177: GESHIP | C177: 264.95 | D177: 263.60 | E177: 259.40 | F177: 253.85 | G177: 249.65 | H177: 269.15 | I177: 273.35 | J177: 278.90 | K177: 267.8 | L177: 258.05 | M177: 0.76231
A178: 169 | B178: GREAVESCOT | C178: 143.25 | D178: 143.95 | E178: 142.00 | F178: 140.75 | G178: 138.80 | H178: 145.20 | I178: 147.15 | J178: 148.40 | K178: 145.9 | L178: 142.7 | M178: 1.31475
A179: 170 | B179: GRINDWELL | C179: 569.35 | D179: 566.87 | E179: 560.73 | F179: 552.12 | G179: 545.98 | H179: 575.48 | I179: 581.62 | J179: 590.23 | K179: 573 | L179: 558.25 | M179: 0.06207
A180: 171 | B180: GRUH | C180: 275 | D180: 275.58 | E180: 272.67 | F180: 270.33 | G180: 267.42 | H180: 277.92 | I180: 280.83 | J180: 283.17 | K180: 278.5 | L180: 273.25 | M180: 8.63717
A181: 172 | B181: GUJALKALI | C181: 509.45 | D181: 507.85 | E181: 502.10 | F181: 494.75 | G181: 489.00 | H181: 515.20 | I181: 520.95 | J181: 528.30 | K181: 513.6 | L181: 500.5 | M181: 0.19287
A182: 173 | B182: GUJFLUORO | C182: 979 | D182: 987.27 | E182: 964.53 | F182: 950.07 | G182: 927.33 | H182: 1001.73 | I182: 1024.47 | J182: 1038.93 | K182: 1010 | L182: 972.8 | M182: 0.40763
A183: 174 | B183: GUJGASLTD | C183: 170.3 | D183: 169.10 | E183: 166.20 | F183: 162.10 | G183: 159.20 | H183: 173.20 | I183: 176.10 | J183: 180.20 | K183: 172 | L183: 165 | M183: 2.22405
A184: 175 | B184: GMDCLTD | C184: 73.6 | D184: 73.90 | E184: 73.20 | F184: 72.80 | G184: 72.10 | H184: 74.30 | I184: 75.00 | J184: 75.40 | K184: 74.6 | L184: 73.5 | M184: 0.58132
A185: 176 | B185: GNFC | C185: 236.7 | D185: 238.07 | E185: 234.58 | F185: 232.47 | G185: 228.98 | H185: 240.18 | I185: 243.67 | J185: 245.78 | K185: 241.55 | L185: 235.95 | M185: 2.04007
A186: 177 | B186: GPPL | C186: 85.2 | D186: 84.37 | E186: 82.93 | F186: 80.67 | G186: 79.23 | H186: 86.63 | I186: 88.07 | J186: 90.33 | K186: 85.8 | L186: 82.1 | M186: 0.61279
A187: 178 | B187: GSFC | C187: 91.55 | D187: 91.25 | E187: 90.10 | F187: 88.65 | G187: 87.50 | H187: 92.70 | I187: 93.85 | J187: 95.30 | K187: 92.4 | L187: 89.8 | M187: 23.88946
A188: 179 | B188: GSPL | C188: 188 | D188: 185.92 | E188: 183.08 | F188: 178.17 | G188: 175.33 | H188: 190.83 | I188: 193.67 | J188: 198.58 | K188: 188.75 | L188: 181 | M188: 1.11294
A189: 180 | B189: GULFOILLUB | C189: 851 | D189: 853.33 | E189: 845.67 | F189: 840.33 | G189: 832.67 | H189: 858.67 | I189: 866.33 | J189: 871.67 | K189: 861 | L189: 848 | M189: 0.03711
A190: 181 | B190: HEG | C190: 1413.6 | D190: 1409.90 | E190: 1375.80 | F190: 1338.00 | G190: 1303.90 | H190: 1447.70 | I190: 1481.80 | J190: 1519.60 | K190: 1444 | L190: 1372.1 | M190: 3.99377
A191: 182 | B191: HCLTECH | C191: 1079 | D191: 1073.42 | E191: 1065.73 | F191: 1052.47 | G191: 1044.78 | H191: 1086.68 | I191: 1094.37 | J191: 1107.63 | K191: 1081.1 | L191: 1060.15 | M191: 11.01967
A192: 183 | B192: HDFCAMC | C192: 1952.55 | D192: 1946.52 | E192: 1921.03 | F192: 1889.52 | G192: 1864.03 | H192: 1978.03 | I192: 2003.52 | J192: 2035.03 | K192: 1972 | L192: 1915 | M192: 4.13009
A193: 184 | B193: HDFCBANK | C193: 2428.7 | D193: 2424.40 | E193: 2407.30 | F193: 2385.90 | G193: 2368.80 | H193: 2445.80 | I193: 2462.90 | J193: 2484.30 | K193: 2441.5 | L193: 2403 | M193: 22.2495
A194: 185 | B194: HDFCLIFE | C194: 437.5 | D194: 438.57 | E194: 434.93 | F194: 432.37 | G194: 428.73 | H194: 441.13 | I194: 444.77 | J194: 447.33 | K194: 442.2 | L194: 436 | M194: 10.34858
A195: 186 | B195: HATHWAY | C195: 23.85 | D195: 23.97 | E195: 22.93 | F195: 22.02 | G195: 20.98 | H195: 24.88 | I195: 25.92 | J195: 26.83 | K195: 25 | L195: 23.05 | M195: 1.24091
A196: 187 | B196: HATSUN | C196: 714.6 | D196: 712.35 | E196: 709.70 | F196: 704.80 | G196: 702.15 | H196: 717.25 | I196: 719.90 | J196: 724.80 | K196: 715 | L196: 707.45 | M196: 0.0308
A197: 188 | B197: HAVELLS | C197: 783.95 | D197: 778.98 | E197: 771.72 | F197: 759.48 | G197: 752.22 | H197: 791.22 | I197: 798.48 | J197: 810.72 | K197: 786.25 | L197: 766.75 | M197: 8.4757
A198: 189 | B198: HEIDELBERG | C198: 192.5 | D198: 192.95 | E198: 189.00 | F198: 185.50 | G198: 181.55 | H198: 196.45 | I198: 200.40 | J198: 203.90 | K198: 196.9 | L198: 189.45 | M198: 2.76932
A199: 190 | B199: HERITGFOOD | C199: 413.65 | D199: 412.23 | E199: 406.47 | F199: 399.28 | G199: 393.52 | H199: 419.42 | I199: 425.18 | J199: 432.37 | K199: 418 | L199: 405.05 | M199: 0.42061
A200: 191 | B200: HEROMOTOCO | C200: 2584.65 | D200: 2579.38 | E200: 2555.27 | F200: 2525.88 | G200: 2501.77 | H200: 2608.77 | I200: 2632.88 | J200: 2662.27 | K200: 2603.5 | L200: 2550 | M200: 4.12936
A201: 192 | B201: HEXAWARE | C201: 395.5 | D201: 396.13 | E201: 389.47 | F201: 383.43 | G201: 376.77 | H201: 402.17 | I201: 408.83 | J201: 414.87 | K201: 402.8 | L201: 390.1 | M201: 11.22339
A202: 193 | B202: HFCL | C202: 19.85 | D202: 19.77 | E202: 19.53 | F202: 19.22 | G202: 18.98 | H202: 20.08 | I202: 20.32 | J202: 20.63 | K202: 20 | L202: 19.45 | M202: 8.45706
A203: 194 | B203: HSCL | C203: 104.25 | D203: 104.15 | E203: 103.40 | F203: 102.55 | G203: 101.80 | H203: 105.00 | I203: 105.75 | J203: 106.60 | K203: 104.9 | L203: 103.3 | M203: 4.02453
A204: 195 | B204: HIMATSEIDE | C204: 154.95 | D204: 154.95 | E204: 150.80 | F204: 146.65 | G204: 142.50 | H204: 159.10 | I204: 163.25 | J204: 167.40 | K204: 159.1 | L204: 150.8 | M204: 1.49461
A205: 196 | B205: HINDALCO | C205: 202.5 | D205: 200.30 | E205: 196.70 | F205: 190.90 | G205: 187.30 | H205: 206.10 | I205: 209.70 | J205: 215.50 | K205: 203.9 | L205: 194.5 | M205: 84.18631
A206: 197 | B206: HAL | C206: 720.3 | D206: 723.10 | E206: 697.20 | F206: 674.10 | G206: 648.20 | H206: 746.20 | I206: 772.10 | J206: 795.20 | K206: 749 | L206: 700 | M206: 5.21377
... 320 more rows

Sheet Bulk Deals
E6: Back To Main Page
A7: Subject : | B7: BULK DEAL | D7: =Main!B10 -> 2019-06-26
A9: Date | B9: Scrip code | C9: Scrip Name | D9: Client Name | E9: Buy / Sell | F9: Quantity Traded | G9: Trade Price / Wt.Avg.trade price | H9: Exchange
A10: 2019-06-25 | B10: 538778 | C10: AKASHDEEP | D10: SIRIUS ADVISORS PRIVATE LIMITED. | E10: SELL | F10: 85,867 | G10: 42.26 | H10: BSE
A11: 2019-06-25 | B11: 538778 | C11: AKASHDEEP | D11: ARNOLD HOLDINGS LIMITED | E11: BUY | F11: 127,000 | G11: 42.31 | H11: BSE
A12: 2019-06-25 | B12: 500343 | C12: AMJLAND | D12: CHEM MACH PRIVATE LIMITED | E12: BUY | F12: 1,712,850 | G12: 16.3 | H12: BSE
A13: 2019-06-25 | B13: 500343 | C13: AMJLAND | D13: PUDUMJEE INDUSTRIES LTD | E13: SELL | F13: 1,712,850 | G13: 16.3 | H13: BSE
A14: 2019-06-25 | B14: 541401 | C14: ARIHANTINS | D14: GUNJAN CHOKSHI | E14: SELL | F14: 56,000 | G14: 5.41 | H14: BSE
A15: 2019-06-25 | B15: 537766 | C15: BCP | D15: GEETHA JAIN | E15: BUY | F15: 295,000 | G15: 40.55 | H15: BSE
A16: 2019-06-25 | B16: 537766 | C16: BCP | D16: KAMLESH S JAIN | E16: BUY | F16: 435,000 | G16: 40.48 | H16: BSE
A17: 2019-06-25 | B17: 537766 | C17: BCP | D17: BON LON SECURITIES LTD | E17: SELL | F17: 1,839,500 | G17: 40.59 | H17: BSE
A18: 2019-06-25 | B18: 539770 | C18: DARJEELING | D18: SHASHIKANT CHINUBHAI KAPADIA | E18: BUY | F18: 11,700 | G18: 96.66 | H18: BSE
A19: 2019-06-25 | B19: 539770 | C19: DARJEELING | D19: SHASHIKANT CHINUBHAI KAPADIA | E19: SELL | F19: 15,999 | G19: 96.03 | H19: BSE
A20: 2019-06-25 | B20: 539098 | C20: FILTRA | D20: ANKITCHHIKARA | E20: SELL | F20: 45,000 | G20: 10.89 | H20: BSE
A21: 2019-06-25 | B21: 531739 | C21: GENNEX | D21: IVORY CONSULTANTS PVT LTD | E21: BUY | F21: 807,200 | G21: 3.62 | H21: BSE
A22: 2019-06-25 | B22: 531739 | C22: GENNEX | D22: IVORY CONSULTANTS PVT LTD | E22: SELL | F22: 107,200 | G22: 3.67 | H22: BSE
A23: 2019-06-25 | B23: 509152 | C23: GRPLTD | D23: BELLWETHER CAPITAL PRIVATE LIMITED | E23: BUY | F23: 11,272 | G23: 985.01 | H23: BSE
A24: 2019-06-25 | B24: 509152 | C24: GRPLTD | D24: BELLWETHER CAPITAL PRIVATE LIMITED | E24: SELL | F24: 7,622 | G24: 985.01 | H24: BSE
A25: 2019-06-25 | B25: 532617 | C25: JETAIRWAYS | D25: CROSSLAND TRADING COMPANY | E25: BUY | F25: 942,977 | G25: 73.39 | H25: BSE
A26: 2019-06-25 | B26: 532617 | C26: JETAIRWAYS | D26: CROSSLAND TRADING COMPANY | E26: SELL | F26: 934,822 | G26: 73.37 | H26: BSE
A27: 2019-06-25 | B27: 532617 | C27: JETAIRWAYS | D27: TOWER RESEARCH CAPITAL MARKETS INDIA PRIVATE LIMITED | E27: BUY | F27: 794,668 | G27: 73.5 | H27: BSE
A28: 2019-06-25 | B28: 532617 | C28: JETAIRWAYS | D28: TOWER RESEARCH CAPITAL MARKETS INDIA PRIVATE LIMITED | E28: SELL | F28: 794,668 | G28: 73.5 | H28: BSE
A29: 2019-06-25 | B29: 542446 | C29: JONJUA | D29: MOHAK SHAH | E29: SELL | F29: 90,000 | G29: 9 | H29: BSE
A30: 2019-06-25 | B30: 542446 | C30: JONJUA | D30: AMITKUMAR SHAH MOHAK | E30: SELL | F30: 60,000 | G30: 9 | H30: BSE
A31: 2019-06-25 | B31: 542446 | C31: JONJUA | D31: A SHAH VISMAY | E31: SELL | F31: 240,000 | G31: 9 | H31: BSE
A32: 2019-06-25 | B32: 542446 | C32: JONJUA | D32: SAURABH JAIN | E32: BUY | F32: 60,000 | G32: 9 | H32: BSE
A33: 2019-06-25 | B33: 542446 | C33: JONJUA | D33: USHA BAID | E33: BUY | F33: 80,000 | G33: 9 | H33: BSE
A34: 2019-06-25 | B34: 542446 | C34: JONJUA | D34: MAANOR INVESTMENTS PRIVATE LIMITED . | E34: BUY | F34: 250,000 | G34: 9 | H34: BSE
A35: 2019-06-25 | B35: 539521 | C35: NAVIGANT | D35: SARTHAK VIJLANI | E35: SELL | F35: 350,000 | G35: 17.5 | H35: BSE
A36: 2019-06-25 | B36: 539521 | C36: NAVIGANT | D36: HANSABEN DIPAKBHAI PUJARA | E36: BUY | F36: 150,000 | G36: 17.5 | H36: BSE
A37: 2019-06-25 | B37: 539521 | C37: NAVIGANT | D37: HEMALI JAYESH DAWDA | E37: BUY | F37: 150,000 | G37: 17.5 | H37: BSE
A38: 2019-06-25 | B38: 539521 | C38: NAVIGANT | D38: GAGAN GOEL | E38: BUY | F38: 30,000 | G38: 17.5 | H38: BSE
A39: 2019-06-25 | B39: 530733 | C39: NOVAPUB | D39: MEENA CHOPRA | E39: SELL | F39: 27,910 | G39: 13.99 | H39: BSE
A40: 2019-06-25 | B40: 530733 | C40: NOVAPUB | D40: YMD FINANCIAL CONSULTANCY PRIVATE LIMITED | E40: SELL | F40: 22,031 | G40: 13.27 | H40: BSE
A41: 2019-06-25 | B41: 540405 | C41: OCEANIC | D41: ANIL BHIKHUBHAI VAROTARIA | E41: BUY | F41: 55,000 | G41: 100.8 | H41: BSE
A42: 2019-06-25 | B42: 540405 | C42: OCEANIC | D42: NILESH NARANBHAI VAROTARIA | E42: BUY | F42: 60,000 | G42: 99 | H42: BSE
A43: 2019-06-25 | B43: 540405 | C43: OCEANIC | D43: HARICHHABEN MAHENDRA JOSHI | E43: SELL | F43: 91,000 | G43: 100.16 | H43: BSE
A44: 2019-06-25 | B44: 540405 | C44: OCEANIC | D44: ASHITABEN BHALCHANDRA VYAS | E44: BUY | F44: 24,000 | G44: 99 | H44: BSE
A45: 2019-06-25 | B45: 540405 | C45: OCEANIC | D45: ASHITABEN BHALCHANDRA VYAS | E45: BUY | F45: 56,000 | G45: 99 | H45: BSE
A46: 2019-06-25 | B46: 540405 | C46: OCEANIC | D46: CHANDARANA D JETHALAL | E46: SELL | F46: 20000 | G46: 99 | H46: BSE
A47: 2019-06-25 | B47: 540405 | C47: OCEANIC | D47: MANISH M KARIA | E47: SELL | F47: 28000 | G47: 99 | H47: BSE
A48: 2019-06-25 | B48: 540405 | C48: OCEANIC | D48: VIJAY ASHOKBHAI JOSHI | E48: SELL | F48: 34000 | G48: 99 | H48: BSE
A49: 2019-06-25 | B49: 539026 | C49: SSPNFIN | D49: RAJESH RAMANLAL KAPADIA | E49: BUY | F49: 12000 | G49: 34.9 | H49: BSE
A50: 2019-06-25 | B50: 539026 | C50: SSPNFIN | D50: NIKITA ALPESH JAIN | E50: SELL | F50: 12000 | G50: 34.9 | H50: BSE
A51: 2019-06-25 | B51: 542025 | C51: SUNRETAIL | D51: DARSHAN R DOSHI HUF | E51: BUY | F51: 51000 | G51: 28.95 | H51: BSE
A52: 2019-06-25 | B52: 542025 | C52: SUNRETAIL | D52: SHAILESHKUMAR J BHATT | E52: BUY | F52: 120000 | G52: 28.95 | H52: BSE
A53: 2019-06-25 | B53: 542025 | C53: SUNRETAIL | D53: NIRAV MAHENDRABHAI KOTHARI | E53: SELL | F53: 99000 | G53: 28 | H53: BSE
A54: 2019-06-25 | B54: 542025 | C54: SUNRETAIL | D54: VISMAY AMITKUMAR SHAH | E54: SELL | F54: 120000 | G54: 28.17 | H54: BSE
A55: 2019-06-25 | B55: 541701 | C55: SUPERSHAKT | D55: ASIA INVESTMENT CORPORATION MAURITIUS LIMITED | E55: SELL | F55: 160200 | G55: 407 | H55: BSE
A56: 2019-06-25 | B56: 541701 | C56: SUPERSHAKT | D56: AVIATOR EMERGING MARKET FUND | E56: BUY | F56: 159900 | G56: 407 | H56: BSE
A57: 2019-06-25 | B57: BEML | C57: BEML Limited | D57: TOWER RESEARCH CAPITAL MARKETS INDIA PRIVATE LIMITED | E57: BUY | F57: 264000 | G57: 841.9 | H57: NSE
A58: 2019-06-25 | B58: DHFL | C58: Dewan Housing Fin Corp | D58: TOWER RESEARCH CAPITAL MARKETS INDIA PRIVATE LIMITED | E58: BUY | F58: 3137198 | G58: 76.8 | H58: NSE
A59: 2019-06-25 | B59: ESSARSHPNG | C59: Essar Shipping Limited | D59: CITOC INVESTMENT SERVICES LLP | E59: BUY | F59: 1864883 | G59: 7.6 | H59: NSE
A60: 2019-06-25 | B60: ICICIGI | C60: ICICI Lombard GIC Limited | D60: SOCIETE GENERALE | E60: BUY | F60: 2969000 | G60: 1100 | H60: NSE
A61: 2019-06-25 | B61: JETAIRWAYS | C61: Jet Airways (India) Ltd. | D61: PURITY TRADEMAX LLP | E61: BUY | F61: 948138 | G61: 74.11 | H61: NSE
A62: 2019-06-25 | B62: JETAIRWAYS | C62: Jet Airways (India) Ltd. | D62: TOWER RESEARCH CAPITAL MARKETS INDIA PRIVATE LIMITED | E62: BUY | F62: 1861944 | G62: 73.52 | H62: NSE
A63: 2019-06-25 | B63: JETAIRWAYS | C63: Jet Airways (India) Ltd. | D63: GENUINE STOCK BROKERS PVT. LTD. | E63: BUY | F63: 588634 | G63: 74.2 | H63: NSE
A64: 2019-06-25 | B64: JETAIRWAYS | C64: Jet Airways (India) Ltd. | D64: UCB DEVELOPERS LLP | E64: BUY | F64: 589769 | G64: 73.36 | H64: NSE
A65: 2019-06-25 | B65: JETAIRWAYS | C65: Jet Airways (India) Ltd. | D65: CROSSLAND TRADING CO | E65: BUY | F65: 891058 | G65: 73.62 | H65: NSE
A66: 2019-06-25 | B66: JETAIRWAYS | C66: Jet Airways (India) Ltd. | D66: VAIBHAV STOCK AND DERIVATIVES BROKING PRIVATE LIMITED | E66: BUY | F66: 596468 | G66: 74 | H66: NSE
A67: 2019-06-25 | B67: JISLJALEQS | C67: Jain Irrigation Systems L | D67: TOWER RESEARCH CAPITAL MARKETS INDIA PRIVATE LIMITED | E67: BUY | F67: 6431179 | G67: 28.3 | H67: NSE
A68: 2019-06-25 | B68: MANGTIMBER | C68: Mangalam Timber Pro Ltd | D68: MULTI REALTORS PRIVATE LIMITED | E68: BUY | F68: 572219 | G68: 9.45 | H68: NSE
A69: 2019-06-25 | B69: MANGTIMBER | C69: Mangalam Timber Pro Ltd | D69: AM PROFESSIONAL SERVICES PVT LTD | E69: BUY | F69: 250000 | G69: 9.45 | H69: NSE
A70: 2019-06-25 | B70: MANGTIMBER | C70: Mangalam Timber Pro Ltd | D70: DEVANG CONSULTANCY SERVICES PVT LTD | E70: BUY | F70: 250000 | G70: 9.45 | H70: NSE
A71: 2019-06-25 | B71: PCJEWELLER | C71: PC Jeweller Ltd | D71: TOWER RESEARCH CAPITAL MARKETS INDIA PRIVATE LIMITED | E71: BUY | F71: 3924090 | G71: 49.16 | H71: NSE
A72: 2019-06-25 | B72: RELCAPITAL | C72: Reliance Capital Limited | D72: ALPHAGREP SECURITIES PRIVATE LIMITED | E72: BUY | F72: 1367342 | G72: 66.9 | H72: NSE
A73: 2019-06-25 | B73: RELCAPITAL | C73: Reliance Capital Limited | D73: TOWER RESEARCH CAPITAL MARKETS INDIA PRIVATE LIMITED | E73: BUY | F73: 3364634 | G73: 67.16 | H73: NSE
A74: 2019-06-25 | B74: RELINFRA | C74: Reliance Infrastructu Ltd | D74: ALPHAGREP SECURITIES PRIVATE LIMITED | E74: BUY | F74: 1562944 | G74: 53.84 | H74: NSE
A75: 2019-06-25 | B75: RELINFRA | C75: Reliance Infrastructu Ltd | D75: TOWER RESEARCH CAPITAL MARKETS INDIA PRIVATE LIMITED | E75: BUY | F75: 1786142 | G75: 53.6 | H75: NSE
A76: 2019-06-25 | B76: APTECHT | C76: Aptech Limited | D76: WASHINGTON UNIVERSITY | E76: SELL | F76: 530000 | G76: 137.5 | H76: NSE
A77: 2019-06-25 | B77: BEML | C77: BEML Limited | D77: TOWER RESEARCH CAPITAL MARKETS INDIA PRIVATE LIMITED | E77: SELL | F77: 264000 | G77: 842.51 | H77: NSE
A78: 2019-06-25 | B78: COX&KINGS | C78: Cox & Kings Limited | D78: IFCI LTD. | E78: SELL | F78: 1080264 | G78: 50.56 | H78: NSE
A79: 2019-06-25 | B79: DHFL | C79: Dewan Housing Fin Corp | D79: TOWER RESEARCH CAPITAL MARKETS INDIA PRIVATE LIMITED | E79: SELL | F79: 3137198 | G79: 77.01 | H79: NSE
A80: 2019-06-25 | B80: DUCON | C80: Ducon Infratech Ltd | D80: PRATIK BANJI DABHI | E80: SELL | F80: 535010 | G80: 7.9 | H80: NSE
A81: 2019-06-25 | B81: ESSARSHPNG | C81: Essar Shipping Limited | D81: MANPHOOL EXPORTS LTD | E81: SELL | F81: 1864000 | G81: 7.6 | H81: NSE
A82: 2019-06-25 | B82: ICICIGI | C82: ICICI Lombard GIC Limited | D82: RED BLOOM INVESTMENT LTD | E82: SELL | F82: 14329658 | G82: 1100.19 | H82: NSE
A83: 2019-06-25 | B83: JETAIRWAYS | C83: Jet Airways (India) Ltd. | D83: VAIBHAV STOCK AND DERIVATIVES BROKING PRIVATE LIMITED | E83: SELL | F83: 596468 | G83: 74.02 | H83: NSE
A84: 2019-06-25 | B84: JETAIRWAYS | C84: Jet Airways (India) Ltd. | D84: TOWER RESEARCH CAPITAL MARKETS INDIA PRIVATE LIMITED | E84: SELL | F84: 1861944 | G84: 73.55 | H84: NSE
A85: 2019-06-25 | B85: JETAIRWAYS | C85: Jet Airways (India) Ltd. | D85: PURITY TRADEMAX LLP | E85: SELL | F85: 948138 | G85: 74.01 | H85: NSE
A86: 2019-06-25 | B86: JETAIRWAYS | C86: Jet Airways (India) Ltd. | D86: GENUINE STOCK BROKERS PVT. LTD. | E86: SELL | F86: 588634 | G86: 74.21 | H86: NSE
A87: 2019-06-25 | B87: JETAIRWAYS | C87: Jet Airways (India) Ltd. | D87: CROSSLAND TRADING CO | E87: SELL | F87: 899213 | G87: 73.58 | H87: NSE
A88: 2019-06-25 | B88: JETAIRWAYS | C88: Jet Airways (India) Ltd. | D88: UCB DEVELOPERS LLP | E88: SELL | F88: 589769 | G88: 73.47 | H88: NSE
A89: 2019-06-25 | B89: JISLJALEQS | C89: Jain Irrigation Systems L | D89: TOWER RESEARCH CAPITAL MARKETS INDIA PRIVATE LIMITED | E89: SELL | F89: 6431179 | G89: 28.3 | H89: NSE
A90: 2019-06-25 | B90: MANGTIMBER | C90: Mangalam Timber Pro Ltd | D90: VIDULA CONSULTANCY SERVICES LIMITED | E90: SELL | F90: 1072219 | G90: 9.45 | H90: NSE
A91: 2019-06-25 | B91: PCJEWELLER | C91: PC Jeweller Ltd | D91: CARLINA LTD | E91: SELL | F91: 4120000 | G91: 48.69 | H91: NSE
A92: 2019-06-25 | B92: PCJEWELLER | C92: PC Jeweller Ltd | D92: TOWER RESEARCH CAPITAL MARKETS INDIA PRIVATE LIMITED | E92: SELL | F92: 3924090 | G92: 49.1 | H92: NSE
A93: 2019-06-25 | B93: PCJEWELLER | C93: PC Jeweller Ltd | D93: IDRIA LIMITED | E93: SELL | F93: 4080000 | G93: 48.68 | H93: NSE
A94: 2019-06-25 | B94: RELCAPITAL | C94: Reliance Capital Limited | D94: ALPHAGREP SECURITIES PRIVATE LIMITED | E94: SELL | F94: 1369505 | G94: 66.94 | H94: NSE
A95: 2019-06-25 | B95: RELCAPITAL | C95: Reliance Capital Limited | D95: TOWER RESEARCH CAPITAL MARKETS INDIA PRIVATE LIMITED | E95: SELL | F95: 3364634 | G95: 67.07 | H95: NSE
A96: 2019-06-25 | B96: RELINFRA | C96: Reliance Infrastructu Ltd | D96: TOWER RESEARCH CAPITAL MARKETS INDIA PRIVATE LIMITED | E96: SELL | F96: 1786142 | G96: 53.77 | H96: NSE
A97: 2019-06-25 | B97: RELINFRA | C97: Reliance Infrastructu Ltd | D97: ALPHAGREP SECURITIES PRIVATE LIMITED | E97: SELL | F97: 1564571 | G97: 53.87 | H97: NSE
A98: 2019-06-25 | B98: RPOWER | C98: Reliance Power Limited | D98: YES BANK LTD | E98: SELL | F98: 52900000 | G98: 4.14 | H98: NSE

Sheet Call Tracker (Equity & F&O)
M5: Back To Main Page
A6: Retail Research Technical Calls & Fundamental Performance Report for the month of June-2019
M7: =Main!B10 -> 2019-06-26
B8: Positional Call
A9: Sr.no | B9: Date | D9: Company | E9: Rec | F9: Rec Price | G9: Stop Loss*** | H9: Call Closed At | I9: Target | J9: Remark | K9: Profit / Loss per Share | L9: Gain / Loss % | M9: Status | N9: Closed Date | O9: NSE Closed Price
A10: 1 | B10: 2019-04-23 | D10: DMART | E10: Buy | F10: 1305 | G10: 1265 | H10: 1350 | I10: 1470-1500 | J10: Part Profit of Rs.45/- | K10: =H10-F10 -> 45 | L10: =K10/F10 -> 3.45% | M10: Successful | N10: 2019-05-24 | O10: =VLOOKUP(D10,Sheet2!A45:M1840,6,0) -> 1330.65 | R10: R
A11: 2 | B11: 2019-05-08 | D11: COLPAL | E11: Buy | F11: 1137 | G11: 1081 | H11: 1185 | I11: 1242 | J11: Profit of Rs.48/- | K11: =H11-F11 -> 48 | L11: =K11/F11 -> 4.22% | M11: Successful | N11: 2019-06-14 | R11: H
A12: 3 | B12: 2019-05-20 | D12: TCS | E12: Buy | F12: 2112 | G12: 2195 | H12: 2221 | I12: 2405 | J12: Profit of Rs.109/- | K12: =H12-F12 -> 109 | L12: =K12/F12 -> 5.16% | M12: Successful | N12: 2019-06-10 | R12: H
A13: 4 | B13: 2019-05-24 | D13: SBIN | E13: Sell | F13: 351 | G13: 372 | H13: 336.5 | I13: 320-310 | J13: Profit of Rs.14.5/- | K13: =F13-H13 -> 14.5 | L13: 4.13% | M13: Successful | N13: 2019-06-06 | R13: H
A14: 5 | B14: 2019-05-27 | D14: GRASIM | E14: Sell | F14: 927.5 | G14: 972.6 | H14: 862.5 | I14: 840-820 | J14: Profit of Rs.65/- | K14: =F14-H14 -> 65 | L14: =K14/F14 -> 7.01% | M14: Successful | N14: 2019-06-06 | R14: R
A15: 6 | B15: 2019-05-27 | D15: TATAELXSI | E15: Buy | F15: 870-878 | G15: 818.7 | I15: 970-990 | J15: Open | O15: =VLOOKUP(D15,Sheet2!A50:M1845,6,0) -> 858.1 | R15: R
A16: 7 | B16: 2019-05-28 | D16: ASTRAZEN | E16: Buy | F16: 2030 | G16: 1883.3 | H16: 1883.3 | I16: 2310-2330 | J16: Loss of Rs. 146.7/- | K16: =H16-F16 -> -146.7 | L16: =K16/F16 -> -7.23% | M16: UnSuccessful | N16: 2019-06-06 | R16: R
A17: 8 | B17: 2019-05-28 | D17: BAJAJFINSV | E17: Sell | F17: 8150-8200 | G17: 8625 | I17: 7300 | J17: Open | O17: =VLOOKUP(D17,Sheet2!A54:M1849,6,0) -> 8346.15 | R17: H
A18: 9 | B18: 2019-05-28 | D18: CEATLTD | E18: Buy | F18: 1000 | G18: 945 | H18: 960 | I18: 1100-1120 | J18: Loss of Rs. 40/- | K18: -40 | L18: -4.00% | M18: UnSuccessful | N18: 2019-06-11 | R18: H
A19: 10 | B19: 2019-05-30 | D19: ENDURANCE | E19: Buy | F19: 1205 | G19: 1128 | H19: 1127.5 | I19: 1350 | J19: Loss of Rs. 77.5/- | K19: -77.5 | L19: -6.43% | M19: UnSuccessful | N19: 2019-06-24 | R19: H
A20: 11 | B20: 2019-05-31 | D20: BALKRISIND | E20: Buy | F20: 802.5 | G20: 748 | H20: 760 | I20: 900 | J20: Loss of Rs. 42.5/- | K20: =H20-F20 -> -42.5 | L20: =K20/F20 -> -5.30% | M20: UnSuccessful | N20: 2019-06-17 | R20: H
A21: 12 | B21: 2019-05-31 | D21: HEROMOTOCO | E21: Buy | F21: 2725 | G21: 2645 | H21: 2718.5 | I21: 3040-3080 | J21: Loss of Rs. 6.5/- | K21: =H21-F21 -> -6.5 | L21: =K21/F21 -> -0.24% | M21: Neutral | N21: 2019-06-19 | R21: R
A22: 13 | B22: 2019-05-31 | D22: VRLLOG | E22: Buy | F22: 286-290 | G22: 269 | I22: 320-330 | J22: Open | O22: =VLOOKUP(D22,Sheet2!A59:M1854,6,0) -> 271.9 | R22: H
A23: 14 | B23: 2019-05-31 | D23: DLF | E23: Sell | F23: 191 | G23: 202.6 | H23: 175.5 | I23: 170-166 | J23: Profit of Rs.15.5/- | K23: =F23-H23 -> 15.5 | L23: =K23/F23 -> 8.12% | M23: Successful | N23: 2019-06-14 | R23: R
A24: 15 | B24: 2019-05-31 | D24: ITC | E24: Buy | F24: 285-287 | G24: 268.3 | I24: 315-325 | J24: Open | O24: =VLOOKUP(D24,Sheet2!A61:M1856,6,0) -> 278.5 | R24: R
A25: 16 | B25: 2019-05-31 | D25: AMARAJABAT | E25: Buy | F25: 643 | G25: 598 | H25: 610 | I25: 720-740 | J25: Loss of Rs. 33/- | K25: =H25-F25 -> -33 | L25: =K25/F25 -> -5.13% | M25: UnSuccessful | N25: 2019-06-13 | R25: H
A26: 17 | B26: 2019-06-03 | D26: LEMONTREE | E26: Buy | F26: 73.5 | G26: 67.8 | H26: 67.5 | I26: 82-86 | J26: Loss of Rs. 6/- | K26: =H26-F26 -> -6 | L26: =K26/F26 -> -8.16% | M26: UnSuccessful | N26: 2019-06-13 | R26: R
A27: 18 | B27: 2019-06-04 | D27: RADICO | E27: Buy | F27: 335 | G27: 314.4 | H27: 313 | I27: 365 -370 | J27: Loss of Rs. 22/- | K27: =H27-F27 -> -22 | L27: =K27/F27 -> -6.57% | M27: UnSuccessful | N27: 2019-06-06 | R27: R
A28: 19 | B28: 2001-06-06 | D28: ESCORTS | E28: Buy | F28: 578 | G28: 537 | H28: 537.5 | I28: 680 | J28: Loss of Rs. 40.5/- | K28: =H28-F28 -> -40.5 | L28: =K28/F28 -> -7.01% | M28: UnSuccessful | N28: 2019-06-19 | R28: H
A29: 20 | B29: 2019-06-13 | D29: GODREJCP | E29: Buy | F29: 675-680 | G29: 644 | I29: 740-750 | J29: Open | O29: =VLOOKUP(D29,Sheet2!A66:M1861,6,0) -> 675.65 | R29: H
A30: 21 | B30: 2019-06-13 | D30: TVSMOTOR | E30: Buy | F30: 468.5 | G30: 438 | H30: 438.5 | I30: 530-550 | J30: Loss of Rs.30/- | K30: =H30-F30 -> -30 | L30: =K30/F30 -> -6.40% | M30: UnSuccessful | N30: 2019-06-19 | R30: H
A31: 22 | B31: 2019-06-17 | D31: SUNTV | E31: Buy | F31: 517 | G31: 476 | H31: 539.5 | I31: 575-585 | J31: Part Profit of Rs.22.5/- | K31: 22.5 | L31: 4.35% | M31: Successful | N31: 2019-06-20 | O31: =VLOOKUP(D31,Sheet2!A66:M1861,6,0) -> 520.05 | R31: R
A32: 23 | B32: 2019-06-20 | D32: M&M | E32: Buy | F32: 617.5 | G32: 588 | H32: 643 | I32: 670-700 | J32: Part Profit of Rs.25.5/- | K32: =H32-F32 -> 25.5 | L32: =K32/F32 -> 4.13% | M32: Successful | N32: 2019-06-25 | O32: =VLOOKUP(D32,Sheet2!A67:M1862,6,0) -> 641.65 | R32: H
A33: 24 | B33: 2019-06-20 | D33: BANKBARODA | E33: Buy | F33: 115.5-117.5 | G33: 109 | I33: 128-132 | J33: Open | O33: =VLOOKUP(D33,Sheet2!A70:M1865,6,0) -> 120 | R33: H
A34: 25 | B34: 2019-06-21 | D34: AJANTPHARM | E34: Buy | F34: 950-960 | G34: 897.7 | I34: 1060-1080 | J34: Open | R34: R
A35: 26 | B35: 2019-06-24 | D35: ESCORTS | E35: Buy | F35: 546-553 | G35: 518 | I35: 600 | J35: Open | O35: =VLOOKUP(D35,Sheet2!A72:M1867,6,0) -> 544.4 | R35: H
A36: 27 | B36: 2019-06-25 | D36: JUBLFOOD | E36: Buy | F36: 1260-1265 | G36: 1158.3 | I36: 1260-1265 | J36: Open | R36: R
A44: CLBS = Closing Basis *** | F44: Reinitiated $
A45: Dividend adjusted <> | F45: Revised stoploss #
A46: Part book {}
B48: Momentum Call
A49: Sr.no | B49: Date | D49: Company | E49: Rec | F49: Rec Price | G49: Stop Loss | H49: Call Closed At | I49: Target | J49: Remark | K49: Profit / Loss per Share/Lot | L49: Gain / Loss % | M49: Gain / Loss per Lot | N49: Lot | O49: Status | P49: Closed Date
A50: 1 | B50: 2019-05-29 | D50: BATAINDIA JUN FUT | E50: Buy | F50: 1330 | G50: 1307.7 | H50: 1345 | I50: 1360-1370 | J50: Profit of Rs.15/- | K50: =H50-F50 -> 15 | M50: =N50*K50 -> 8250 | N50: 550 | O50: Successful | P50: 2019-06-03 | R50: R
A51: 2 | B51: 2019-05-31 | D51: EXIDEIND JUN FUT | E51: Buy | F51: 215.5 | G51: 209.5 | H51: 218.75 | I51: 225 | J51: Profit of Rs.3.25/- | K51: =H51-F51 -> 3.25 | M51: =N51*K51 -> 6500 | N51: 2000 | O51: Successful | P51: 2019-06-04 | R51: N
A52: 3 | B52: 2019-05-31 | D52: JUSTDIAL | E52: Sell | F52: 757.5 | G52: 775.8 | H52: 775.8 | I52: 730-720 | J52: Loss of Rs. 18.3/- | K52: =F52-H52 -> -18.3 | L52: =K52/F52 -> -2.42% | O52: UnSuccessful | P52: 2019-06-03 | R52: R
A53: 4 | B53: 2019-06-03 | D53: INDUSINDBK JUNE FUT | E53: Buy | F53: 1603 | G53: 1562 | H53: 1624 | I53: 1650-1660 | J53: Profit of Rs.21/- | K53: =H53-F53 -> 21 | M53: =N53*K53 -> 6300 | N53: 300 | O53: Successful | P53: 2019-06-03 | R53: N
A54: 5 | B54: 2019-06-03 | D54: JSWSTEEL | E54: Buy | F54: 274 | G54: 267 | H54: 267 | I54: 285-290 | J54: Loss of Rs. 7/- | K54: =H54-F54 -> -7 | L54: =K54/F54 -> -2.55% | O54: UnSuccessful | P54: 2019-06-06 | R54: H
A55: 6 | B55: 2019-06-03 | D55: VEDL JUN FUT | E55: Sell | F55: 164.5 | G55: 170 | H55: 161.75 | I55: 152 | J55: Profit of Rs.2.75/- | K55: =F55-H55 -> 2.75 | M55: =N55*K55 -> 6325 | N55: 2300 | O55: Successful | P55: 2019-06-06 | R55: N
A56: 7 | B56: 2019-06-04 | D56: ASIANPAINT JUNE FUT | E56: Buy | F56: 1438.5 | G56: 1418 | H56: 1424 | I56: 1475 | J56: Loss of Rs. 14.5/- | K56: =H56-F56 -> -14.5 | M56: =N56*K56 -> -8700 | N56: 600 | O56: UnSuccessful | P56: 2019-06-04 | R56: N
A57: 8 | B57: 2019-06-04 | D57: PEL | E57: Buy | F57: 2205 | G57: 2134.4 | H57: 2135 | I57: 2330-2350 | J57: Loss of Rs. 70/- | K57: =H57-F57 -> -70 | L57: =K57/F57 -> -3.17% | O57: UnSuccessful | P57: 2019-06-06 | R57: R
A58: 9 | B58: 2019-06-04 | D58: MCDOWELL-N JUN FUT | E58: Sell | F58: 574.5 | G58: 585.3 | H58: 566.5 | I58: 555 | J58: Profit of Rs.8/- | K58: =F58-H58 -> 8 | M58: =N58*K58 -> 10000 | N58: 1250 | O58: Successful | P58: 2019-06-06 | R58: R
A59: 10 | B59: 2019-06-06 | D59: COALINDIA | E59: Sell | F59: 267 | G59: 275.3 | H59: 261.25 | I59: 253-250 | J59: Profit of Rs.5.75/- | K59: =F59-H59 -> 5.75 | L59: =K59/F59 -> 2.15% | O59: Successful | P59: 2019-06-10 | R59: R
A60: 11 | B60: 2019-06-06 | D60: BANKNIFTY JUN FUT | E60: Buy | F60: 31420 | G60: 31280 | H60: 31280 | I60: 31700 | J60: Loss of Rs. 140/- | K60: =H60-F60 -> -140 | M60: =N60*K60 -> -2800 | N60: 20 | O60: UnSuccessful | P60: 2019-06-06 | R60: R
A61: 12 | B61: 2019-06-06 | D61: NIITTECH JUNE FUT | E61: Buy | F61: 1312 | G61: 1296 | H61: 1324 | I61: 1340 | J61: Profit of Rs.12/- | K61: =H61-F61 -> 12 | M61: =N61*K61 -> 9000 | N61: 750 | O61: Successful | P61: 2019-06-07 | R61: N
A62: 13 | B62: 2019-06-06 | D62: EXIDEIND JUNE FUT | E62: Buy | F62: 210.75 | G62: 204.5 | H62: 213.5 | I62: 222 | J62: Profit of Rs.2.75/- | K62: =H62-F62 -> 2.75 | M62: =N62*K62 -> 5500 | N62: 2000 | O62: Successful | P62: 2019-06-07 | R62: N
A63: 14 | B63: 2019-06-07 | D63: AXISBANK | E63: Sell | F63: 808 | G63: 828.8 | H63: 789 | I63: 780 - 770 | J63: Profit of Rs.19/- | K63: =F63-H63 -> 19 | L63: =K63/F63 -> 2.35% | O63: Successful | P63: 2019-06-17 | R63: R
A64: 15 | B64: 2019-06-07 | D64: VEDL JUN FUT | E64: Sell | F64: 166.5 | G64: 172 | H64: 163.5 | I64: 156 | J64: Profit of Rs.3/- | K64: =F64-H64 -> 3 | M64: =N64*K64 -> 6900 | N64: 2300 | O64: Successful | P64: 2019-06-07 | R64: N
A65: 16 | B65: 2019-06-07 | D65: BATAINDIA JUNE FUT | E65: Buy | F65: 1385.5 | G65: 1365 | H65: 1365 | I65: 1420 | J65: Loss of Rs. 20.5/- | K65: =H65-F65 -> -20.5 | M65: =N65*K65 -> -11275 | N65: 550 | O65: UnSuccessful | P65: 2019-06-07 | R65: N
A66: 17 | B66: 2019-06-07 | D66: TATAMOTORS JUN FUT | E66: Buy | F66: 171 | G66: 166 | H66: 166 | I66: 178-180 | J66: Loss of Rs. 5/- | K66: =H66-F66 -> -5 | M66: =N66*K66 -> -1250 | N66: 250 | O66: UnSuccessful | P66: 2019-06-10 | R66: R
A67: 18 | B67: 2019-06-07 | D67: VIPIND | E67: Buy | F67: 462 | G67: 450 | H67: 472.5 | I67: 480-485 | J67: Profit of Rs.10.5/- | K67: =H67-F67 -> 10.5 | L67: =K67/F67 -> 2.27% | O67: Successful | P67: 2019-06-10 | R67: R
A68: 19 | B68: 2019-06-07 | D68: VARROC | E68: Buy | F68: 460 | G68: 448 | H68: 470.5 | I68: 480-485 | J68: Profit of Rs.10.5/- | K68: =H68-F68 -> 10.5 | L68: =K68/F68 -> 2.28% | O68: Successful | P68: 2019-06-10 | R68: H
A69: 20 | B69: 2019-06-10 | D69: IGL | E69: Sell | F69: 338.5 | G69: 351 | H69: 332.5 | I69: 320 | J69: Profit of Rs.6/- | K69: =F69-H69 -> 6 | L69: =K69/F69 -> 1.77% | O69: Successful | P69: 2019-06-13 | R69: H
A70: 21 | B70: 2019-06-10 | D70: BHARTIARTL JUN FUT | E70: Sell | F70: 364.5 | G70: 371 | H70: 359.5 | I70: 350 | J70: Profit of Rs.5/- | K70: =F70-H70 -> 5 | M70: =N70*K70 -> 9255 | N70: 1851 | O70: Successful | P70: 2019-06-11 | R70: R
A71: 22 | B71: 2019-06-11 | D71: SUNTV JUN FUT | E71: Buy | F71: 517 | G71: 504..8 | H71: 524.5 | I71: 535-540 | J71: Profit of Rs.7.5/- | K71: =H71-F71 -> 7.5 | M71: =N71*K71 -> 7500 | N71: 1000 | O71: Successful | P71: 2019-06-11 | R71: R
A72: 23 | B72: 2019-06-11 | D72: GAIL | E72: Buy | F72: 308.5 | G72: 298 | H72: 308.5 | I72: 325-330 | J72: Neutral | K72: =F72-H72 -> 0 | L72: 0 | O72: Neutral | P72: 2019-06-24 | R72: H
A73: 24 | B73: 2019-06-11 | D73: VOLTAS | E73: Sell | F73: 619.5 | G73: 632 | H73: 606.5 | I73: 600 | J73: Profit of Rs.13/- | K73: =F73-H73 -> 13 | L73: =K73/F73 -> 2.10% | O73: Successful | P73: 2019-06-12 | R73: H
A74: 25 | B74: 2019-06-11 | D74: HINDALCO JUN FUT | E74: Sell | F74: 201 | G74: 205.3 | H74: 199.25 | I74: 194 | J74: Profit of Rs.1.75/- | K74: =F74-H74 -> 1.75 | M74: =N74*K74 -> 6125 | N74: 3500 | O74: Successful | P74: 2019-06-11 | R74: R
A75: 26 | B75: 2019-06-11 | D75: NTPC | E75: Sell | F75: 136.25 | G75: 140.5 | H75: 134 | I75: 130-128 | J75: Profit of Rs.2.25/- | K75: =F75-H75 -> 2.25 | L75: =K75/F75 -> 1.65% | O75: Successful | P75: 2019-06-12 | R75: H
A76: 27 | B76: 2019-06-12 | D76: LICHSGFIN JUN FUT | E76: Buy | F76: 547 | G76: 536 | H76: 536 | I76: 565-570 | J76: Loss of Rs.11/- | K76: =H76-F76 -> -11 | M76: =N76*K76 -> -12100 | N76: 1100 | O76: UnSuccessful | P76: 2019-06-13 | R76: R
A77: 28 | B77: 2019-06-12 | D77: BHARTIARTL JUN FUT | E77: Sell | F77: 363.5 | G77: 370.2 | H77: 360.25 | I77: 350-348 | J77: Profit of Rs.3.25/- | K77: =F77-H77 -> 3.25 | M77: =N77*K77 -> 6015.75 | N77: 1851 | O77: Successful | P77: 2019-06-12 | R77: R
A78: 29 | B78: 2019-06-12 | D78: HINDALCO JUN FUT | E78: Sell | F78: 202.75 | G78: 206.3 | H78: 200.75 | I78: 195 | J78: Profit of Rs.2/- | K78: =F78-H78 -> 2 | M78: =N78*K78 -> 7000 | N78: 3500 | O78: Successful | P78: 2019-06-12 | R78: R
A79: 30 | B79: 2019-06-12 | D79: IOC | E79: Buy | F79: 162.5 | G79: 158.4 | H79: 158 | I79: 169 -171 | J79: Loss of Rs. 4.5/- | K79: =H79-F79 -> -4.5 | L79: =K79/F79 -> -2.77% | O79: UnSuccessful | P79: 2019-06-17 | R79: R
A80: 31 | B80: 2019-06-13 | D80: BERGEPAINT | E80: Sell | F80: 333.5 | G80: 341 | H80: 326.5 | I80: 325-322 | J80: Profit of Rs.7/- | K80: =F80-H80 -> 7 | L80: =K80/F80 -> 2.10% | O80: Successful | P80: 2019-06-14 | R80: H
A81: 32 | B81: 2019-06-13 | D81: BHARTIARTL JUN FUT | E81: Sell | F81: 364.5 | G81: 371.2 | H81: 360.5 | I81: 350 | J81: Profit of Rs.4/- | K81: =F81-H81 -> 4 | M81: =N81*K81 -> 7404 | N81: 1851 | O81: Successful | P81: 2019-06-14 | R81: R
A82: 33 | B82: 2019-06-14 | D82: BANKNIFTY JUN FUT | E82: Buy | F82: 30840 | G82: 30590 | H82: 30650 | I82: 31200 | J82: Loss of Rs.190/- | K82: =H82-F82 -> -190 | M82: =N82*K82 -> -3800 | N82: 20 | O82: UnSuccessful | P82: 2019-06-14 | R82: R
A83: 34 | B83: 2019-06-14 | D83: TORNTPHARM JUN FUT | E83: Buy | F83: 1512.5 | G83: 1492 | H83: 1492 | I83: 1550 | J83: Loss of Rs.20.5/- | K83: =H83-F83 -> -20.5 | M83: =N83*K83 -> -10250 | N83: 500 | O83: UnSuccessful | P83: 2019-06-14 | R83: H
A84: 35 | B84: 2019-06-15 | D84: PIDILITIND JUN FUT | E84: Buy | F84: 1251 | G84: 1228.7 | H84: 1228.7 | I84: 1285 -1295 | J84: Loss of Rs.22.3/- | K84: =H84-F84 -> -22.3 | M84: =N84*K84 -> -11150 | N84: 500 | O84: UnSuccessful | P84: 2019-06-21 | R84: R
A85: 36 | B85: 2019-06-17 | D85: OFSS | E85: Sell | F85: 3247.5 | G85: 3330 | H85: 3180 | I85: 3150-3110 | J85: Profit of Rs.67.5/- | K85: =F85-H85 -> 67.5 | L85: =K85/F85 -> 2.08% | O85: Successful | P85: 2019-06-20 | R85: H
A86: 37 | B86: 2019-06-17 | D86: NIFTY JUN FUT | E86: Buy | F86: 11770 | G86: 11720 | H86: 11720 | I86: 11840-11850 | J86: Loss of Rs.50/- | K86: =H86-F86 -> -50 | M86: =N86*K86 -> -3750 | N86: 75 | O86: UnSuccessful | P86: 2019-06-17 | R86: R
A87: 38 | B87: 2019-06-17 | D87: INFRATEL | E87: Sell | F87: 280 | G87: 288 | H87: 274.25 | I87: 270-265 | J87: Profit of Rs.5.75/- | K87: =F87-H87 -> 5.75 | L87: =K87/F87 -> 2.05% | O87: Successful | P87: 2019-06-17 | R87: H
A88: 39 | B88: 2019-06-17 | D88: KOTAKBANK JUN FUT | E88: Sell | F88: 1466 | G88: 1492 | H88: 1464.5 | I88: 1420 | J88: Profit of Rs.1.5/- | K88: =F88-H88 -> 1.5 | M88: =N88*K88 -> 600 | N88: 400 | O88: Neutral | P88: 2019-06-18 | R88: H
A89: 40 | B89: 2019-06-17 | D89: SRTRANSFIN | E89: Buy | F89: 1047.5 | G89: 1018 | H89: 1015 | I89: 1100-1120 | J89: Loss of Rs. 32.5/- | K89: =H89-F89 -> -32.5 | L89: =K89/F89 -> -3.10% | O89: UnSuccessful | P89: 2019-06-17 | R89: R
A90: 41 | B90: 2019-06-17 | D90: HINDPETRO JUN FUT | E90: Sell | F90: 297.5 | G90: 302.5 | H90: 302.5 | I90: 290-287 | J90: Loss of Rs.5/- | K90: =F90-H90 -> -5 | M90: =N90*K90 -> -10500 | N90: 2100 | O90: UnSuccessful | P90: 2019-06-18 | R90: H
A91: 42 | B91: 2019-06-18 | D91: BATAINDIA | E91: Buy | F91: 1400-1410 | G91: 1370 | I91: 1460-1470 | J91: Open | R91: H
A92: 43 | B92: 2019-06-18 | D92: DRREDDY JUN FUT | E92: Buy | F92: 2577.5 | G92: 2525 | H92: 2602.5 | I92: 2670-2690 | J92: Profit of Rs.25/- | K92: =H92-F92 -> 25 | M92: =N92*K92 -> 6250 | N92: 250 | O92: Successful | P92: 2019-06-18 | R92: R
A93: 44 | B93: 2019-06-18 | D93: AMARAJABAT | E93: Buy | F93: 607 | G93: 588 | H93: 587.5 | I93: 640 | J93: Loss of Rs. 19.5/- | K93: =H93-F93 -> -19.5 | L93: =K93/F93 -> -3.21% | O93: UnSuccessful | P93: 2019-06-19 | R93: H
A94: 45 | B94: 2019-06-18 | D94: IGL | E94: Sell | F94: 342.5 | G94: 352 | H94: 337.5 | I94: 330 | J94: Profit of Rs.5/- | K94: =F94-H94 -> 5 | L94: =K94/F94 -> 1.46% | O94: Successful | P94: 2019-06-18 | R94: H
A95: 46 | B95: 2019-06-19 | D95: HCLTECH JUN FUT | E95: Buy | F95: 1085 | G95: 1068 | H95: 1095 | I95: 1110 | J95: Profit of Rs.10/- | K95: =H95-F95 -> 10 | M95: =N95*K95 -> 7000 | N95: 700 | O95: Successful | P95: 2019-06-21 | R95: H
A96: 47 | B96: 2019-06-19 | D96: NIITTECH | E96: Buy | F96: 1302.5 | G96: 1277 | H96: 1332 | I96: 1350-1370 | J96: Profit of Rs.29.5/- | K96: =H96-F96 -> 29.5 | L96: =K96/F96 -> 2.26% | O96: Successful | P96: 2019-06-25 | R96: R
A97: 48 | B97: 2019-06-19 | D97: UPL | E97: Buy | F97: 972.5 | G97: 947.7 | H97: 947.7 | I97: 1020-1030 | J97: Loss of Rs.24.8/- | K97: =H97-F97 -> -24.8 | L97: =K97/F97 -> -2.55% | O97: UnSuccessful | P97: 2019-06-19 | R97: R
A98: 49 | B98: 2019-06-20 | D98: BANKINDIA | E98: Buy | F98: 82.7 | G98: 79.5 | H98: 84.27 | I98: 86-88 | J98: Profit of Rs.1.57/- | K98: =H98-F98 -> 1.57 | L98: =K98/F98 -> 1.90% | O98: Successful | P98: 2019-06-20 | R98: H
A99: 50 | B99: 2019-06-21 | D99: ESCORTS | E99: Buy | F99: 547.5 | G99: 528 | H99: 557 | I99: 575-580 | J99: Profit of Rs.9.5/- | K99: =H99-F99 -> 9.5 | L99: =K99/F99 -> 1.74% | O99: Successful | P99: 2019-06-21 | R99: H
A100: 51 | B100: 2019-06-21 | D100: VOLTAS JUN FUT | E100: Sell | F100: 618 | G100: 630.3 | H100: 630.3 | I100: 595-590 | J100: Loss of Rs.12.3/- | K100: =F100-H100 -> -12.3 | M100: =N100*K100 -> -12300 | N100: 1000 | O100: UnSuccessful | P100: 2019-06-24 | R100: R
A101: 52 | B101: 2019-06-24 | D101: AXISBANK JUN FUT | E101: Buy | F101: 769 | G101: 757.7 | H101: 775 | I101: 785-790 | J101: Profit of Rs.6/- | K101: =H101-F101 -> 6 | M101: =N101*K101 -> 7200 | N101: 1200 | O101: Successful | P101: 2019-06-25 | R101: R
A102: 53 | B102: 2019-06-24 | D102: AMARAJABAT JUNE FUT | E102: Buy | F102: 604 | G102: 587 | H102: 619 | I102: 640 | J102: Profit of Rs.15/- | K102: 15 | M102: 10500 | N102: 700 | O102: Successful | P102: 2019-06-25 | R102: N
A103: 54 | B103: 2019-06-25 | D103: KOTAKBANK JUL FUT | E103: Buy | F103: 1478 | G103: 1447 | H103: 1495.5 | I103: 1520-1530 | J103: Profit of Rs.17.5/- | K103: 17.5 | M103: 7000 | N103: 400 | O103: Successful | P103: 2019-06-25 | R103: R
A104: 55 | B104: 2019-06-25 | D104: BERGEPAINT | E104: Buy | F104: 313 | G104: 304 | H104: 317.75 | I104: 330-333 | J104: Profit of Rs.4.75/- | K104: 4.75 | L104: =K104/F104 -> 1.52% | O104: Successful | P104: 2019-06-25 | R104: H
A105: 56 | B105: 2019-06-25 | D105: EXIDEIND JULY FUT | E105: Buy | F105: 201 | G105: 196 | H105: 203.75 | I105: 210 | J105: Profit of Rs.2.75/- | K105: =H105-F105 -> 2.75 | M105: =N105*K105 -> 6600 | N105: 2400 | O105: Successful | P105: 2019-06-25 | R105: H
A106: 57 | B106: 2019-06-25 | D106: RBLBANK JULY FUT | E106: Buy | F106: 620-621 | G106: 610 | I106: 640 | J106: Open | R106: N
A107: 58 | B107: 2019-06-25 | D107: LT JULY FUT | E107: Buy | F107: 1520 -1523 | G107: 1490 | I107: 1570 -1580 | J107: Open | R107: H
A108: 59 | B108: 2019-06-25 | D108: HINDALCO JUL FUT | E108: Sell | F108: 202.50-203 | G108: 206.2 | I108: 195 | J108: Open | R108: R
A109: 60 | B109: 2019-06-25 | D109: CIPLA JULY FUT | E109: Buy | F109: 555 -557 | G109: 545 | I109: 575 -580 | J109: Open | R109: H
A113: CLBS = Closing Basis ***
A114: Dividend adjusted <> | F114: Reinitiated $
F115: Revised stoploss #
A117: Master Trade High Risk
A118: Sr.no | B118: Date | D118: Company | E118: Rec | F118: Rec Price | G118: Stop Loss | H118: Call Closed At | I118: Target | J118: Remark | K118: Profit / Loss per share | L118: Gain / Loss per Lot | M118: Lot | N118: Status | O118: Closed Date
A119: 1 | B119: 2019-05-31 | D119: ACC JUN FUT | E119: Buy | F119: 1693.5 | G119: 1662 | H119: 1719 | I119: 1750 | J119: Profit of Rs.25.5/- | K119: =H119-F119 -> 25.5 | L119: =M119*K119 -> 10200 | M119: 400 | N119: Successful | O119: 2019-06-03 | R119: R
A120: 2 | B120: 2019-06-03 | D120: HDFC JUN FUT | E120: Sell | F120: 2212.5 | G120: 2252 | H120: 2212 | I120: 2140 | J120: Profit of Rs.7.5/- | K120: =F120-H120 -> 0.5 | L120: =7.5*M120 -> 3750 | M120: 500 | N120: Successful | O120: 2019-06-06 | R120: H
D121: HDFC 2160 PE JUNE | E121: Sell | F121: 28 | H121: 21 | K121: =F121-H121 -> 7 | R121: H
A129: Master Trade Medium Risk
A130: Sr.no | B130: Date | D130: Company | E130: Rec | F130: Rec Price | G130: Stop Loss | H130: Call Closed At | I130: Target | J130: Remark | K130: Profit/ Loss per lot | L130: Gain / Loss per Lot | M130: Lot | N130: Status | O130: Closed Date
A131: 1 | B131: 2019-05-29 | D131: HDFCBANK JUN 2400 PE | E131: Buy | F131: 42.5 | G131: 20 | H131: 24 | I131: 80 -85 | J131: Loss of Rs.18.5/- | K131: =H131-F131 -> -18.5 | L131: =K131*M131 -> -4625 | M131: 250 | N131: Unsuccessful | O131: 2019-06-03 | R131: H
A132: 2 | B132: 2019-06-03 | D132: NIFTY 11850 PE 6-JUNE | E132: Buy | F132: 49.5 | G132: 14 | H132: 30 | I132: 90-100 | J132: Loss of Rs.19.5/- | K132: -19.5 | L132: -1462.5 | M132: 75 | N132: Unsuccessful | O132: 2019-06-03 | R132: H
A133: 3 | B133: 2019-06-03 | D133: NIFTY 11900 PE 6-JUNE | E133: Buy | F133: 41.5 | G133: 17 | H133: 17 | I133: 80 | J133: Loss of Rs.24.5/- | K133: -24.5 | L133: -1837.5 | M133: 75 | N133: Unsuccessful | O133: 2019-06-03 | R133: H
A134: 4 | B134: 2019-06-07 | D134: NIFTY 11800 PE 13 JUN | E134: Buy | F134: 44.5 | G134: 15 | H134: 56.5 | I134: 80-90 | J134: Profit of Rs.12/- | K134: 12 | L134: 900 | M134: 75 | N134: Successful | O134: 2019-06-07 | R134: R
A135: 5 | B135: 2019-06-07 | D135: NIFTY 11900 CE 13 JUN | E135: Buy | F135: 46 | G135: 15 | H135: 56.5 | I135: 80-90 | J135: Profit of Rs.10.5/- | K135: 10.5 | L135: 787.5 | M135: 75 | N135: Successful | O135: 2019-06-07 | R135: H
A136: 6 | B136: 2019-06-10 | D136: NIFTY 11900 PE 13-JUNE | E136: Buy | F136: 37.5 | G136: 14 | H136: 48.5 | I136: 80 | J136: Profit of Rs.11/- | K136: 11 | L136: 825 | M136: 75 | N136: Successful | O136: 2019-06-10 | R136: H
A137: 7 | B137: 2019-06-10 | D137: NIFTY 11900 CE 13-JUNE | E137: Buy | F137: 45.5 | G137: 27 | H137: 55.5 | I137: 80-85 | J137: Profit of Rs.10/- | K137: 10 | L137: 750 | M137: 75 | N137: Successful | O137: 2019-06-10 | R137: H
A138: 8 | B138: 2019-06-11 | D138: NIFTY 11900 PE 13-JUNE | E138: Buy | F138: 36 | G138: 14 | H138: 46 | I138: 80 | J138: Profit of Rs.10/- | K138: =H138-F138 -> 10 | L138: =K138*M138 -> 750 | M138: 75 | N138: Successful | O138: 2019-06-11 | R138: H
A139: 9 | B139: 2019-06-11 | D139: NIFTY 11900 PE 13-JUNE | E139: Buy | F139: 36 | G139: 14 | H139: 38 | I139: 80 | J139: Profit of Rs.2/- | K139: 2 | L139: =K139*M139 -> 150 | M139: 75 | N139: Neutral | O139: 2019-06-11 | R139: H
A140: 10 | B140: 2019-06-11 | D140: NIFTY 11950 PE 13 JUNE | E140: Buy | F140: 39.5 | G140: 18 | H140: 30 | I140: 80 | J140: Loss of Rs.9.5/- | K140: -9.5 | L140: =K140*M140 -> -712.5 | M140: 75 | N140: Unsuccessful | O140: 2019-06-11 | R140: H
A141: 11 | B141: 2019-06-12 | D141: NIFTY 11900 CE 13-JUNE | E141: Buy | F141: 46 | G141: 28 | H141: 28 | I141: 80 | J141: Loss of Rs.18/- | K141: -18 | L141: =K141*M141 -> -1350 | M141: 75 | N141: Unsuccessful | O141: 2019-06-12 | R141: H
A142: 12 | B142: 2019-06-13 | D142: NIFTY 13-Jun 11850 CE | E142: Buy | F142: 24 | G142: 8 | H142: 8 | I142: 60 | J142: Loss of Rs.16/- | K142: =H142-F142 -> -16 | L142: =K142*M142 -> -1200 | M142: 75 | N142: Unsuccessful | O142: 2019-06-13 | R142: R
A143: 13 | B143: 2019-06-14 | D143: NIFTY 12000 CE 27 JUNE | E143: Buy | F143: 53.5 | G143: 37 | H143: 43.5 | I143: 75-85 | J143: Loss of Rs.10/- | K143: -10 | L143: -750 | M143: 75 | N143: Unsuccessful | O143: 2019-06-14 | R143: H
A144: 14 | B144: 2019-06-14 | D144: RELIANCE JUNE 1340 CE | E144: Buy | F144: 13.5 | G144: 5 | H144: 5 | I144: 30 | J144: Loss of Rs.8.5/- | K144: =H144-F144 -> -8.5 | L144: =K144*M144 -> -4250 | M144: 500 | N144: Unsuccessful | O144: 2019-06-17 | R144: R
A145: 15 | B145: 20 June` | D145: NIFTY 11700 PE 27-JUNE | E145: Buy | F145: 55.5 | G145: 37 | H145: 37 | I145: 80-85 | J145: Loss of Rs.18.5/- | K145: =H145-F145 -> -18.5 | L145: =K145*M145 -> -1387.5 | M145: 75 | N145: Unsuccessful | O145: 2019-06-20 | R145: H
A146: 16 | B146: 2019-06-21 | D146: LT 1560 CE JUNE | E146: Buy | F146: 16.5 | G146: 5 | H146: 5 | I146: 35-40 | J146: Loss of Rs.11.5/- | K146: -11.5 | L146: -4312.5 | M146: 375 | N146: Unsuccessful | O146: 2019-06-25 | R146: H
A147: 17 | B147: 2019-06-24 | D147: NIFTY 11750 CE 27-JUNE | E147: Buy | F147: 43.5 | G147: 17 | H147: 55.5 | I147: 70-80 | J147: Profit of Rs.12/- | K147: 12 | L147: 900 | M147: 75 | N147: Successful | O147: 2019-06-25 | R147: H
A151: Techno -Funda (positional)
A152: Sr.no | B152: Date | D152: Company | E152: Rec | F152: Rec Price | G152: Stop Loss*** | H152: Call Closed At | I152: Target | J152: Remark | K152: Profit / Loss per Share | L152: Gain / Loss % | M152: Status | N152: Closed Date | O152: NSE Closed Price
A153: 1 | B153: 2019-04-04 | D153: FINPIPE | E153: Buy | F153: 474.5 | G153: 435 | H153: 505.5 | I153: 560 | J153: Part Profit of Rs.31/- | K153: =H153-F153 -> 31 | L153: =K153/F153 -> 6.53% | M153: Successful | N153: 2019-06-11 | R153: H
A154: 2 | B154: 2019-05-24 | D154: APOLLOTYRE | E154: Buy | F154: 187.5 | G154: 178.7 | H154: 201.5 | I154: 220-230 | J154: Part Profit of Rs.14/- | K154: =H154-F154 -> 14 | L154: 7.47% | M154: Successful | N154: 2019-06-04 | R154: R
A157: CLBS = Closing Basis *** | F157: Reinitiated $
A158: Dividend adjusted <> | F158: Revised stoploss #
B163: Investment Idea
A164: Sr.no | B164: Date | D164: Company | E164: Rec | F164: Rec Price | G164: Point of Review | H164: Close Rate | I164: Target | J164: Remark | K164: Profit / Loss per Share | L164: Gain / Loss % | M164: Status | N164: Closed Date
A165: 1 | B165: 2013-11-01 | D165: L&T Finance Holding | E165: Accu | F165: 82.00 | G165: - | H165: 100 | I165: 100.00 | J165: Target Achieved | K165: =H165-F165 -> 18.00 | L165: =K165/F165 -> 21.95% | M165: Successful | N165: 2016-10-14
A166: 2 | B166: 2014-06-04 | D166: Finolex Inds | E166: Buy | F166: 257.00 | G166: - | H166: 300 | I166: 300.00 | J166: Target Achieved | K166: =H166-F166 -> 43.00 | L166: 16.73% | M166: Successful | N166: 2014-07-02
A167: =1+A166 -> 3 | B167: 2014-07-08 | D167: JK Cement | E167: Buy | F167: 393.00 | G167: - | H167: 468 | I167: 468.00 | J167: Target Achieved | K167: =H167-F167 -> 75.00 | L167: 19.08% | M167: Successful | N167: 2014-08-12
A168: 4 | B168: 2014-08-06 | D168: Finolex Cables | E168: Buy | F168: 205.00 | G168: - | H168: 275 | I168: 250.00 | J168: Target Achieved | K168: 70.00 | L168: 34.15% | M168: Successful | N168: 2014-11-19
A169: 5 | B169: 2014-09-04 | D169: Exide Inds | E169: Buy | F169: 162.00 | G169: - | H169: 190 | I169: 190.00 | J169: Target Achieved | K169: 28.00 | L169: 17.28% | M169: Successful | N169: 2015-01-02
A170: 6 | B170: 2014-09-04 | D170: Deepak Nitrite | E170: Buy | F170: 75.00 | G170: - | H170: 91.5 | I170: 95-100 | J170: Profit of Rs.16.50/- | K170: 16.50 | L170: 22.00% | M170: Successful | N170: 2014-11-11
A171: 7 | B171: 2014-10-01 | D171: Mercks | E171: Buy | F171: 850.00 | G171: - | H171: 982.5 | I171: 1050.00 | J171: Profit of Rs.132.50/- | K171: 132.50 | L171: 15.59% | M171: Successful | N171: 2015-02-04
A172: 8 | B172: 2014-10-01 | D172: Grindwell Norton | E172: Buy | F172: 475.00 | G172: - | H172: 515 | I172: 600.00 | J172: Profit of Rs.40/- | K172: 40.00 | L172: 8.42% | M172: Successful | N172: 2014-10-27
A173: 9 | B173: 2014-10-01 | D173: Snowman Logistics | E173: Buy | F173: 86.00 | G173: - | H173: 99 | I173: 140.00 | J173: Profit of Rs.13.00/- | K173: 13.00 | L173: 15.12% | M173: Successful | N173: 2014-10-27
A174: 10 | B174: 2014-10-14 | D174: Birla Corp | E174: Buy | F174: 496.60 | G174: - | H174: 621 | I174: 580.00 | J174: Target Achieved | K174: 124.40 | L174: 25.05% | M174: Successful | N174: 2016-08-23
A175: 11 | B175: 2014-10-14 | D175: Ultratech Cem | E175: Buy | F175: 2481.90 | G175: - | H175: 2840 | I175: 2870.00 | J175: Profit of Rs.358.10/- | K175: 358.10 | L175: 14.43% | M175: Successful | N175: 2015-01-13
A176: =1+A173 -> 10 | B176: 2014-10-16 | D176: Sintex Inds | E176: Buy | F176: 84.50 | G176: - | H176: 93 | I176: 110.00 | J176: Profit of Rs.8.50/- | K176: 8.50 | L176: 10.06% | M176: Successful | N176: 2014-10-27
A177: =1+A176 -> 11 | B177: 2014-10-16 | D177: HSIL | E177: Buy | F177: 401.00 | G177: - | H177: 428 | I177: 450.00 | J177: Profit of Rs.27.00/- | K177: 27.00 | L177: 6.73% | M177: Successful | N177: 2015-01-16
A178: 12 | B178: 2014-10-16 | D178: Eveready Inds | E178: Buy | F178: 101.00 | G178: - | H178: 112 | I178: 120.00 | J178: Profit of Rs.11.00/- | K178: 11.00 | L178: 10.89% | M178: Successful | N178: 2014-10-27
A179: 13 | B179: 2014-11-11 | D179: Pennar Inds | E179: Buy | F179: 59.00 | G179: - | H179: 76 | I179: 76.00 | J179: Target Achieved | K179: 17.00 | L179: 28.81% | M179: Successful | N179: 2017-10-24
A180: 14 | B180: 2014-11-11 | D180: Snowman Logistics | E180: Buy | F180: 99.00 | G180: - | H180: 120 | I180: 120.00 | J180: Profit of Rs.21/- | K180: 21.00 | L180: 21.21% | M180: Successful | N180: 2014-11-17
A181: 15 | B181: 2014-11-13 | D181: Dharamsi Morarji Chem | E181: Buy | F181: 22.00 | G181: - | H181: 33.55 | I181: 32.00 | J181: Profit of Rs 11.55/- | K181: 11.55 | L181: 52.50% | M181: Successful | N181: 2015-07-03
A182: 16 | B182: 2014-12-03 | D182: Tatachem | E182: Buy | F182: 440.00 | G182: - | H182: 520 | I182: 520.00 | J182: Profit of Rs 80.00/- | K182: 80.00 | L182: 18.18% | M182: Successful | N182: 2015-07-23
A183: 17 | B183: 2014-12-03 | D183: Advanta | E183: Buy | F183: 360.00 | G183: - | H183: 427 | I183: 425.00 | J183: Profit of Rs.67.00/- | K183: 67.00 | L183: 18.61% | M183: Successful | N183: 2015-02-23
A184: 18 | B184: 2015-01-08 | D184: GDL | E184: Buy | F184: 360.00 | G184: - | H184: 455 | I184: 420.00 | J184: Profit of Rs.95.00/- | K184: 95.00 | L184: 26.39% | M184: Successful | N184: 2015-01-20
A185: 19 | B185: 2015-01-08 | D185: NRB Bearing | E185: Buy | F185: 130.00 | H185: 175.5 | I185: 165.00 | J185: Profit of Rs 45.50/- | K185: 45.50 | L185: 35.00% | M185: Successful | N185: 2017-12-19
A186: 20 | B186: 2015-02-05 | D186: GSFC | E186: Accu | F186: 98.00 | H186: 120 | I186: 120.00 | J186: Target Achieved | K186: 22.00 | L186: 22.45% | M186: Successful | N186: 2017-01-18
A187: 21 | B187: 2015-02-05 | D187: Sundrmfast | E187: Accu | F187: 196.00 | H187: 262 | I187: 255.00 | J187: Target Achieved | K187: 66.00 | L187: 33.67% | M187: Successful | N187: 2016-08-17
A188: 22 | B188: 2015-03-04 | D188: GPPL | E188: Accu | F188: 235 | H188: 77.00 | I188: 280-285 | J188: Loss of Rs.158/- | K188: =H188-F188 -> -158.00 | L188: -67.23% | M188: Unsuccessful | N188: 2019-02-26
A189: 23 | B189: 2015-03-04 | D189: ORIENTCEM | E189: Accu | F189: 185.00 | H189: 224 | I189: 220-225 | J189: Target Achieved | K189: 39.00 | L189: =K189/F189 -> 21.08% | M189: Successful | N189: 2016-10-04
A190: 24 | B190: 2015-03-27 | D190: PFS | E190: Accu | F190: 49.5 | H190: 15.85 | I190: 67.00 | J190: Loss of Rs.33.65/- | K190: =H190-F190 -> -33.65 | L190: =K190/F190 -> -68% | M190: Unsuccessful | N190: 2019-06-11
A191: 25 | B191: 2015-03-30 | D191: Walchandnagar Ind Ltd | E191: Accu | F191: 183.50 | H191: 219 | I191: 218.00 | J191: Profit of Rs.35.50/- | K191: 35.50 | L191: =K191/F191 -> 19.35% | M191: Successful | N191: 2015-04-09
A192: 26 | B192: 2015-04-20 | D192: Kalpataru Power Transmission Ltd | E192: Accu | F192: =(227+237)/2 -> 232.00 | H192: 298 | I192: 298.00 | J192: Target Achieved | K192: 66.00 | L192: 28.45% | M192: Successful | N192: 2017-03-29
A193: 27 | B193: 2015-05-04 | D193: Mastek Ltd | E193: Buy | F193: 385.00 | H193: =212.5+331 -> 543.5 | I193: 510.00 | J193: Profit of Rs 158.50/- | K193: 158.50 | L193: 41.17% | M193: Successful | N193: 2015-08-19
A194: 28 | B194: 2015-05-04 | D194: Suprajit Eng | E194: Buy | F194: 115.50 | H194: 146 | I194: 142.00 | J194: Profit of Rs 30.50/- | K194: 30.50 | L194: 26.41% | M194: Successful | N194: 2015-07-17
A195: 29 | B195: 2015-05-27 | D195: TCI | E195: Buy | F195: 237.50 | H195: 279.5 | I195: 278.00 | J195: Target Achieved | K195: 42.00 | L195: 17.68% | M195: Successful | N195: 2015-08-06
A196: 30 | B196: 2015-06-19 | D196: HSIL | E196: Accu | F196: 340.00 | H196: 448 | I196: 448.00 | J196: Target Achieved | K196: 108.00 | L196: 31.76% | M196: Successful | N196: 2017-10-10
A197: 31 | B197: 2015-07-06 | D197: Capital First | E197: Accu | F197: 390.00 | H197: 460 | I197: 460.00 | J197: Target Achieved | K197: 70.00 | L197: 17.95% | M197: Successful | N197: 2016-04-18
A198: 32 | B198: 2015-07-10 | D198: Dolphin OffShore | E198: Accu | F198: 122.5 | H198: 61.00 | I198: 172.00 | J198: Loss of Rs.61.50/- | K198: -61.50 | L198: -50.20% | M198: Unsuccessful | N198: 2018-08-21
A199: 33 | B199: 2015-08-03 | D199: Allcargo logistics | E199: Accu | F199: 297.50 | H199: 350 | I199: 360.00 | J199: Profit of Rs 52.50/- | K199: 52.50 | L199: =K199/F199 -> 17.65% | M199: Successful | N199: 2015-08-16
A200: 34 | B200: 2015-08-03 | D200: Camline Fine | E200: Accu | F200: 115.50 | H200: 149 | I200: 140.00 | J200: Profit of Rs 33.50/- | K200: 33.50 | L200: 29.00% | M200: Successful | N200: 2017-01-05
A201: 35 | B201: 2015-09-04 | D201: TCI | E201: Accu | F201: 226.00 | H201: 292 | I201: 292.00 | J201: Target Achieved | K201: 66.00 | L201: 29.20% | M201: Successful | N201: 2015-10-09
A202: 36 | B202: 2015-09-07 | D202: Kalpataru Power Transmission Ltd | E202: Accu | F202: 232.50 | H202: 312.5 | I202: 310.00 | J202: Target Achieved | K202: 80.00 | L202: 34.41% | M202: Successful | N202: 2017-03-29
A203: 37 | B203: 2015-09-21 | D203: LLOYD ELECTRIC & ENG LTD | E203: Accu | F203: 196.50 | H203: 238 | I203: 238.00 | J203: Target Achieved | K203: 41.50 | L203: 21.12% | M203: Successful | N203: 2015-10-14
A204: 38 | B204: 2015-09-24 | D204: L&T Finance Holding | E204: Accu | F204: 65.00 | H204: 82 | I204: 82.00 | J204: Target Achieved | K204: 17.00 | L204: 26.15% | M204: Successful | N204: 2016-07-27
A205: 39 | B205: 2015-10-14 | D205: KEC International ltd | E205: Accu | F205: 144.00 | H205: 182.5 | I205: 181.00 | J205: Target Achieved | K205: 38.50 | L205: 26.74% | M205: Successful | N205: 2017-03-23
A206: 40 | B206: 2015-10-14 | D206: Gruh Finance | E206: Accu | F206: 264.00 | H206: 311 | I206: 311.00 | J206: Target Achieved | K206: 47.00 | L206: 17.80% | M206: Successful | N206: 2016-08-22
A207: 41 | B207: 2015-11-10 | D207: Pidilitind | E207: Buy | F207: 549.50 | H207: 630 | I207: 630.00 | J207: Target Achieved | K207: 80.50 | L207: 14.65% | M207: Successful | N207: 2016-02-19
A208: 42 | B208: 2015-12-04 | D208: Zensar Technology | E208: Accu | F208: 1027.50 | H208: 1315 | I208: 1250.00 | J208: Target Achieved | K208: =H208-F208 -> 287.50 | L208: 27.98% | M208: Successful | N208: 2018-05-24
A209: 43 | B209: 2015-12-29 | D209: Vinati Organics Ltd | E209: Accu | F209: 465.00 | H209: 540 | I209: 540.00 | J209: Target Achieved | K209: 75.00 | L209: =K209/F209 -> 16.13% | M209: Successful | N209: 2016-06-09
A210: 44 | B210: 2016-01-11 | D210: GSFC | E210: Buy | F210: 81.00 | H210: 110 | I210: 110.00 | J210: Target Achieved | K210: 29.00 | L210: 35.80% | M210: Successful | N210: 2017-01-10
A211: 45 | B211: 2016-01-13 | D211: SSWL | E211: Buy | F211: 417.50 | H211: 547 | I211: 535.00 | J211: Target Achieved | K211: 129.50 | L211: 31.02% | M211: Successful | N211: 2016-07-27 | T211: .
A212: 46 | B212: 2016-02-08 | D212: Persistent System Ltd | E212: Accu | F212: 650.00 | H212: 800 | I212: 800.00 | J212: Target Achieved | K212: 150.00 | L212: 23.08% | M212: Successful | N212: 2018-02-23
A213: 47 | B213: 2016-03-04 | D213: UPL | E213: Accu | F213: 437.50 | H213: 504.5 | I213: 522.00 | J213: Profit of Rs.67/- | K213: 67.00 | L213: 15.31% | M213: Successful | N213: 2016-04-20
A214: 48 | B214: 2016-03-09 | D214: Ashoka Buildcon Ltd | E214: Accu | F214: 189.50 | H214: 218 | I214: 218.00 | J214: Target Achieved | K214: 28.50 | L214: 15.04% | M214: Successful | N214: 2017-10-26
A215: 49 | B215: 2016-04-11 | D215: PTC INDIA FIN SERV LTD | E215: Accu | F215: 36.5 | H215: 15.85 | I215: 60.00 | J215: Loss of Rs.20.65/- | K215: -20.65 | L215: -56.58% | M215: Unsuccessful | N215: 2019-06-11
A216: 50 | B216: 2016-04-12 | D216: CAMLINFINE $ | E216: Accu | F216: 93.00 | H216: 149 | I216: 140.00 | J216: Profit of Rs 56/- | K216: 56.00 | L216: =K216/F216 -> 60.22% | M216: Successful | N216: 2017-01-05
A217: 51 | B217: 2016-04-12 | D217: Greaves Cotton Ltd. | E217: Accu | F217: 130.00 | H217: 150 | I217: 150-155 | J217: Target Achieved | K217: 20.00 | L217: 15.38% | M217: Successful | N217: 2016-07-13
A218: 52 | B218: 2016-04-13 | D218: DHFL | E218: Accu | F218: 196.00 | H218: 299 | I218: 299.00 | J218: Target Achieved | K218: 103.00 | L218: 52.55% | M218: Successful | N218: 2016-09-07
A219: 53 | B219: 2016-04-13 | D219: Magma | E219: Accu | F219: 88.00 | H219: 103 | I219: 103.00 | J219: Target Achieved | K219: 15.00 | L219: 17.05% | M219: Successful | N219: 2016-06-09
A220: 54 | B220: 2016-05-02 | D220: KEC International ltd $ | E220: Accu | F220: 127.50 | H220: 148 | I220: 148-150 | J220: Target Achieved | K220: 20.50 | L220: 16.08% | M220: Successful | N220: 2016-07-13
A221: 55 | B221: 2016-05-03 | D221: Mindtree | E221: Accu | F221: 675.00 | H221: 815 | I221: 790-800 | J221: Target Achieved | K221: 140.00 | L221: 20.74% | M221: Successful | N221: 2018-02-23
A222: 56 | B222: 2016-06-06 | D222: TRITURBINE | E222: Accu | F222: 110.00 | H222: 126.5 | I222: 125.00 | J222: Profit of Rs.16.50/- | K222: 16.50 | L222: =K222/F222 -> 15.00% | M222: Successful | N222: 2016-07-01
A223: 57 | B223: 2016-06-17 | D223: Pennar Industries Ltd | E223: Accu | F223: 44.00 | H223: 69.5 | I223: 69.50 | J223: Profit of Rs.25.50/- | K223: 25.50 | L223: 57.95% | M223: Successful | N223: 2017-08-30
A224: 58 | B224: 2016-06-28 | D224: EVEREADY INDS. IND. LTD. | E224: Accu | F224: 262.50 | H224: 340 | I224: 333.00 | J224: Profit of Rs.77.50/- | K224: 77.50 | L224: 29.52% | M224: Successful | N224: 2017-10-09
A225: 59 | B225: 2016-06-28 | D225: FIEM INDUSTRIES LIMITED | E225: Accu | F225: 840.00 | H225: 1230 | I225: 1230.00 | J225: Target Achieved | K225: 390.00 | L225: 46.43% | M225: Successful | N225: 2016-10-06
A226: 60 | B226: 2016-07-05 | D226: Bajaj Corp Ltd | E226: Accu | F226: 395 | H226: =(468.5+342.5)/2 -> 405.50 | I226: 510.00 | J226: Profit of Rs.10.50/- | K226: 10.50 | L226: 3% | M226: Neutral | N226: 2019-05-21
A227: 61 | B227: 2016-08-02 | D227: GPPL $ | E227: Buy | F227: 169.5 | H227: 77.00 | I227: 198-200 | J227: Loss of Rs.92.5/- | K227: -92.50 | L227: -54.57% | M227: Unsuccessful | N227: 2019-02-26
A228: 62 | B228: 2016-08-04 | D228: WONDERLA HOLIDAYS LTD | E228: Accu | F228: 400 | H228: 305.00 | I228: 475.00 | J228: Loss of Rs.95/- | K228: =H228-F228 -> -95.00 | L228: =K228/F228 -> -23.75% | M228: Unsuccessful | N228: 2019-05-21
A229: 63 | B229: 2016-08-11 | D229: CAMLINFINE | E229: Accu | F229: 86.50 | H229: 130 | I229: 130.00 | J229: Profit of Rs.43.50/- | K229: =H229-F229 -> 43.50 | L229: =K229/F229 -> 50.29% | M229: Successful | N229: 2017-12-22
A230: 64 | B230: 2016-08-18 | D230: GRANULES | E230: Accu | F230: 133.5 | H230: 126.50 | I230: 178.00 | J230: Exit | K230: -7.00 | L230: -5.24% | M230: Unsuccessful | N230: 2016-09-02
A231: 65 | B231: 2016-08-31 | D231: VA TECH WABAG | E231: Accu | F231: 560.00 | H231: 725 | I231: 725.00 | J231: Target Achieved | K231: 165.00 | L231: 29.46% | M231: Successful | N231: 2016-03-27
A232: 66 | B232: 2016-09-01 | D232: SKIPPER LIMITED | E232: Accu | F232: 160.50 | H232: 210 | I232: 210.00 | J232: Target Achieved | K232: 49.50 | L232: 30.84% | M232: Successful | N232: 2017-05-16
... 88 more rows

Sheet Sheet2 (hidden)
A1: SYMBOL | B1: SERIES | C1: OPEN | D1: HIGH | E1: LOW | F1: CLOSE | G1: LAST | H1: PREVCLOSE | I1: TOTTRDQTY | J1: TOTTRDVAL | K1: TIMESTAMP | L1: TOTALTRADES | M1: ISIN | N1: ISIN
A2: 20MICRONS | B2: EQ | C2: 35.8 | D2: 36.7 | E2: 35 | F2: 36.2 | G2: 36 | H2: 35.85 | I2: 16948 | J2: 614916.4 | K2: 2019-06-25 | L2: 180 | M2: INE144J01027
A3: 21STCENMGM | B3: EQ | C3: 18.25 | D3: 18.55 | E3: 17.9 | F3: 17.9 | G3: 17.9 | H3: 18.25 | I3: 3072 | J3: 55592.4 | K3: 2019-06-25 | L3: 24 | M3: INE253B01015
A4: 3IINFOTECH | B4: EQ | C4: 3.25 | D4: 3.4 | E4: 3.2 | F4: 3.3 | G4: 3.35 | H4: 3.2 | I4: 1416936 | J4: 4628744.4 | K4: 2019-06-25 | L4: 486 | M4: INE748C01020
A5: 3MINDIA | B5: EQ | C5: 23511.05 | D5: 23894.7 | E5: 22700 | F5: 23183.9 | G5: 23150.05 | H5: 23779.1 | I5: 1707 | J5: 39631884.95 | K5: 2019-06-25 | L5: 863 | M5: INE470A01017
A6: 5PAISA | B6: EQ | C6: 200.05 | D6: 207.9 | E6: 193.5 | F6: 201.7 | G6: 201 | H6: 203.4 | I6: 1721 | J6: 348005.15 | K6: 2019-06-25 | L6: 278 | M6: INE618L01018
A7: 63MOONS | B7: EQ | C7: 117 | D7: 117 | E7: 111.15 | F7: 112.55 | G7: 112.2 | H7: 115.7 | I7: 65760 | J7: 7500031.95 | K7: 2019-06-25 | L7: 1221 | M7: INE111B01023
A8: 8KMILES | B8: EQ | C8: 84.65 | D8: 84.65 | E8: 84.65 | F8: 84.65 | G8: 84.65 | H8: 80.65 | I8: 22432 | J8: 1898868.8 | K8: 2019-06-25 | L8: 129 | M8: INE650K01021
A9: A2ZINFRA | B9: EQ | C9: 13.45 | D9: 13.75 | E9: 12.85 | F9: 13 | G9: 13 | H9: 13.35 | I9: 250435 | J9: 3313640.8 | K9: 2019-06-25 | L9: 851 | M9: INE619I01012
A10: AARTIDRUGS | B10: EQ | C10: 534.3 | D10: 534.3 | E10: 520.05 | F10: 529.95 | G10: 530 | H10: 530 | I10: 6312 | J10: 3326584.15 | K10: 2019-06-25 | L10: 1098 | M10: INE767A01016
A11: AARTIIND | B11: EQ | C11: 1818 | D11: 1828.25 | E11: 1785.1 | F11: 1796.7 | G11: 1801 | H11: 1803.2 | I11: 81425 | J11: 147451467 | K11: 2019-06-25 | L11: 7993 | M11: INE769A01020
A12: AARVEEDEN | B12: EQ | C12: 21.45 | D12: 21.85 | E12: 20.6 | F12: 21.35 | G12: 21.5 | H12: 21.5 | I12: 1081 | J12: 23013.85 | K12: 2019-06-25 | L12: 52 | M12: INE273D01019
A13: AAVAS | B13: EQ | C13: 1473 | D13: 1520 | E13: 1473 | F13: 1491.75 | G13: 1495 | H13: 1473.25 | I13: 127781 | J13: 191671922.6 | K13: 2019-06-25 | L13: 3688 | M13: INE216P01012
A14: ABAN | B14: EQ | C14: 37.5 | D14: 37.9 | E14: 36 | F14: 36.2 | G14: 36.05 | H14: 37 | I14: 61021 | J14: 2226427.75 | K14: 2019-06-25 | L14: 823 | M14: INE421A01028
A15: ABB | B15: EQ | C15: 1564 | D15: 1568 | E15: 1540.9 | F15: 1559.05 | G15: 1553.7 | H15: 1560.9 | I15: 27457 | J15: 42671513.45 | K15: 2019-06-25 | L15: 3080 | M15: INE117A01022
A16: ABBOTINDIA | B16: EQ | C16: 8600 | D16: 8600 | E16: 8500 | F16: 8557.75 | G16: 8550 | H16: 8541.85 | I16: 2575 | J16: 22012311.2 | K16: 2019-06-25 | L16: 474 | M16: INE358A01014
A17: ABCAPITAL | B17: EQ | C17: 92 | D17: 92.8 | E17: 91.35 | F17: 92.05 | G17: 91.95 | H17: 92.15 | I17: 500352 | J17: 46093982.1 | K17: 2019-06-25 | L17: 6189 | M17: INE674K01013
A18: ABFRL | B18: EQ | C18: 207.7 | D18: 215.6 | E18: 199.85 | F18: 212.65 | G18: 213.7 | H18: 207.7 | I18: 776725 | J18: 160250897.9 | K18: 2019-06-25 | L18: 6883 | M18: INE647O01011
A19: ABMINTLTD | B19: BE | C19: 13.35 | D19: 13.35 | E19: 13.35 | F19: 13.35 | G19: 13.35 | H19: 13.35 | I19: 100 | J19: 1335 | K19: 2019-06-25 | L19: 1 | M19: INE251C01017
A20: ABSLNN50ET | B20: EQ | C20: 269.77 | D20: 269.77 | E20: 267.7 | F20: 267.7 | G20: 267.7 | H20: 268.05 | I20: 11 | J20: 2946.77 | K20: 2019-06-25 | L20: 3 | M20: INF209KB1B87
A21: ACC | B21: EQ | C21: 1536 | D21: 1561.9 | E21: 1526.35 | F21: 1554.55 | G21: 1553 | H21: 1537.6 | I21: 475097 | J21: 734188548.4 | K21: 2019-06-25 | L21: 20550 | M21: INE012A01025
A22: ACCELYA | B22: EQ | C22: 875 | D22: 885 | E22: 862 | F22: 871.6 | G22: 885 | H22: 876.2 | I22: 1012 | J22: 879797.9 | K22: 2019-06-25 | L22: 264 | M22: INE793A01012
A23: ACE | B23: EQ | C23: 92 | D23: 95.25 | E23: 92 | F23: 94.55 | G23: 94.5 | H23: 93.95 | I23: 55130 | J23: 5195856.3 | K23: 2019-06-25 | L23: 742 | M23: INE731H01025
A24: ADANIENT | B24: EQ | C24: 146.5 | D24: 151.95 | E24: 144.85 | F24: 150.85 | G24: 149.5 | H24: 147.75 | I24: 4920288 | J24: 729963562.8 | K24: 2019-06-25 | L24: 20915 | M24: INE423A01024
A25: ADANIGAS | B25: EQ | C25: 159.35 | D25: 166.25 | E25: 155.9 | F25: 162.2 | G25: 161.8 | H25: 158.7 | I25: 826013 | J25: 133494258.2 | K25: 2019-06-25 | L25: 9355 | M25: INE399L01023
A26: ADANIGREEN | B26: EQ | C26: 40.75 | D26: 41.95 | E26: 40.75 | F26: 41.35 | G26: 41.3 | H26: 41.15 | I26: 420526 | J26: 17382539.6 | K26: 2019-06-25 | L26: 2235 | M26: INE364U01010
A27: ADANIPORTS | B27: EQ | C27: 404 | D27: 407.2 | E27: 402.65 | F27: 405.65 | G27: 405 | H27: 406 | I27: 2099347 | J27: 850451209.6 | K27: 2019-06-25 | L27: 47304 | M27: INE742F01042
A28: ADANIPOWER | B28: EQ | C28: 50.3 | D28: 50.9 | E28: 48.9 | F28: 50.55 | G28: 50.65 | H28: 50.15 | I28: 14732369 | J28: 736225069 | K28: 2019-06-25 | L28: 21873 | M28: INE814H01011
A29: ADANITRANS | B29: EQ | C29: 224.85 | D29: 227.95 | E29: 217.95 | F29: 222 | G29: 222.35 | H29: 224.85 | I29: 117206 | J29: 26099547.15 | K29: 2019-06-25 | L29: 4143 | M29: INE931S01010
A30: ADFFOODS | B30: EQ | C30: 272.05 | D30: 277.5 | E30: 271.1 | F30: 272.25 | G30: 273 | H30: 274.8 | I30: 12461 | J30: 3398704.8 | K30: 2019-06-25 | L30: 463 | M30: INE982B01019
A31: ADHUNIK | B31: EQ | C31: 1.4 | D31: 1.4 | E31: 1.3 | F31: 1.35 | G31: 1.35 | H31: 1.35 | I31: 43166 | J31: 57591.5 | K31: 2019-06-25 | L31: 64 | M31: INE400H01019
A32: ADHUNIKIND | B32: EQ | C32: 77.9 | D32: 80.9 | E32: 77.5 | F32: 78.2 | G32: 78.45 | H32: 77.5 | I32: 85360 | J32: 6707486.05 | K32: 2019-06-25 | L32: 218 | M32: INE452L01012
A33: ADLABS | B33: EQ | C33: 5.25 | D33: 5.25 | E33: 5.05 | F33: 5.25 | G33: 5.25 | H33: 4.8 | I33: 70637 | J33: 369747.55 | K33: 2019-06-25 | L33: 131 | M33: INE172N01012
A34: ADORWELD | B34: EQ | C34: 334.05 | D34: 339.8 | E34: 334.05 | F34: 338.1 | G34: 339.8 | H34: 338.1 | I34: 1268 | J34: 428667 | K34: 2019-06-25 | L34: 53 | M34: INE045A01017
A35: ADROITINFO | B35: EQ | C35: 10.2 | D35: 10.75 | E35: 9.75 | F35: 10.25 | G35: 10.6 | H35: 10.25 | I35: 1475 | J35: 15444.6 | K35: 2019-06-25 | L35: 9 | M35: INE737B01033
A36: ADSL | B36: EQ | C36: 15.35 | D36: 15.4 | E36: 14.6 | F36: 14.75 | G36: 14.85 | H36: 14.95 | I36: 16970 | J36: 255733.6 | K36: 2019-06-25 | L36: 80 | M36: INE102I01027
A37: ADVANIHOTR | B37: EQ | C37: 58.05 | D37: 59 | E37: 56.15 | F37: 58.55 | G37: 58.45 | H37: 58.5 | I37: 8037 | J37: 469139.9 | K37: 2019-06-25 | L37: 65 | M37: INE199C01026
A38: ADVENZYMES | B38: EQ | C38: 167.65 | D38: 169.35 | E38: 165.45 | F38: 166.95 | G38: 166.2 | H38: 167.65 | I38: 73993 | J38: 12439498.8 | K38: 2019-06-25 | L38: 1176 | M38: INE837H01020
A39: AEGISCHEM | B39: EQ | C39: 200.5 | D39: 205.45 | E39: 198.85 | F39: 202.6 | G39: 202.1 | H39: 201.55 | I39: 54440 | J39: 11032034.65 | K39: 2019-06-25 | L39: 2587 | M39: INE208C01025
A40: AGARIND | B40: EQ | C40: 123 | D40: 132.4 | E40: 112.3 | F40: 123.75 | G40: 117.25 | H40: 121.5 | I40: 15453 | J40: 1928833.9 | K40: 2019-06-25 | L40: 401 | M40: INE204E01012
A41: AGCNET | B41: EQ | C41: 110.05 | D41: 111.25 | E41: 110 | F41: 110 | G41: 110 | H41: 109.55 | I41: 277 | J41: 30480.2 | K41: 2019-06-25 | L41: 17 | M41: INE676A01019
A42: AGLSL | B42: EQ | C42: 55 | D42: 58.05 | E42: 53.9 | F42: 54.8 | G42: 55 | H42: 57 | I42: 21107 | J42: 1155849.3 | K42: 2019-06-25 | L42: 129 | M42: INE517U01013
A43: AGRITECH | B43: EQ | C43: 50.05 | D43: 50.9 | E43: 49.55 | F43: 49.65 | G43: 49.55 | H43: 50.2 | I43: 3371 | J43: 168753.85 | K43: 2019-06-25 | L43: 65 | M43: INE449G01018
A44: AGROPHOS | B44: BE | C44: 86.25 | D44: 86.25 | E44: 78.65 | F44: 85.65 | G44: 86.1 | H44: 82.75 | I44: 54686 | J44: 4656112.2 | K44: 2019-06-25 | L44: 31 | M44: INE740V01019
A45: AHLEAST | B45: EQ | C45: 180.5 | D45: 189 | E45: 180.5 | F45: 185.05 | G45: 183.55 | H45: 189.95 | I45: 11075 | J45: 2007745.55 | K45: 2019-06-25 | L45: 139 | M45: INE926K01017
A46: AHLUCONT | B46: EQ | C46: 328.65 | D46: 331 | E46: 328.65 | F46: 330.5 | G46: 330.5 | H46: 330 | I46: 53897 | J46: 17786325.95 | K46: 2019-06-25 | L46: 249 | M46: INE758C01029
A47: AHLWEST | B47: EQ | C47: 336.5 | D47: 347 | E47: 336.5 | F47: 346.05 | G47: 336.5 | H47: 336.5 | I47: 867 | J47: 299384.75 | K47: 2019-06-25 | L47: 15 | M47: INE915K01010
A48: AIAENG | B48: EQ | C48: 1741.5 | D48: 1767 | E48: 1736.05 | F48: 1747.1 | G48: 1750 | H48: 1748.55 | I48: 30608 | J48: 53723096.6 | K48: 2019-06-25 | L48: 2929 | M48: INE212H01026
A49: AIONJSW | B49: EQ | C49: 16.85 | D49: 17.4 | E49: 16.3 | F49: 16.9 | G49: 16.7 | H49: 16.9 | I49: 8772 | J49: 147922.9 | K49: 2019-06-25 | L49: 146 | M49: INE743C01021
A50: AIRAN | B50: EQ | C50: 27.55 | D50: 29.95 | E50: 26.65 | F50: 27.4 | G50: 27.45 | H50: 27.5 | I50: 6533 | J50: 178307.65 | K50: 2019-06-25 | L50: 31 | M50: INE645W01026
A51: AJANTPHARM | B51: EQ | C51: 950.1 | D51: 977.7 | E51: 936.4 | F51: 974.35 | G51: 973.8 | H51: 956.6 | I51: 350276 | J51: 335415141.6 | K51: 2019-06-25 | L51: 10288 | M51: INE031B01049
A52: AJMERA | B52: EQ | C52: 156.7 | D52: 162.8 | E52: 154.5 | F52: 160.7 | G52: 161.8 | H52: 158.15 | I52: 55652 | J52: 8869447.95 | K52: 2019-06-25 | L52: 1525 | M52: INE298G01027
A53: AKSHARCHEM | B53: EQ | C53: 269.95 | D53: 277.65 | E53: 262.1 | F53: 268.15 | G53: 272 | H53: 264.8 | I53: 2340 | J53: 627510.7 | K53: 2019-06-25 | L53: 300 | M53: INE542B01011
A54: AKSHOPTFBR | B54: EQ | C54: 11.05 | D54: 11.6 | E54: 10.85 | F54: 10.95 | G54: 10.9 | H54: 10.8 | I54: 260313 | J54: 2884684.5 | K54: 2019-06-25 | L54: 851 | M54: INE523B01011
A55: AKZOINDIA | B55: EQ | C55: 1725.05 | D55: 1754 | E55: 1701.7 | F55: 1749.3 | G55: 1750 | H55: 1727.75 | I55: 8183 | J55: 14211775.9 | K55: 2019-06-25 | L55: 1058 | M55: INE133A01011
A56: ALANKIT | B56: EQ | C56: 29.95 | D56: 30.35 | E56: 29.3 | F56: 29.65 | G56: 29.3 | H56: 30 | I56: 447538 | J56: 13381904.2 | K56: 2019-06-25 | L56: 2450 | M56: INE914E01040
A57: ALBERTDAVD | B57: EQ | C57: 391.6 | D57: 403 | E57: 391.6 | F57: 397.45 | G57: 397.45 | H57: 397 | I57: 2369 | J57: 939625.2 | K57: 2019-06-25 | L57: 92 | M57: INE155C01010
A58: ALBK | B58: EQ | C58: 40.75 | D58: 42.85 | E58: 40.6 | F58: 42.45 | G58: 42.35 | H58: 40.8 | I58: 4202469 | J58: 176049466.7 | K58: 2019-06-25 | L58: 9258 | M58: INE428A01015
A59: ALCHEM | B59: BE | C59: 1.15 | D59: 1.2 | E59: 1.15 | F59: 1.2 | G59: 1.2 | H59: 1.2 | I59: 448 | J59: 525.2 | K59: 2019-06-25 | L59: 7 | M59: INE964B01033
A60: ALEMBICLTD | B60: EQ | C60: 41.7 | D60: 42.75 | E60: 41.2 | F60: 42.5 | G60: 42.5 | H60: 41.85 | I60: 202354 | J60: 8516709.5 | K60: 2019-06-25 | L60: 942 | M60: INE426A01027
A61: ALICON | B61: EQ | C61: 560 | D61: 564 | E61: 554.2 | F61: 555.1 | G61: 555.05 | H61: 561.05 | I61: 1042 | J61: 583046 | K61: 2019-06-25 | L61: 39 | M61: INE062D01024
A62: ALKALI | B62: EQ | C62: 39.95 | D62: 45.3 | E62: 39.9 | F62: 42.4 | G62: 42.75 | H62: 39.45 | I62: 23555 | J62: 997087.35 | K62: 2019-06-25 | L62: 433 | M62: INE773I01017
A63: ALKEM | B63: EQ | C63: 1708.9 | D63: 1735.15 | E63: 1686 | F63: 1697.4 | G63: 1695 | H63: 1715.75 | I63: 28254 | J63: 48133441.4 | K63: 2019-06-25 | L63: 6740 | M63: INE540L01014
A64: ALKYLAMINE | B64: EQ | C64: 809 | D64: 819.95 | E64: 803 | F64: 805.45 | G64: 804.05 | H64: 803.65 | I64: 3611 | J64: 2918143.65 | K64: 2019-06-25 | L64: 180 | M64: INE150B01021
A65: ALLCARGO | B65: EQ | C65: 103 | D65: 103 | E65: 100.45 | F65: 101.7 | G65: 101.5 | H65: 102.1 | I65: 49192 | J65: 4979058.65 | K65: 2019-06-25 | L65: 1050 | M65: INE418H01029
A66: ALLSEC | B66: EQ | C66: 318.95 | D66: 318.95 | E66: 315.05 | F66: 316.1 | G66: 316.1 | H66: 316.3 | I66: 14307 | J66: 4517738.75 | K66: 2019-06-25 | L66: 45 | M66: INE835G01018
A67: ALMONDZ | B67: EQ | C67: 17 | D67: 17.8 | E67: 16.6 | F67: 17.25 | G67: 17.25 | H67: 16.55 | I67: 1618 | J67: 27943.75 | K67: 2019-06-25 | L67: 38 | M67: INE326B01027
A68: ALOKTEXT | B68: EQ | C68: 3.65 | D68: 3.65 | E68: 3.45 | F68: 3.5 | G68: 3.55 | H68: 3.55 | I68: 2821192 | J68: 9888818.15 | K68: 2019-06-25 | L68: 1030 | M68: INE270A01011
A69: ALPA | B69: EQ | C69: 18.1 | D69: 18.1 | E69: 17.4 | F69: 17.75 | G69: 17.8 | H69: 18.15 | I69: 13804 | J69: 243797.15 | K69: 2019-06-25 | L69: 108 | M69: INE385I01010
A70: ALPHAGEO | B70: EQ | C70: 433.05 | D70: 434 | E70: 421.65 | F70: 426.25 | G70: 425.9 | H70: 431.6 | I70: 1621 | J70: 695921.55 | K70: 2019-06-25 | L70: 182 | M70: INE137C01018
A71: ALPSINDUS | B71: BE | C71: 0.7 | D71: 0.75 | E71: 0.65 | F71: 0.75 | G71: 0.75 | H71: 0.7 | I71: 40014 | J71: 28229.85 | K71: 2019-06-25 | L71: 13 | M71: INE093B01015
A72: AMARAJABAT | B72: EQ | C72: 595 | D72: 624 | E72: 595 | F72: 614.75 | G72: 614.6 | H72: 601.6 | I72: 873777 | J72: 535096935.1 | K72: 2019-06-25 | L72: 13277 | M72: INE885A01032
A73: AMBER | B73: EQ | C73: 824 | D73: 831.25 | E73: 811.35 | F73: 829.5 | G73: 826 | H73: 818.95 | I73: 6270 | J73: 5172903.3 | K73: 2019-06-25 | L73: 602 | M73: INE371P01015
A74: AMBIKCO | B74: EQ | C74: 1056.95 | D74: 1060 | E74: 1035 | F74: 1040.4 | G74: 1049.7 | H74: 1039.25 | I74: 1452 | J74: 1521281.75 | K74: 2019-06-25 | L74: 247 | M74: INE540G01014
A75: AMBUJACEM | B75: EQ | C75: 214.35 | D75: 216 | E75: 211.3 | F75: 215.15 | G75: 214.85 | H75: 215 | I75: 2274581 | J75: 485901252.1 | K75: 2019-06-25 | L75: 24520 | M75: INE079A01024
A76: AMDIND | B76: EQ | C76: 17.35 | D76: 17.85 | E76: 17.35 | F76: 17.5 | G76: 17.6 | H76: 17.45 | I76: 616 | J76: 10762.55 | K76: 2019-06-25 | L76: 31 | M76: INE005I01014
A77: AMJLAND | B77: EQ | C77: 16.05 | D77: 16.75 | E77: 16.05 | F77: 16.4 | G77: 16.5 | H77: 16.4 | I77: 6816 | J77: 111213.5 | K77: 2019-06-25 | L77: 66 | M77: INE606A01024
A78: AMRUTANJAN | B78: EQ | C78: 302 | D78: 315 | E78: 302 | F78: 306.7 | G78: 305 | H78: 296.8 | I78: 112314 | J78: 34796303.4 | K78: 2019-06-25 | L78: 4777 | M78: INE098F01031
A79: ANANTRAJ | B79: EQ | C79: 29 | D79: 29.35 | E79: 28.7 | F79: 29.1 | G79: 29.1 | H79: 29 | I79: 63927 | J79: 1848360.05 | K79: 2019-06-25 | L79: 425 | M79: INE242C01024
A80: ANDHRABANK | B80: EQ | C80: 23 | D80: 23.1 | E80: 22.8 | F80: 22.9 | G80: 22.8 | H80: 22.7 | I80: 755877 | J80: 17330126.75 | K80: 2019-06-25 | L80: 2090 | M80: INE434A01013
A81: ANDHRACEMT | B81: EQ | C81: 4 | D81: 4.15 | E81: 3.95 | F81: 4 | G81: 3.95 | H81: 4.1 | I81: 27806 | J81: 112581.65 | K81: 2019-06-25 | L81: 103 | M81: INE666E01012
A82: ANDHRSUGAR | B82: EQ | C82: 324.7 | D82: 324.7 | E82: 315.55 | F82: 317.1 | G82: 317.35 | H82: 324.35 | I82: 15923 | J82: 5081033.5 | K82: 2019-06-25 | L82: 645 | M82: INE715B01013
A83: ANIKINDS | B83: EQ | C83: 12 | D83: 12.05 | E83: 11.1 | F83: 11.8 | G83: 12 | H83: 11.85 | I83: 1288 | J83: 15184.9 | K83: 2019-06-25 | L83: 25 | M83: INE087B01017
A84: ANKITMETAL | B84: BE | C84: 0.35 | D84: 0.45 | E84: 0.35 | F84: 0.45 | G84: 0.45 | H84: 0.4 | I84: 77222 | J84: 33514.3 | K84: 2019-06-25 | L84: 20 | M84: INE106I01010
A85: ANSALAPI | B85: EQ | C85: 5.15 | D85: 5.3 | E85: 5.1 | F85: 5.3 | G85: 5.3 | H85: 5.05 | I85: 84925 | J85: 447710.15 | K85: 2019-06-25 | L85: 168 | M85: INE436A01026
A86: ANSALHSG | B86: EQ | C86: 6.5 | D86: 6.8 | E86: 6.15 | F86: 6.25 | G86: 6.25 | H86: 6.4 | I86: 74951 | J86: 478170.2 | K86: 2019-06-25 | L86: 434 | M86: INE880B01015
A87: ANTGRAPHIC | B87: BE | C87: 0.8 | D87: 0.8 | E87: 0.8 | F87: 0.8 | G87: 0.8 | H87: 0.85 | I87: 24866 | J87: 19892.8 | K87: 2019-06-25 | L87: 35 | M87: INE414B01021
A88: ANUP | B88: EQ | C88: 470 | D88: 479.7 | E88: 455.8 | F88: 474.95 | G88: 478.9 | H88: 474.75 | I88: 5225 | J88: 2464243.85 | K88: 2019-06-25 | L88: 316 | M88: INE294Z01018
A89: APARINDS | B89: EQ | C89: 585 | D89: 604 | E89: 571 | F89: 601.4 | G89: 598 | H89: 584.9 | I89: 7376 | J89: 4359415.55 | K89: 2019-06-25 | L89: 573 | M89: INE372A01015
A90: APCL | B90: EQ | C90: 169.75 | D90: 174.9 | E90: 162 | F90: 165.65 | G90: 167.7 | H90: 164.85 | I90: 2279 | J90: 378313.5 | K90: 2019-06-25 | L90: 73 | M90: INE071F01012
A91: APCOTEXIND | B91: EQ | C91: 567.3 | D91: 574.85 | E91: 561.35 | F91: 573 | G91: 570 | H91: 566.8 | I91: 3693 | J91: 2100056.15 | K91: 2019-06-25 | L91: 191 | M91: INE116A01024
A92: APEX | B92: EQ | C92: 247.6 | D92: 259.9 | E92: 246.15 | F92: 250.75 | G92: 250 | H92: 249.35 | I92: 34868 | J92: 8793710.45 | K92: 2019-06-25 | L92: 1630 | M92: INE346W01013
A93: APLAPOLLO | B93: EQ | C93: 1525.6 | D93: 1544.9 | E93: 1513 | F93: 1539.65 | G93: 1544 | H93: 1513.65 | I93: 10827 | J93: 16590841.75 | K93: 2019-06-25 | L93: 1293 | M93: INE702C01019
A94: APLLTD | B94: EQ | C94: 508.45 | D94: 518 | E94: 493.65 | F94: 501.2 | G94: 499 | H94: 505 | I94: 55429 | J94: 28339610.55 | K94: 2019-06-25 | L94: 3353 | M94: INE901L01018
A95: APOLLO | B95: EQ | C95: 116.3 | D95: 120.45 | E95: 114 | F95: 117.75 | G95: 118.25 | H95: 115.1 | I95: 17965 | J95: 2119611.25 | K95: 2019-06-25 | L95: 627 | M95: INE713T01010
A96: APOLLOHOSP | B96: EQ | C96: 1345 | D96: 1351.45 | E96: 1309.95 | F96: 1324.85 | G96: 1328.6 | H96: 1344.65 | I96: 1156668 | J96: 1534883010 | K96: 2019-06-25 | L96: 54399 | M96: INE437A01024
A97: APOLLOTYRE | B97: EQ | C97: 198.4 | D97: 205.5 | E97: 197.1 | F97: 200.4 | G97: 200.4 | H97: 199.45 | I97: 5981431 | J97: 1208513411 | K97: 2019-06-25 | L97: 57086 | M97: INE438A01022
A98: APOLSINHOT | B98: EQ | C98: 857.95 | D98: 889 | E98: 836.1 | F98: 871.65 | G98: 868 | H98: 843.4 | I98: 365 | J98: 316446.95 | K98: 2019-06-25 | L98: 129 | M98: INE451F01024
A99: APTECHT | B99: EQ | C99: 136.05 | D99: 145.9 | E99: 133.6 | F99: 141.85 | G99: 141.7 | H99: 136.25 | I99: 822987 | J99: 114278257.9 | K99: 2019-06-25 | L99: 6014 | M99: INE266F01018
A100: ARCHIDPLY | B100: EQ | C100: 32.8 | D100: 32.9 | E100: 31.9 | F100: 32.3 | G100: 32.1 | H100: 32.35 | I100: 8335 | J100: 269120.35 | K100: 2019-06-25 | L100: 115 | M100: INE877I01016
A101: ARCHIES | B101: EQ | C101: 20.55 | D101: 20.9 | E101: 20.1 | F101: 20.8 | G101: 20.8 | H101: 20.65 | I101: 7217 | J101: 148613.9 | K101: 2019-06-25 | L101: 115 | M101: INE731A01020
A102: ARCOTECH | B102: EQ | C102: 2.85 | D102: 2.85 | E102: 2.65 | F102: 2.65 | G102: 2.65 | H102: 2.75 | I102: 47465 | J102: 131566.2 | K102: 2019-06-25 | L102: 106 | M102: INE574I01035
A103: ARIES | B103: EQ | C103: 61.05 | D103: 62.7 | E103: 60.1 | F103: 62.25 | G103: 62.25 | H103: 61.55 | I103: 10799 | J103: 666510.05 | K103: 2019-06-25 | L103: 215 | M103: INE298I01015
A104: ARIHANT | B104: EQ | C104: 21.05 | D104: 22.75 | E104: 20.9 | F104: 22.5 | G104: 22.5 | H104: 21.8 | I104: 793 | J104: 16654 | K104: 2019-06-25 | L104: 15 | M104: INE413D01011
A105: ARIHANTSUP | B105: EQ | C105: 55.5 | D105: 58.4 | E105: 53 | F105: 54.35 | G105: 55 | H105: 55.65 | I105: 29872 | J105: 1675524.3 | K105: 2019-06-25 | L105: 276 | M105: INE643K01018
A106: ARMANFIN | B106: EQ | C106: 418.7 | D106: 418.7 | E106: 396.15 | F106: 404.6 | G106: 403 | H106: 405.25 | I106: 3440 | J106: 1384026 | K106: 2019-06-25 | L106: 96 | M106: INE109C01017
A107: AROGRANITE | B107: EQ | C107: 45.25 | D107: 46 | E107: 44.3 | F107: 45.3 | G107: 45.6 | H107: 45.1 | I107: 3767 | J107: 170772.85 | K107: 2019-06-25 | L107: 115 | M107: INE210C01013
A108: ARROWGREEN | B108: EQ | C108: 48.1 | D108: 49.8 | E108: 47.3 | F108: 48.4 | G108: 48 | H108: 48.65 | I108: 7342 | J108: 357202.75 | K108: 2019-06-25 | L108: 117 | M108: INE570D01018
A109: ARROWTEX | B109: EQ | C109: 12.75 | D109: 12.75 | E109: 11.85 | F109: 12.4 | G109: 12.1 | H109: 12.25 | I109: 5901 | J109: 71137.6 | K109: 2019-06-25 | L109: 92 | M109: INE933J01015
A110: ARSHIYA | B110: EQ | C110: 20.95 | D110: 23 | E110: 20.95 | F110: 21.95 | G110: 21.75 | H110: 20.8 | I110: 81582 | J110: 1792684.15 | K110: 2019-06-25 | L110: 449 | M110: INE968D01022
A111: ARSSINFRA | B111: EQ | C111: 35.6 | D111: 35.6 | E111: 33.6 | F111: 34.5 | G111: 34.5 | H111: 33.95 | I111: 6522 | J111: 225585.6 | K111: 2019-06-25 | L111: 65 | M111: INE267I01010
A112: ARVIND | B112: EQ | C112: 60.95 | D112: 66 | E112: 60.8 | F112: 64.65 | G112: 64.5 | H112: 62.5 | I112: 4960741 | J112: 316838769.8 | K112: 2019-06-25 | L112: 26678 | M112: INE034A01011
A113: ARVINDFASN | B113: EQ | C113: 693.2 | D113: 695 | E113: 680 | F113: 690.25 | G113: 688 | H113: 700.25 | I113: 63569 | J113: 43913637.6 | K113: 2019-06-25 | L113: 1233 | M113: INE955V01021
A114: ARVSMART | B114: EQ | C114: 98.5 | D114: 104.7 | E114: 98.5 | F114: 103.75 | G114: 104 | H114: 98.5 | I114: 11360 | J114: 1163677.35 | K114: 2019-06-25 | L114: 573 | M114: INE034S01021
A115: ASAHIINDIA | B115: EQ | C115: 218.05 | D115: 221.45 | E115: 216 | F115: 220 | G115: 221 | H115: 218.65 | I115: 8262 | J115: 1813727.85 | K115: 2019-06-25 | L115: 282 | M115: INE439A01020
A116: ASAHISONG | B116: EQ | C116: 136.05 | D116: 139.9 | E116: 135.95 | F116: 136.75 | G116: 136.2 | H116: 136.9 | I116: 3032 | J116: 416372.05 | K116: 2019-06-25 | L116: 93 | M116: INE228I01012
A117: ASAL | B117: EQ | C117: 45.9 | D117: 45.95 | E117: 44.5 | F117: 45.75 | G117: 45.75 | H117: 44.9 | I117: 6309 | J117: 287490.9 | K117: 2019-06-25 | L117: 58 | M117: INE900C01027
A118: ASHAPURMIN | B118: EQ | C118: 16.7 | D118: 17.75 | E118: 16.5 | F118: 16.85 | G118: 16.9 | H118: 17.35 | I118: 53505 | J118: 898588.4 | K118: 2019-06-25 | L118: 173 | M118: INE348A01023
A119: ASHIANA | B119: EQ | C119: 126.55 | D119: 127.9 | E119: 121.5 | F119: 123 | G119: 123 | H119: 126.15 | I119: 43185 | J119: 5318439.15 | K119: 2019-06-25 | L119: 1466 | M119: INE365D01021
A120: ASHIMASYN | B120: EQ | C120: 9.45 | D120: 10.45 | E120: 9.45 | F120: 10.15 | G120: 10.15 | H120: 10.05 | I120: 65063 | J120: 658474.7 | K120: 2019-06-25 | L120: 246 | M120: INE440A01010
A121: ASHOKA | B121: EQ | C121: 133 | D121: 135.2 | E121: 131.5 | F121: 133.7 | G121: 133.5 | H121: 133.65 | I121: 78690 | J121: 10531978.15 | K121: 2019-06-25 | L121: 1919 | M121: INE442H01029
A122: ASHOKLEY | B122: EQ | C122: 85.8 | D122: 89.9 | E122: 85.1 | F122: 85.7 | G122: 86 | H122: 85.8 | I122: 20836957 | J122: 1795836733 | K122: 2019-06-25 | L122: 54275 | M122: INE208A01029
A123: ASIANHOTNR | B123: EQ | C123: 122.05 | D123: 124.25 | E123: 121.5 | F123: 121.75 | G123: 121.5 | H123: 122.4 | I123: 322 | J123: 39304.4 | K123: 2019-06-25 | L123: 64 | M123: INE363A01022
A124: ASIANPAINT | B124: EQ | C124: 1371 | D124: 1372.45 | E124: 1360.35 | F124: 1363.1 | G124: 1362 | H124: 1376.15 | I124: 1388994 | J124: 1895767532 | K124: 2019-06-25 | L124: 44992 | M124: INE021A01026
A125: ASIANTILES | B125: EQ | C125: 255 | D125: 261.6 | E125: 251.65 | F125: 257.75 | G125: 258.8 | H125: 255.45 | I125: 142825 | J125: 36752536.65 | K125: 2019-06-25 | L125: 2553 | M125: INE022I01019
A126: ASPINWALL | B126: EQ | C126: 145 | D126: 154.95 | E126: 144 | F126: 149.45 | G126: 150.95 | H126: 150.95 | I126: 1618 | J126: 239801.85 | K126: 2019-06-25 | L126: 40 | M126: INE991I01015
A127: ASSAMCO | B127: BE | C127: 1.25 | D127: 1.3 | E127: 1.2 | F127: 1.2 | G127: 1.2 | H127: 1.25 | I127: 219707 | J127: 270350.4 | K127: 2019-06-25 | L127: 113 | M127: INE442A01024
A128: ASTEC | B128: EQ | C128: 457.9 | D128: 469 | E128: 452.95 | F128: 466.05 | G128: 466.95 | H128: 459.2 | I128: 8248 | J128: 3810208.25 | K128: 2019-06-25 | L128: 339 | M128: INE563J01010
A129: ASTERDM | B129: EQ | C129: 132.5 | D129: 139 | E129: 132.5 | F129: 135.75 | G129: 138 | H129: 133.65 | I129: 25258 | J129: 3407859.75 | K129: 2019-06-25 | L129: 800 | M129: INE914M01019
A130: ASTRAL | B130: EQ | C130: 1320.5 | D130: 1340 | E130: 1305 | F130: 1335 | G130: 1338 | H130: 1321.8 | I130: 22136 | J130: 29234648.9 | K130: 2019-06-25 | L130: 3480 | M130: INE006I01046
A131: ASTRAMICRO | B131: EQ | C131: 85.5 | D131: 87.45 | E131: 85.5 | F131: 87.1 | G131: 87.15 | H131: 86.4 | I131: 47205 | J131: 4094989.35 | K131: 2019-06-25 | L131: 586 | M131: INE386C01029
A132: ASTRAZEN | B132: EQ | C132: 1949.9 | D132: 1954.85 | E132: 1928 | F132: 1942.9 | G132: 1950 | H132: 1945.4 | I132: 3143 | J132: 6103811.45 | K132: 2019-06-25 | L132: 447 | M132: INE203A01020
A133: ASTRON | B133: EQ | C133: 119 | D133: 121.8 | E133: 117.1 | F133: 119.3 | G133: 117.5 | H133: 118.75 | I133: 878551 | J133: 105421327.9 | K133: 2019-06-25 | L133: 5100 | M133: INE646X01014
A134: ATFL | B134: EQ | C134: 495.05 | D134: 503.95 | E134: 491.5 | F134: 494.05 | G134: 493 | H134: 499.9 | I134: 4428 | J134: 2190420.75 | K134: 2019-06-25 | L134: 250 | M134: INE209A01019
A135: ATLANTA | B135: EQ | C135: 9.55 | D135: 9.95 | E135: 9.3 | F135: 9.55 | G135: 9.7 | H135: 9.55 | I135: 23838 | J135: 229066.35 | K135: 2019-06-25 | L135: 136 | M135: INE285H01022
A136: ATLASCYCLE | B136: BE | C136: 38.95 | D136: 38.95 | E136: 38.95 | F136: 38.95 | G136: 38.95 | H136: 37.1 | I136: 1654 | J136: 64423.3 | K136: 2019-06-25 | L136: 26 | M136: INE446A01025
A137: ATUL | B137: EQ | C137: 4016.6 | D137: 4016.6 | E137: 3951 | F137: 3968.85 | G137: 3970 | H137: 3993.1 | I137: 5281 | J137: 21031617.75 | K137: 2019-06-25 | L137: 934 | M137: INE100A01010
A138: ATULAUTO | B138: EQ | C138: 268.9 | D138: 272 | E138: 266.25 | F138: 269.75 | G138: 272 | H138: 269.6 | I138: 6651 | J138: 1787080.1 | K138: 2019-06-25 | L138: 520 | M138: INE951D01028
A139: AUBANK | B139: EQ | C139: 690.1 | D139: 704.9 | E139: 686 | F139: 698.75 | G139: 698.7 | H139: 692.7 | I139: 658420 | J139: 460918398.8 | K139: 2019-06-25 | L139: 9348 | M139: INE949L01017
A140: AURIONPRO | B140: EQ | C140: 119.25 | D140: 122.75 | E140: 116.1 | F140: 116.6 | G140: 116.5 | H140: 118.8 | I140: 7481 | J140: 882554.7 | K140: 2019-06-25 | L140: 228 | M140: INE132H01018
A141: AUROPHARMA | B141: EQ | C141: 586 | D141: 601.35 | E141: 576 | F141: 599.7 | G141: 598.75 | H141: 586.3 | I141: 3327392 | J141: 1962090324 | K141: 2019-06-25 | L141: 60393 | M141: INE406A01037
A142: AUSOMENT | B142: EQ | C142: 36.4 | D142: 36.7 | E142: 35 | F142: 35.95 | G142: 36.7 | H142: 36.5 | I142: 2652 | J142: 95365.2 | K142: 2019-06-25 | L142: 55 | M142: INE218C01016
A143: AUTOAXLES | B143: EQ | C143: 1015.1 | D143: 1015.1 | E143: 1002 | F143: 1003.75 | G143: 1007 | H143: 1009.45 | I143: 3105 | J143: 3121537.05 | K143: 2019-06-25 | L143: 682 | M143: INE449A01011
A144: AUTOIND | B144: EQ | C144: 51.7 | D144: 51.7 | E144: 49.9 | F144: 50.15 | G144: 50.05 | H144: 49.85 | I144: 53964 | J144: 2742958.4 | K144: 2019-06-25 | L144: 333 | M144: INE718H01014
A145: AVADHSUGAR | B145: EQ | C145: 668 | D145: 668 | E145: 631.25 | F145: 645.95 | G145: 647.9 | H145: 663.85 | I145: 37188 | J145: 24250143.8 | K145: 2019-06-25 | L145: 1981 | M145: INE349W01017
A146: AVANTIFEED | B146: EQ | C146: 354.7 | D146: 359.5 | E146: 350 | F146: 351.15 | G146: 350.15 | H146: 355.45 | I146: 132241 | J146: 46790204.95 | K146: 2019-06-25 | L146: 4539 | M146: INE871C01038
A147: AVTNPL | B147: EQ | C147: 23.6 | D147: 24.2 | E147: 23.5 | F147: 24 | G147: 24.2 | H147: 23.75 | I147: 39425 | J147: 939198.8 | K147: 2019-06-25 | L147: 183 | M147: INE488D01021
A148: AXISBANK | B148: EQ | C148: 761.25 | D148: 783 | E148: 756.55 | F148: 781.65 | G148: 780.1 | H148: 762.85 | I148: 10044436 | J148: 7744361638 | K148: 2019-06-25 | L148: 199156 | M148: INE238A01034
A149: AXISCADES | B149: EQ | C149: 62.65 | D149: 66.05 | E149: 60.75 | F149: 61.4 | G149: 61.8 | H149: 63.05 | I149: 191839 | J149: 12009472.6 | K149: 2019-06-25 | L149: 2865 | M149: INE555B01013
A150: AXISGOLD | B150: EQ | C150: 3000 | D150: 3044 | E150: 2986.6 | F150: 3010.7 | G150: 3010 | H150: 2996.55 | I150: 824 | J150: 2479247.2 | K150: 2019-06-25 | L150: 100 | M150: INF846K01347
A151: AXISNIFTY | B151: EQ | C151: 1203.3 | D151: 1212.94 | E151: 1202 | F151: 1206.83 | G151: 1202 | H151: 1203.66 | I151: 173 | J151: 208771.36 | K151: 2019-06-25 | L151: 8 | M151: INF846K01ZL0
A152: AYMSYNTEX | B152: EQ | C152: 39.05 | D152: 41 | E152: 39.05 | F152: 39.5 | G152: 39.45 | H152: 40.4 | I152: 6822 | J152: 271738.55 | K152: 2019-06-25 | L152: 74 | M152: INE193B01039
A153: BAFNAPHARM | B153: BE | C153: 6 | D153: 6 | E153: 5.7 | F153: 5.7 | G153: 5.7 | H153: 5.95 | I153: 5004 | J153: 29112 | K153: 2019-06-25 | L153: 26 | M153: INE878I01014
A154: BAGFILMS | B154: EQ | C154: 3.7 | D154: 3.75 | E154: 3.55 | F154: 3.65 | G154: 3.6 | H154: 3.8 | I154: 86828 | J154: 317868.15 | K154: 2019-06-25 | L154: 135 | M154: INE116D01028
A155: BAJAJ-AUTO | B155: EQ | C155: 2814 | D155: 2853.95 | E155: 2786 | F155: 2843.7 | G155: 2843.95 | H155: 2816.9 | I155: 424591 | J155: 1200472450 | K155: 2019-06-25 | L155: 24688 | M155: INE917I01010
A156: BAJAJCON | B156: EQ | C156: 326 | D156: 337 | E156: 324.15 | F156: 332.85 | G156: 333.85 | H156: 328.1 | I156: 46540 | J156: 15490472.35 | K156: 2019-06-25 | L156: 3081 | M156: INE933K01021
A157: BAJAJELEC | B157: EQ | C157: 503 | D157: 518.75 | E157: 501.6 | F157: 512.55 | G157: 516.05 | H157: 505.2 | I157: 166224 | J157: 85454430.35 | K157: 2019-06-25 | L157: 5250 | M157: INE193E01025
A158: BAJAJFINSV | B158: EQ | C158: 8350 | D158: 8399.65 | E158: 8327 | F158: 8346.15 | G158: 8336 | H158: 8354.65 | I158: 108873 | J158: 909948854.4 | K158: 2019-06-25 | L158: 16517 | M158: INE918I01018
A159: BAJAJHIND | B159: EQ | C159: 7.6 | D159: 7.75 | E159: 7.55 | F159: 7.6 | G159: 7.55 | H159: 7.65 | I159: 867302 | J159: 6621087 | K159: 2019-06-25 | L159: 955 | M159: INE306A01021
A160: BAJAJHLDNG | B160: EQ | C160: 3599.95 | D160: 3649 | E160: 3570 | F160: 3636.95 | G160: 3642 | H160: 3603.95 | I160: 18228 | J160: 65832560.75 | K160: 2019-06-25 | L160: 3353 | M160: INE118A01012
A161: BAJFINANCE | B161: EQ | C161: 3545.35 | D161: 3586 | E161: 3530.35 | F161: 3579.85 | G161: 3572 | H161: 3545.35 | I161: 827869 | J161: 2949328668 | K161: 2019-06-25 | L161: 51585 | M161: INE296A01024
A162: BALAJITELE | B162: EQ | C162: 60.25 | D162: 62.2 | E162: 56.85 | F162: 58.2 | G162: 58.7 | H162: 60.8 | I162: 54426 | J162: 3221518.85 | K162: 2019-06-25 | L162: 846 | M162: INE794B01026
A163: BALAMINES | B163: EQ | C163: 377.8 | D163: 377.85 | E163: 373.15 | F163: 374.1 | G163: 373.65 | H163: 377.8 | I163: 9334 | J163: 3501186.6 | K163: 2019-06-25 | L163: 386 | M163: INE050E01027
A164: BALAXI | B164: BE | C164: 90.7 | D164: 90.7 | E164: 90.7 | F164: 90.7 | G164: 90.7 | H164: 95.45 | I164: 25 | J164: 2267.5 | K164: 2019-06-25 | L164: 3 | M164: INE618N01014
A165: BALKRISHNA | B165: EQ | C165: 30.85 | D165: 31.5 | E165: 30 | F165: 30.4 | G165: 30.15 | H165: 29.95 | I165: 5323 | J165: 163319.85 | K165: 2019-06-25 | L165: 130 | M165: INE875R01011
A166: BALKRISIND | B166: EQ | C166: 740 | D166: 770 | E166: 735 | F166: 762.65 | G166: 761 | H166: 741.3 | I166: 1181375 | J166: 898611399.1 | K166: 2019-06-25 | L166: 33387 | M166: INE787D01026
A167: BALLARPUR | B167: EQ | C167: 1.95 | D167: 2 | E167: 1.85 | F167: 1.95 | G167: 1.95 | H167: 1.95 | I167: 615869 | J167: 1179798.8 | K167: 2019-06-25 | L167: 259 | M167: INE294A01037
A168: BALMLAWRIE | B168: EQ | C168: 180.05 | D168: 181.8 | E168: 180.05 | F168: 180.85 | G168: 181 | H168: 180.6 | I168: 27314 | J168: 4945287.25 | K168: 2019-06-25 | L168: 699 | M168: INE164A01016
A169: BALPHARMA | B169: EQ | C169: 54.7 | D169: 55 | E169: 52.65 | F169: 54.55 | G169: 54.75 | H169: 55.5 | I169: 7286 | J169: 393050.65 | K169: 2019-06-25 | L169: 225 | M169: INE083D01012
A170: BALRAMCHIN | B170: EQ | C170: 136.6 | D170: 136.6 | E170: 133 | F170: 133.45 | G170: 133.45 | H170: 137 | I170: 675587 | J170: 91033128.75 | K170: 2019-06-25 | L170: 10464 | M170: INE119A01028
A171: BANARBEADS | B171: EQ | C171: 45.8 | D171: 45.8 | E171: 42 | F171: 43.2 | G171: 43 | H171: 42.8 | I171: 1240 | J171: 53291 | K171: 2019-06-25 | L171: 25 | M171: INE655B01011
A172: BANARISUG | B172: EQ | C172: 1410 | D172: 1419.95 | E172: 1405 | F172: 1405 | G172: 1405 | H172: 1415.8 | I172: 394 | J172: 553880.55 | K172: 2019-06-25 | L172: 47 | M172: INE459A01010
A173: BANCOINDIA | B173: EQ | C173: 119.65 | D173: 120.15 | E173: 117.8 | F173: 119.15 | G173: 118.6 | H173: 119.65 | I173: 14905 | J173: 1777294.8 | K173: 2019-06-25 | L173: 330 | M173: INE213C01025
A174: BANDHANBNK | B174: EQ | C174: 534.95 | D174: 535.45 | E174: 526 | F174: 527.7 | G174: 527.05 | H174: 533.9 | I174: 203489 | J174: 107589639.1 | K174: 2019-06-25 | L174: 12338 | M174: INE545U01014
A175: BANG | B175: EQ | C175: 42.5 | D175: 42.5 | E175: 39.75 | F175: 40 | G175: 39.95 | H175: 41.45 | I175: 33813 | J175: 1360261.95 | K175: 2019-06-25 | L175: 356 | M175: INE863I01016
A176: BANKBARODA | B176: EQ | C176: 118.2 | D176: 120.4 | E176: 117.7 | F176: 120 | G176: 119.75 | H176: 118.25 | I176: 14107941 | J176: 1682605526 | K176: 2019-06-25 | L176: 46204 | M176: INE028A01039
A177: BANKBEES | B177: EQ | C177: 3130.55 | D177: 3150.3 | E177: 3110 | F177: 3146.63 | G177: 3150.3 | H177: 3128.09 | I177: 2638 | J177: 8254303.78 | K177: 2019-06-25 | L177: 316 | M177: INF732E01078
A178: BANKINDIA | B178: EQ | C178: 86 | D178: 87.05 | E178: 85.75 | F178: 86.55 | G178: 86.45 | H178: 86.35 | I178: 3697250 | J178: 319591597.8 | K178: 2019-06-25 | L178: 12013 | M178: INE084A01016
A179: BANSWRAS | B179: EQ | C179: 64 | D179: 70 | E179: 64 | F179: 65.55 | G179: 64.7 | H179: 66.25 | I179: 2790 | J179: 181971.9 | K179: 2019-06-25 | L179: 56 | M179: INE629D01012
A180: BARTRONICS | B180: EQ | C180: 3.4 | D180: 3.6 | E180: 3.3 | F180: 3.4 | G180: 3.5 | H180: 3.45 | I180: 17589 | J180: 60417.75 | K180: 2019-06-25 | L180: 87 | M180: INE855F01034
A181: BASF | B181: EQ | C181: 1335.6 | D181: 1346 | E181: 1311 | F181: 1317.65 | G181: 1318 | H181: 1332.35 | I181: 4831 | J181: 6388072.7 | K181: 2019-06-25 | L181: 870 | M181: INE373A01013
A182: BASML | B182: EQ | C182: 151.05 | D182: 158 | E182: 148.05 | F182: 150.55 | G182: 150.2 | H182: 154.95 | I182: 305 | J182: 46015.55 | K182: 2019-06-25 | L182: 44 | M182: INE186H01014
A183: BATAINDIA | B183: EQ | C183: 1405.5 | D183: 1424.85 | E183: 1399.7 | F183: 1413.5 | G183: 1413.65 | H183: 1405.35 | I183: 572227 | J183: 810522959.5 | K183: 2019-06-25 | L183: 24505 | M183: INE176A01028
A184: BAYERCROP | B184: EQ | C184: 3351 | D184: 3384 | E184: 3315.1 | F184: 3370.1 | G184: 3351 | H184: 3360.4 | I184: 5756 | J184: 19337611.5 | K184: 2019-06-25 | L184: 1633 | M184: INE462A01022
A185: BBL | B185: EQ | C185: 1069.05 | D185: 1069.05 | E185: 1034.1 | F185: 1049.8 | G185: 1050 | H185: 1064.35 | I185: 7284 | J185: 7621350.5 | K185: 2019-06-25 | L185: 678 | M185: INE464A01028
A186: BBTC | B186: EQ | C186: 960 | D186: 974 | E186: 950 | F186: 955.1 | G186: 957.9 | H186: 960.9 | I186: 39595 | J186: 38084548.9 | K186: 2019-06-25 | L186: 3130 | M186: INE050A01025
A187: BCG | B187: EQ | C187: 5 | D187: 5.05 | E187: 4.8 | F187: 5.05 | G187: 5 | H187: 4.95 | I187: 200141 | J187: 987907.6 | K187: 2019-06-25 | L187: 185 | M187: INE425B01027
A188: BDL | B188: EQ | C188: 293 | D188: 318 | E188: 293 | F188: 307.85 | G188: 307.8 | H188: 305.15 | I188: 59295 | J188: 18305719 | K188: 2019-06-25 | L188: 2784 | M188: INE171Z01018
A189: BEARDSELL | B189: EQ | C189: 14.9 | D189: 14.9 | E189: 13.25 | F189: 14.3 | G189: 14.3 | H189: 14.1 | I189: 970 | J189: 12891.05 | K189: 2019-06-25 | L189: 40 | M189: INE520H01022
A190: BEDMUTHA | B190: EQ | C190: 16 | D190: 16 | E190: 14.5 | F190: 14.55 | G190: 14.55 | H190: 15.15 | I190: 4957 | J190: 73662.95 | K190: 2019-06-25 | L190: 61 | M190: INE844K01012
A191: BEL | B191: EQ | C191: 114.95 | D191: 115.3 | E191: 112.65 | F191: 113.9 | G191: 113.55 | H191: 114.75 | I191: 11001089 | J191: 1253471328 | K191: 2019-06-25 | L191: 68744 | M191: INE263A01024
A192: BEML | B192: EQ | C192: 821.9 | D192: 859 | E192: 815.05 | F192: 856.35 | G192: 854 | H192: 823.7 | I192: 3055646 | J192: 2577781160 | K192: 2019-06-25 | L192: 63868 | M192: INE258A01016
A193: BEPL | B193: EQ | C193: 63.05 | D193: 67 | E193: 62.75 | F193: 63.75 | G193: 63.75 | H193: 62.65 | I193: 205205 | J193: 13187500.2 | K193: 2019-06-25 | L193: 1923 | M193: INE922A01025
A194: BERGEPAINT | B194: EQ | C194: 314.75 | D194: 318.9 | E194: 312.15 | F194: 317.85 | G194: 318.5 | H194: 313.9 | I194: 316027 | J194: 100141311.7 | K194: 2019-06-25 | L194: 10053 | M194: INE463A01038
A195: BFINVEST | B195: EQ | C195: 249.55 | D195: 252.8 | E195: 247.1 | F195: 251.2 | G195: 249.55 | H195: 250.1 | I195: 18414 | J195: 4608291.75 | K195: 2019-06-25 | L195: 715 | M195: INE878K01010
A196: BFUTILITIE | B196: EQ | C196: 177.9 | D196: 180.95 | E196: 175.5 | F196: 178.65 | G196: 177.55 | H196: 178.2 | I196: 190553 | J196: 33964904.25 | K196: 2019-06-25 | L196: 4032 | M196: INE243D01012
A197: BGLOBAL | B197: BE | C197: 2.1 | D197: 2.1 | E197: 2 | F197: 2.1 | G197: 2.1 | H197: 2.1 | I197: 11192 | J197: 23071.5 | K197: 2019-06-25 | L197: 19 | M197: INE224M01013
A198: BGRENERGY | B198: EQ | C198: 49.75 | D198: 52.4 | E198: 48.2 | F198: 51.4 | G198: 51.25 | H198: 49.6 | I198: 57837 | J198: 2960934.65 | K198: 2019-06-25 | L198: 785 | M198: INE661I01014
A199: BHAGERIA | B199: EQ | C199: 247 | D199: 255.95 | E199: 245.6 | F199: 248.15 | G199: 252.95 | H199: 249.4 | I199: 2378 | J199: 594493.65 | K199: 2019-06-25 | L199: 207 | M199: INE354C01027
A200: BHAGYANGR | B200: EQ | C200: 24.65 | D200: 25.85 | E200: 24.65 | F200: 25.6 | G200: 25 | H200: 25 | I200: 6632 | J200: 166639.9 | K200: 2019-06-25 | L200: 34 | M200: INE458B01036
... 1441 more rows

Sheet Sheet1 (hidden)

Sheet Sheet3 (hidden)

Sheet Sheet4 (hidden)
